﻿Department family,Entity,Date of payment,Expense type,Expense area,Supplier,Transaction number,Amount in Sterling,Supplier VAT Registration Number
Department of Health,Guys and St Thomas NHS Foundation Trust,16/07/2021,(81400) Medical Surgical Supplies & Equipment,(id:41900) TAP,MELYD SURGICAL LTD,id:14248201 ,1150.00
Department of Health,Guys and St Thomas NHS Foundation Trust,29/07/2021,(81400) Medical Surgical Supplies & Equipment,(id:41900) TAP,STERIS SOLUTIONS LTD,id:14279486    ,1024.00
Department of Health,Guys and St Thomas NHS Foundation Trust,16/07/2021,(83400) Office Equipment,(id:4621419) TAP,NHS SUPPLY CHAIN (MAIDSTONE),id:14160388,   1.44
Department of Health,Guys and St Thomas NHS Foundation Trust,16/07/2021,(82800) Bedding & Linen,(id:41905) TAP,NHS SUPPLY CHAIN (MAIDSTONE),id:14163435   ,  63.37
Department of Health,Guys and St Thomas NHS Foundation Trust,02/07/2021,(81200) Medical Surgical Supplies & Equipment,(id:41905) TAP,MEDTRONIC LTD,id:14180919 , 648.00
Department of Health,Guys and St Thomas NHS Foundation Trust,16/07/2021,(81200) Medical Surgical Supplies & Equipment,(id:41905) TAP,NHS SUPPLY CHAIN (MAIDSTONE),id:14177634 ,3009.42
Department of Health,Guys and St Thomas NHS Foundation Trust,16/07/2021,(81230) Medical Surgical Supplies & Equipment,(id:41905) TAP,NHS SUPPLY CHAIN (MAIDSTONE),id:14163435 ,  43.46
Department of Health,Guys and St Thomas NHS Foundation Trust,29/07/2021,(81100) Dressings,(id:41905) TAP,NHS SUPPLY CHAIN (MAIDSTONE),id:14231714    ,  78.99
Department of Health,Guys and St Thomas NHS Foundation Trust,16/07/2021,(82800) Bedding & Linen,(id:41906) TAP,NHS SUPPLY CHAIN (MAIDSTONE),id:14163435   ,  97.70
Department of Health,Guys and St Thomas NHS Foundation Trust,09/07/2021,(81200) Medical Surgical Supplies & Equipment,(id:41906) TAP,LIVANOVA UK LTD,id:14236576    , 626.40
Department of Health,Guys and St Thomas NHS Foundation Trust,16/07/2021,(82600) Uniforms & Clothing,(id:41906) TAP,NHS SUPPLY CHAIN (MAIDSTONE),id:14198514    , 142.27
Department of Health,Guys and St Thomas NHS Foundation Trust,29/07/2021,(81255) Medical Surgical Supplies & Equipment,(id:41906) TAP,NHS SUPPLY CHAIN (MAIDSTONE),id:14231714 ,   1.56
Department of Health,Guys and St Thomas NHS Foundation Trust,16/07/2021,(82800) Bedding & Linen,(id:41907) TAP,NHS SUPPLY CHAIN (MAIDSTONE),id:14213935   ,  14.21
Department of Health,Guys and St Thomas NHS Foundation Trust,16/07/2021,(81200) Medical Surgical Supplies & Equipment,(id:41907) TAP,NHS SUPPLY CHAIN (MAIDSTONE),id:14163435 , 889.78
Department of Health,Guys and St Thomas NHS Foundation Trust,09/07/2021,(81200) Medical Surgical Supplies & Equipment,(id:41907) TAP,MEDTRONIC LTD,id:13984146 ,1122.00
Department of Health,Guys and St Thomas NHS Foundation Trust,16/07/2021,(81100) Dressings,(id:41907) TAP,NHS SUPPLY CHAIN (MAIDSTONE),id:14163435    ,  37.04
Department of Health,Guys and St Thomas NHS Foundation Trust,16/07/2021,(82600) Uniforms & Clothing,(id:41907) TAP,NHS SUPPLY CHAIN (MAIDSTONE),id:14163435    ,  17.28
Department of Health,Guys and St Thomas NHS Foundation Trust,16/07/2021,(81230) Medical Surgical Supplies & Equipment,(id:41907) TAP,NHS SUPPLY CHAIN (MAIDSTONE),id:14160388 , 762.79
Department of Health,Guys and St Thomas NHS Foundation Trust,29/07/2021,(81200) Medical Surgical Supplies & Equipment,(id:850419) TAP,NHS SUPPLY CHAIN (MAIDSTONE),id:14231714, 809.19
Department of Health,Guys and St Thomas NHS Foundation Trust,16/07/2021,(81100) Dressings,(id:850419) TAP,NHS SUPPLY CHAIN (MAIDSTONE),id:14160388   , 123.10
Department of Health,Guys and St Thomas NHS Foundation Trust,16/07/2021,(82600) Uniforms & Clothing,(id:850419) TAP,NHS SUPPLY CHAIN (MAIDSTONE),id:14177634   , 160.56
Department of Health,Guys and St Thomas NHS Foundation Trust,16/07/2021,(82600) Uniforms & Clothing,(id:850419) TAP,NHS SUPPLY CHAIN (MAIDSTONE),id:14213935   ,   7.20
Department of Health,Guys and St Thomas NHS Foundation Trust,16/07/2021,(82700) Uniforms & Clothing,(id:41918) TAP,NHS SUPPLY CHAIN (MAIDSTONE),id:14213935    ,  87.36
Department of Health,Guys and St Thomas NHS Foundation Trust,29/07/2021,(82700) Uniforms & Clothing,(id:41918) TAP,NHS SUPPLY CHAIN (MAIDSTONE),id:14231714    , 160.56
Department of Health,Guys and St Thomas NHS Foundation Trust,16/07/2021,(83400) Office Equipment,(id:41918) TAP,NHS SUPPLY CHAIN (MAIDSTONE),id:14163435  , 423.83
Department of Health,Guys and St Thomas NHS Foundation Trust,16/07/2021,(83400) Office Equipment,(id:41918) TAP,NHS SUPPLY CHAIN (MAIDSTONE),id:14198514  , 432.24
Department of Health,Guys and St Thomas NHS Foundation Trust,29/07/2021,(83400) Office Equipment,(id:41918) TAP,NHS SUPPLY CHAIN (MAIDSTONE),id:14231714  , 104.18
Department of Health,Guys and St Thomas NHS Foundation Trust,23/07/2021,(81200) Medical Surgical Supplies & Equipment,(id:41918) TAP,JOHNSON & JOHNSON MEDICAL LTD,id:14227252, 243.17
Department of Health,Guys and St Thomas NHS Foundation Trust,29/07/2021,(81200) Medical Surgical Supplies & Equipment,(id:41918) TAP,PHILIPS HEALTHCARE,id:14272433 , 994.56
Department of Health,Guys and St Thomas NHS Foundation Trust,16/07/2021,(81200) Medical Surgical Supplies & Equipment,(id:41918) TAP,OPTIMUS MEDICAL LTD,id:14245834,3300.00
Department of Health,Guys and St Thomas NHS Foundation Trust,02/07/2021,(81100) Dressings,(id:41918) TAP,ELIS UK LIMITED,id:14168410  , 802.48
Department of Health,Guys and St Thomas NHS Foundation Trust,02/07/2021,(81100) Dressings,(id:41918) TAP,ELIS UK LIMITED,id:14193006  , 476.13
Department of Health,Guys and St Thomas NHS Foundation Trust,16/07/2021,(81100) Dressings,(id:41918) TAP,NHS SUPPLY CHAIN (MAIDSTONE),id:14198514    , 128.48
Department of Health,Guys and St Thomas NHS Foundation Trust,16/07/2021,(81100) Dressings,(id:41918) TAP,ELIS UK LIMITED,id:13422142  , 466.02
Department of Health,Guys and St Thomas NHS Foundation Trust,29/07/2021,(81100) Dressings,(id:41918) TAP,ELIS UK LIMITED,id:14273334  , 532.45
Department of Health,Guys and St Thomas NHS Foundation Trust,16/07/2021,(81225) Medical Surgical Supplies & Equipment,(id:41918) TAP,NHS SUPPLY CHAIN (MAIDSTONE),id:14198514 ,  19.40
Department of Health,Guys and St Thomas NHS Foundation Trust,09/07/2021,(81255) Medical Surgical Supplies & Equipment,(id:41918) TAP,3M UNITED KINGDOM PLC,id:14223794   , 611.64
Department of Health,Guys and St Thomas NHS Foundation Trust,16/07/2021,(82600) Uniforms & Clothing,(id:41916) TAP,NHS SUPPLY CHAIN (MAIDSTONE),id:14198514    , 131.33
Department of Health,Guys and St Thomas NHS Foundation Trust,29/07/2021,(82600) Uniforms & Clothing,(id:41916) TAP,NHS SUPPLY CHAIN (MAIDSTONE),id:14231714    ,  25.81
Department of Health,Guys and St Thomas NHS Foundation Trust,16/07/2021,(81100) Dressings,(id:41916) TAP,NHS SUPPLY CHAIN (MAIDSTONE),id:14160388    , 404.71
Department of Health,Guys and St Thomas NHS Foundation Trust,16/07/2021,(81100) Dressings,(id:41916) TAP,NHS SUPPLY CHAIN (MAIDSTONE),id:14198514    , 445.33
Department of Health,Guys and St Thomas NHS Foundation Trust,16/07/2021,(81100) Dressings,(id:41916) TAP,NHS SUPPLY CHAIN (MAIDSTONE),id:14177634    , 242.92
Department of Health,Guys and St Thomas NHS Foundation Trust,16/07/2021,(81200) Medical Surgical Supplies & Equipment,(id:41916) TAP,NHS SUPPLY CHAIN (MAIDSTONE),id:14213935 , 828.64
Department of Health,Guys and St Thomas NHS Foundation Trust,16/07/2021,(81200) Medical Surgical Supplies & Equipment,(id:41916) TAP,NHS SUPPLY CHAIN (MAIDSTONE),id:14160388 ,1279.38
Department of Health,Guys and St Thomas NHS Foundation Trust,02/07/2021,(83500) Furniture & Fittings,(id:41916) TAP,OCURA HEALTHCARE FURNITURE,id:14198594,    11054.40
Department of Health,Guys and St Thomas NHS Foundation Trust,16/07/2021,(83400) Office Equipment,(id:41916) TAP,LAZERBEAM FIRE AND SECURITY LTD,id:14245218    ,3460.00
Department of Health,Guys and St Thomas NHS Foundation Trust,29/07/2021,(81275) Medical Surgical Supplies & Equipment,(id:41921) TAP,NHS SUPPLY CHAIN (MAIDSTONE),id:14231714 ,   5.40
Department of Health,Guys and St Thomas NHS Foundation Trust,16/07/2021,(82700) Uniforms & Clothing,(id:41921) TAP,NHS SUPPLY CHAIN (MAIDSTONE),id:14198514    , 734.79
Department of Health,Guys and St Thomas NHS Foundation Trust,16/07/2021,(82700) Uniforms & Clothing,(id:41923) TAP,NHS SUPPLY CHAIN (MAIDSTONE),id:14198514    , 114.34
Department of Health,Guys and St Thomas NHS Foundation Trust,16/07/2021,(82700) Uniforms & Clothing,(id:41923) TAP,NHS SUPPLY CHAIN (MAIDSTONE),id:14163435    ,  21.84
Department of Health,Guys and St Thomas NHS Foundation Trust,29/07/2021,(81200) Medical Surgical Supplies & Equipment,(id:41924) TAP,MARSDEN WEIGHING MACHINE GROUP LTD,id:14281335, 534.00
Department of Health,Guys and St Thomas NHS Foundation Trust,23/07/2021,(81200) Medical Surgical Supplies & Equipment,(id:41886) TAP,OLYMPUS KEYMED,id:14216721,2419.52
Department of Health,Guys and St Thomas NHS Foundation Trust,09/07/2021,(81200) Medical Surgical Supplies & Equipment,(id:41886) TAP,OLYMPUS KEYMED,id:14238514,2419.52
Department of Health,Guys and St Thomas NHS Foundation Trust,02/07/2021,(83500) Furniture & Fittings,(id:41883) TAP,HOSPITAL METALCRAFT LTD,id:14211794   ,1596.67
Department of Health,Guys and St Thomas NHS Foundation Trust,09/07/2021,(83500) Furniture & Fittings,(id:41883) TAP,HOSPITAL METALCRAFT LTD,id:14213703   ,6130.27
Department of Health,Guys and St Thomas NHS Foundation Trust,23/07/2021,(81275) Medical Surgical Supplies & Equipment,(id:41883) TAP,GENTA MEDICAL,id:14261385 , 511.68
Department of Health,Guys and St Thomas NHS Foundation Trust,16/07/2021,(81700) Lab Equipment Purchase,(id:41883) TAP,NHS SUPPLY CHAIN (MAIDSTONE),id:14198514 ,  11.01
Department of Health,Guys and St Thomas NHS Foundation Trust,16/07/2021,(81700) Lab Equipment Purchase,(id:41883) TAP,NHS SUPPLY CHAIN (MAIDSTONE),id:14160388 ,  65.13
Department of Health,Guys and St Thomas NHS Foundation Trust,16/07/2021,(81100) Dressings,(id:41883) TAP,NHS SUPPLY CHAIN (MAIDSTONE),id:14198514    , 754.16
Department of Health,Guys and St Thomas NHS Foundation Trust,16/07/2021,(81100) Dressings,(id:41883) TAP,NHS SUPPLY CHAIN (MAIDSTONE),id:14177634    , 844.86
Department of Health,Guys and St Thomas NHS Foundation Trust,02/07/2021,(81200) Medical Surgical Supplies & Equipment,(id:41883) TAP,JOHNSON & JOHNSON MEDICAL LTD,id:14166593, 542.12
Department of Health,Guys and St Thomas NHS Foundation Trust,16/07/2021,(81200) Medical Surgical Supplies & Equipment,(id:41883) TAP,NHS SUPPLY CHAIN (MAIDSTONE),id:14198514 ,2993.57
Department of Health,Guys and St Thomas NHS Foundation Trust,16/07/2021,(81200) Medical Surgical Supplies & Equipment,(id:41883) TAP,NHS SUPPLY CHAIN (MAIDSTONE),id:14213935 ,2846.97
Department of Health,Guys and St Thomas NHS Foundation Trust,16/07/2021,(81200) Medical Surgical Supplies & Equipment,(id:41883) TAP,NHS SUPPLY CHAIN (MAIDSTONE),id:14177634 ,2007.26
Department of Health,Guys and St Thomas NHS Foundation Trust,23/07/2021,(81200) Medical Surgical Supplies & Equipment,(id:41883) TAP,JOHNSON & JOHNSON MEDICAL LTD,id:14227236,  16.94
Department of Health,Guys and St Thomas NHS Foundation Trust,09/07/2021,(81200) Medical Surgical Supplies & Equipment,(id:41883) TAP,JOHNSON & JOHNSON MEDICAL LTD,id:14200104, 217.74
Department of Health,Guys and St Thomas NHS Foundation Trust,16/07/2021,(82600) Uniforms & Clothing,(id:2549419) TAP,NHS SUPPLY CHAIN (MAIDSTONE),id:14198514  ,   4.21
Department of Health,Guys and St Thomas NHS Foundation Trust,16/07/2021,(81200) Medical Surgical Supplies & Equipment,(id:2549419) TAP,NHS SUPPLY CHAIN (MAIDSTONE),id:14177634    , 335.37
Department of Health,Guys and St Thomas NHS Foundation Trust,16/07/2021,(81200) Medical Surgical Supplies & Equipment,(id:2549419) TAP,NHS SUPPLY CHAIN (MAIDSTONE),id:14163435    , 178.57
Department of Health,Guys and St Thomas NHS Foundation Trust,29/07/2021,(81255) Medical Surgical Supplies & Equipment,(id:2549419) TAP,NHS SUPPLY CHAIN (MAIDSTONE),id:14231714    ,  19.10
Department of Health,Guys and St Thomas NHS Foundation Trust,16/07/2021,(82700) Uniforms & Clothing,(id:2549419) TAP,NHS SUPPLY CHAIN (MAIDSTONE),id:14213935  ,  31.68
Department of Health,Guys and St Thomas NHS Foundation Trust,16/07/2021,(82600) Uniforms & Clothing,(id:41897) TAP,NHS SUPPLY CHAIN (MAIDSTONE),id:14177634    , 849.17
Department of Health,Guys and St Thomas NHS Foundation Trust,16/07/2021,(83400) Office Equipment,(id:41897) TAP,NHS SUPPLY CHAIN (MAIDSTONE),id:14198514  ,1312.37
Department of Health,Guys and St Thomas NHS Foundation Trust,16/07/2021,(83400) Office Equipment,(id:41897) TAP,NHS SUPPLY CHAIN (MAIDSTONE),id:14163435  ,1771.95
Department of Health,Guys and St Thomas NHS Foundation Trust,09/07/2021,(83500) Furniture & Fittings,(id:41897) TAP,OFFICE DEPOT UK LTD,id:14187576  , 748.80
Department of Health,Guys and St Thomas NHS Foundation Trust,16/07/2021,(81200) Medical Surgical Supplies & Equipment,(id:41897) TAP,JOHNSON & JOHNSON MEDICAL LTD,id:14218027, 559.80
Department of Health,Guys and St Thomas NHS Foundation Trust,29/07/2021,(81200) Medical Surgical Supplies & Equipment,(id:41897) TAP,JOHNSON & JOHNSON MEDICAL LTD,id:14247294, 145.09
Department of Health,Guys and St Thomas NHS Foundation Trust,23/07/2021,(81200) Medical Surgical Supplies & Equipment,(id:41897) TAP,TECTO PROTECTION (TECTO LTD),id:13864077 , 576.00
Department of Health,Guys and St Thomas NHS Foundation Trust,23/07/2021,(81200) Medical Surgical Supplies & Equipment,(id:41897) TAP,ELIS UK LIMITED,id:14253710    ,  46.75
Department of Health,Guys and St Thomas NHS Foundation Trust,02/07/2021,(81100) Dressings,(id:41897) TAP,ELIS UK LIMITED,id:14192971  , 800.40
Department of Health,Guys and St Thomas NHS Foundation Trust,16/07/2021,(81100) Dressings,(id:41897) TAP,NHS SUPPLY CHAIN (MAIDSTONE),id:14160388    ,1855.70
Department of Health,Guys and St Thomas NHS Foundation Trust,09/07/2021,(81100) Dressings,(id:41897) TAP,ELIS UK LIMITED,id:14228594  , 652.41
Department of Health,Guys and St Thomas NHS Foundation Trust,02/07/2021,(81000) Surgical Appliances,(id:41897) TAP,JOHNSON & JOHNSON MEDICAL LTD,id:14175967   , 300.05
Department of Health,Guys and St Thomas NHS Foundation Trust,29/07/2021,(81100) Dressings,(id:41894) TAP,NHS SUPPLY CHAIN (MAIDSTONE),id:14231714    , 561.82
Department of Health,Guys and St Thomas NHS Foundation Trust,16/07/2021,(81100) Dressings,(id:41894) TAP,NHS SUPPLY CHAIN (MAIDSTONE),id:14160388    , 208.65
Department of Health,Guys and St Thomas NHS Foundation Trust,16/07/2021,(81100) Dressings,(id:41894) TAP,NHS SUPPLY CHAIN (MAIDSTONE),id:14177634    , 101.66
Department of Health,Guys and St Thomas NHS Foundation Trust,16/07/2021,(82800) Bedding & Linen,(id:41894) TAP,NHS SUPPLY CHAIN (MAIDSTONE),id:14160388   ,  10.14
Department of Health,Guys and St Thomas NHS Foundation Trust,16/07/2021,(83400) Office Equipment,(id:41894) TAP,NHS SUPPLY CHAIN (MAIDSTONE),id:14213935  ,  74.30
Department of Health,Guys and St Thomas NHS Foundation Trust,16/07/2021,(81200) Medical Surgical Supplies & Equipment,(id:41894) TAP,NHS SUPPLY CHAIN (MAIDSTONE),id:14198514 ,1234.21
Department of Health,Guys and St Thomas NHS Foundation Trust,23/07/2021,(81200) Medical Surgical Supplies & Equipment,(id:41894) TAP,ELIS UK LIMITED,id:14247654    ,  40.56
Department of Health,Guys and St Thomas NHS Foundation Trust,02/07/2021,(81200) Medical Surgical Supplies & Equipment,(id:41894) TAP,JOHNSON & JOHNSON MEDICAL LTD,id:14166583,  83.00
Department of Health,Guys and St Thomas NHS Foundation Trust,16/07/2021,(81200) Medical Surgical Supplies & Equipment,(id:41892) TAP,NHS SUPPLY CHAIN (MAIDSTONE),id:14160388 ,   4.10
Department of Health,Guys and St Thomas NHS Foundation Trust,29/07/2021,(81100) Dressings,(id:41892) TAP,NHS SUPPLY CHAIN (MAIDSTONE),id:14231714    ,    .90
Department of Health,Guys and St Thomas NHS Foundation Trust,16/07/2021,(81100) Dressings,(id:41892) TAP,NHS SUPPLY CHAIN (MAIDSTONE),id:14163435    ,  26.17
Department of Health,Guys and St Thomas NHS Foundation Trust,23/07/2021,(81000) Surgical Appliances,(id:41830) Gastrointestinal Medicine & Surgery,TALAR MADE ORTHOTICS LTD,id:14261698 ,  29.40
Department of Health,Guys and St Thomas NHS Foundation Trust,29/07/2021,(89440) Research and Development,(id:2977419) Gastrointestinal Medicine & Surgery,KINGS COLLEGE LONDON:03529700,id:13873154    ,2812.50
Department of Health,Guys and St Thomas NHS Foundation Trust,16/07/2021,(81200) Medical Surgical Supplies & Equipment,(id:41963) Gastrointestinal Medicine & Surgery,INTUITIVE SURGICAL LTD,id:14242594,    15000.00
Department of Health,Guys and St Thomas NHS Foundation Trust,16/07/2021,(82000) Provisions & Kitchens,(id:41958) Gastrointestinal Medicine & Surgery,NHS SUPPLY CHAIN (MAIDSTONE),id:14213935, 245.72
Department of Health,Guys and St Thomas NHS Foundation Trust,16/07/2021,(83400) Office Equipment,(id:41958) Gastrointestinal Medicine & Surgery,NHS SUPPLY CHAIN (MAIDSTONE),id:14160388,  31.39
Department of Health,Guys and St Thomas NHS Foundation Trust,16/07/2021,(82800) Bedding & Linen,(id:41958) Gastrointestinal Medicine & Surgery,NHS SUPPLY CHAIN (MAIDSTONE),id:14198514 ,  16.53
Department of Health,Guys and St Thomas NHS Foundation Trust,16/07/2021,(82800) Bedding & Linen,(id:41958) Gastrointestinal Medicine & Surgery,NHS SUPPLY CHAIN (MAIDSTONE),id:14213935 , 182.00
Department of Health,Guys and St Thomas NHS Foundation Trust,16/07/2021,(81200) Medical Surgical Supplies & Equipment,(id:41958) Gastrointestinal Medicine & Surgery,NHS SUPPLY CHAIN (MAIDSTONE),id:14198514    , 745.15
Department of Health,Guys and St Thomas NHS Foundation Trust,16/07/2021,(81100) Dressings,(id:41958) Gastrointestinal Medicine & Surgery,NHS SUPPLY CHAIN (MAIDSTONE),id:14163435  , 342.25
Department of Health,Guys and St Thomas NHS Foundation Trust,16/07/2021,(81100) Dressings,(id:41958) Gastrointestinal Medicine & Surgery,NHS SUPPLY CHAIN (MAIDSTONE),id:14198514  , 334.82
Department of Health,Guys and St Thomas NHS Foundation Trust,16/07/2021,(50552) Qualified Nursing Staff,(id:41958) Gastrointestinal Medicine & Surgery,CONTINENTAL NURSE LTD,id:14250319,1949.27
Department of Health,Guys and St Thomas NHS Foundation Trust,16/07/2021,(81225) Medical Surgical Supplies & Equipment,(id:41958) Gastrointestinal Medicine & Surgery,NHS SUPPLY CHAIN (MAIDSTONE),id:14198514    ,  26.60
Department of Health,Guys and St Thomas NHS Foundation Trust,16/07/2021,(81255) Medical Surgical Supplies & Equipment,(id:41958) Gastrointestinal Medicine & Surgery,NHS SUPPLY CHAIN (MAIDSTONE),id:14198514    ,   2.80
Department of Health,Guys and St Thomas NHS Foundation Trust,16/07/2021,(82700) Uniforms & Clothing,(id:41954) Gastrointestinal Medicine & Surgery,NHS SUPPLY CHAIN (MAIDSTONE),id:14213935  ,  31.68
Department of Health,Guys and St Thomas NHS Foundation Trust,16/07/2021,(82000) Provisions & Kitchens,(id:41954) Gastrointestinal Medicine & Surgery,NHS SUPPLY CHAIN (MAIDSTONE),id:14163435, 187.86
Department of Health,Guys and St Thomas NHS Foundation Trust,29/07/2021,(82000) Provisions & Kitchens,(id:41954) Gastrointestinal Medicine & Surgery,NHS SUPPLY CHAIN (MAIDSTONE),id:14231714,  71.43
Department of Health,Guys and St Thomas NHS Foundation Trust,16/07/2021,(81200) Medical Surgical Supplies & Equipment,(id:41954) Gastrointestinal Medicine & Surgery,NHS SUPPLY CHAIN (MAIDSTONE),id:14213935    , 854.92
Department of Health,Guys and St Thomas NHS Foundation Trust,16/07/2021,(81200) Medical Surgical Supplies & Equipment,(id:41954) Gastrointestinal Medicine & Surgery,NHS SUPPLY CHAIN (MAIDSTONE),id:14163435    , 915.40
Department of Health,Guys and St Thomas NHS Foundation Trust,16/07/2021,(81100) Dressings,(id:41954) Gastrointestinal Medicine & Surgery,NHS SUPPLY CHAIN (MAIDSTONE),id:14177634  , 769.76
Department of Health,Guys and St Thomas NHS Foundation Trust,02/07/2021,(50552) Qualified Nursing Staff,(id:41954) Gastrointestinal Medicine & Surgery,CARE PROVIDERS HEALTHCARE,id:14217234 , 343.95
Department of Health,Guys and St Thomas NHS Foundation Trust,29/07/2021,(81200) Medical Surgical Supplies & Equipment,(id:5182419) Gastrointestinal Medicine & Surgery,INTUITIVE SURGICAL LTD,id:14257856   ,    21502.80
Department of Health,Guys and St Thomas NHS Foundation Trust,23/07/2021,(81200) Medical Surgical Supplies & Equipment,(id:5182419) Gastrointestinal Medicine & Surgery,LAWMED LTD,id:14253879,6388.20
Department of Health,Guys and St Thomas NHS Foundation Trust,16/07/2021,(83400) Office Equipment,(id:41949) Gastrointestinal Medicine & Surgery,NHS SUPPLY CHAIN (MAIDSTONE),id:14160388, 387.88
Department of Health,Guys and St Thomas NHS Foundation Trust,16/07/2021,(81100) Dressings,(id:41949) Gastrointestinal Medicine & Surgery,NHS SUPPLY CHAIN (MAIDSTONE),id:14198514  , 166.65
Department of Health,Guys and St Thomas NHS Foundation Trust,16/07/2021,(81100) Dressings,(id:41949) Gastrointestinal Medicine & Surgery,NHS SUPPLY CHAIN (MAIDSTONE),id:14177634  , 369.03
Department of Health,Guys and St Thomas NHS Foundation Trust,02/07/2021,(81200) Medical Surgical Supplies & Equipment,(id:41949) Gastrointestinal Medicine & Surgery,JOHNSON & JOHNSON MEDICAL LTD,id:14169648   , 605.02
Department of Health,Guys and St Thomas NHS Foundation Trust,16/07/2021,(81200) Medical Surgical Supplies & Equipment,(id:41949) Gastrointestinal Medicine & Surgery,MEDTRONIC LTD,id:14214554    ,1105.92
Department of Health,Guys and St Thomas NHS Foundation Trust,29/07/2021,(81200) Medical Surgical Supplies & Equipment,(id:41949) Gastrointestinal Medicine & Surgery,JOHNSON & JOHNSON MEDICAL LTD,id:14247091   , 641.78
Department of Health,Guys and St Thomas NHS Foundation Trust,29/07/2021,(81200) Medical Surgical Supplies & Equipment,(id:41949) Gastrointestinal Medicine & Surgery,JOHNSON & JOHNSON MEDICAL LTD,id:14241506   , 689.27
Department of Health,Guys and St Thomas NHS Foundation Trust,16/07/2021,(82600) Uniforms & Clothing,(id:41949) Gastrointestinal Medicine & Surgery,BAXTER HEALTHCARE LTD,id:14186814    , 669.00
Department of Health,Guys and St Thomas NHS Foundation Trust,16/07/2021,(81700) Lab Equipment Purchase,(id:2367419) Gastrointestinal Medicine & Surgery,NHS SUPPLY CHAIN (MAIDSTONE),id:14213935  ,  16.12
Department of Health,Guys and St Thomas NHS Foundation Trust,16/07/2021,(81700) Lab Equipment Purchase,(id:2367419) Gastrointestinal Medicine & Surgery,NHS SUPPLY CHAIN (MAIDSTONE),id:14198514  ,  20.07
Department of Health,Guys and St Thomas NHS Foundation Trust,16/07/2021,(50522) Unqualified Nursing Staff,(id:2367419) Gastrointestinal Medicine & Surgery,MEDICSPRO LTD,id:14250533    , 246.10
Department of Health,Guys and St Thomas NHS Foundation Trust,16/07/2021,(82000) Provisions & Kitchens,(id:2367419) Gastrointestinal Medicine & Surgery,NHS SUPPLY CHAIN (MAIDSTONE),id:14160388   , 344.75
Department of Health,Guys and St Thomas NHS Foundation Trust,16/07/2021,(82000) Provisions & Kitchens,(id:2367419) Gastrointestinal Medicine & Surgery,NHS SUPPLY CHAIN (MAIDSTONE),id:14163435   ,  68.51
Department of Health,Guys and St Thomas NHS Foundation Trust,16/07/2021,(81200) Medical Surgical Supplies & Equipment,(id:2367419) Gastrointestinal Medicine & Surgery,NHS SUPPLY CHAIN (MAIDSTONE),id:14163435  , 825.89
Department of Health,Guys and St Thomas NHS Foundation Trust,16/07/2021,(83400) Office Equipment,(id:2367419) Gastrointestinal Medicine & Surgery,NHS SUPPLY CHAIN (MAIDSTONE),id:14160388   , 110.81
Department of Health,Guys and St Thomas NHS Foundation Trust,16/07/2021,(83400) Office Equipment,(id:2367419) Gastrointestinal Medicine & Surgery,NHS SUPPLY CHAIN (MAIDSTONE),id:14213935   ,  51.76
Department of Health,Guys and St Thomas NHS Foundation Trust,16/07/2021,(81100) Dressings,(id:2367419) Gastrointestinal Medicine & Surgery,NHS SUPPLY CHAIN (MAIDSTONE),id:14198514, 196.42
Department of Health,Guys and St Thomas NHS Foundation Trust,16/07/2021,(81100) Dressings,(id:2367419) Gastrointestinal Medicine & Surgery,NHS SUPPLY CHAIN (MAIDSTONE),id:14163435, 182.30
Department of Health,Guys and St Thomas NHS Foundation Trust,16/07/2021,(81225) Medical Surgical Supplies & Equipment,(id:2367419) Gastrointestinal Medicine & Surgery,NHS SUPPLY CHAIN (MAIDSTONE),id:14198514  ,  19.39
Department of Health,Guys and St Thomas NHS Foundation Trust,02/07/2021,(50552) Qualified Nursing Staff,(id:2367419) Gastrointestinal Medicine & Surgery,CONTINENTAL NURSE LTD,id:14221500   , 339.34
Department of Health,Guys and St Thomas NHS Foundation Trust,02/07/2021,(81200) Medical Surgical Supplies & Equipment,(id:41957) Gastrointestinal Medicine & Surgery,FUNCTIONAL GUT DIAGNOSTICS LTD,id:14208294  ,7236.00
Department of Health,Guys and St Thomas NHS Foundation Trust,16/07/2021,(82000) Provisions & Kitchens,(id:41917) Gastrointestinal Medicine & Surgery,NHS SUPPLY CHAIN (MAIDSTONE),id:14160388,  70.84
Department of Health,Guys and St Thomas NHS Foundation Trust,16/07/2021,(83400) Office Equipment,(id:41917) Gastrointestinal Medicine & Surgery,NHS SUPPLY CHAIN (MAIDSTONE),id:14198514, 216.18
Department of Health,Guys and St Thomas NHS Foundation Trust,16/07/2021,(82800) Bedding & Linen,(id:41917) Gastrointestinal Medicine & Surgery,NHS SUPPLY CHAIN (MAIDSTONE),id:14163435 , 343.38
Department of Health,Guys and St Thomas NHS Foundation Trust,16/07/2021,(82800) Bedding & Linen,(id:41917) Gastrointestinal Medicine & Surgery,NHS SUPPLY CHAIN (MAIDSTONE),id:14177634 , 316.90
Department of Health,Guys and St Thomas NHS Foundation Trust,09/07/2021,(81235) Medical Surgical Supplies & Equipment,(id:41917) Gastrointestinal Medicine & Surgery,BOSTON SCIENTIFIC LTD,id:14200054 , 163.92
Department of Health,Guys and St Thomas NHS Foundation Trust,29/07/2021,(81235) Medical Surgical Supplies & Equipment,(id:41917) Gastrointestinal Medicine & Surgery,BOSTON SCIENTIFIC LTD,id:14238239 ,1821.36
Department of Health,Guys and St Thomas NHS Foundation Trust,09/07/2021,(81200) Medical Surgical Supplies & Equipment,(id:41917) Gastrointestinal Medicine & Surgery,ERBE MEDICAL UK LTD,id:14121616   ,1635.00
Department of Health,Guys and St Thomas NHS Foundation Trust,09/07/2021,(81200) Medical Surgical Supplies & Equipment,(id:41917) Gastrointestinal Medicine & Surgery,COOK UK LTD,id:14143970 , 876.00
Department of Health,Guys and St Thomas NHS Foundation Trust,09/07/2021,(81200) Medical Surgical Supplies & Equipment,(id:41917) Gastrointestinal Medicine & Surgery,COOK UK LTD,id:14143944 , 900.00
Department of Health,Guys and St Thomas NHS Foundation Trust,16/07/2021,(81200) Medical Surgical Supplies & Equipment,(id:41917) Gastrointestinal Medicine & Surgery,BOSTON SCIENTIFIC LTD,id:14206744 ,4038.92
Department of Health,Guys and St Thomas NHS Foundation Trust,16/07/2021,(81200) Medical Surgical Supplies & Equipment,(id:41917) Gastrointestinal Medicine & Surgery,SYNECTICS MEDICAL LTD (SYNMED),id:14246131  ,4557.60
Department of Health,Guys and St Thomas NHS Foundation Trust,23/07/2021,(81200) Medical Surgical Supplies & Equipment,(id:41917) Gastrointestinal Medicine & Surgery,ERBE MEDICAL UK LTD,id:14246188   , 735.46
Department of Health,Guys and St Thomas NHS Foundation Trust,02/07/2021,(81200) Medical Surgical Supplies & Equipment,(id:41917) Gastrointestinal Medicine & Surgery,SYNECTICS MEDICAL LTD (SYNMED),id:14211694  ,2361.60
Department of Health,Guys and St Thomas NHS Foundation Trust,02/07/2021,(81200) Medical Surgical Supplies & Equipment,(id:41917) Gastrointestinal Medicine & Surgery,BOSTON SCIENTIFIC LTD,id:14206523 ,3650.56
Department of Health,Guys and St Thomas NHS Foundation Trust,02/07/2021,(81200) Medical Surgical Supplies & Equipment,(id:41917) Gastrointestinal Medicine & Surgery,BOSTON SCIENTIFIC LTD,id:14175927 ,1737.78
Department of Health,Guys and St Thomas NHS Foundation Trust,02/07/2021,(81200) Medical Surgical Supplies & Equipment,(id:41917) Gastrointestinal Medicine & Surgery,BOSTON SCIENTIFIC LTD,id:14169618 , 910.68
Department of Health,Guys and St Thomas NHS Foundation Trust,02/07/2021,(81200) Medical Surgical Supplies & Equipment,(id:41917) Gastrointestinal Medicine & Surgery,AQUILANT LTD,id:14182496,1200.00
Department of Health,Guys and St Thomas NHS Foundation Trust,16/07/2021,(81100) Dressings,(id:41917) Gastrointestinal Medicine & Surgery,NHS SUPPLY CHAIN (MAIDSTONE),id:14160388  ,  69.60
Department of Health,Guys and St Thomas NHS Foundation Trust,16/07/2021,(86300) Healthcare from non-NHS bodies,(id:41917) Gastrointestinal Medicine & Surgery,18 WEEK SUPPORT LIMITED,id:14244483 ,    17850.00
Department of Health,Guys and St Thomas NHS Foundation Trust,29/07/2021,(50532) Unqualified Nursing Staff,(id:41917) Gastrointestinal Medicine & Surgery,CONTINENTAL NURSE LTD,id:14281654   ,1423.05
Department of Health,Guys and St Thomas NHS Foundation Trust,16/07/2021,(81700) Lab Equipment Purchase,(id:41917) Gastrointestinal Medicine & Surgery,NHS SUPPLY CHAIN (MAIDSTONE),id:14213935    , 120.00
Department of Health,Guys and St Thomas NHS Foundation Trust,16/07/2021,(81700) Lab Equipment Purchase,(id:41917) Gastrointestinal Medicine & Surgery,NHS SUPPLY CHAIN (MAIDSTONE),id:14163435    , 297.24
Department of Health,Guys and St Thomas NHS Foundation Trust,16/07/2021,(81200) Medical Surgical Supplies & Equipment,(id:41942) Gastrointestinal Medicine & Surgery,NHS SUPPLY CHAIN (MAIDSTONE),id:14163435    , 341.61
Department of Health,Guys and St Thomas NHS Foundation Trust,16/07/2021,(81100) Dressings,(id:41942) Gastrointestinal Medicine & Surgery,NHS SUPPLY CHAIN (MAIDSTONE),id:14177634  , 142.70
Department of Health,Guys and St Thomas NHS Foundation Trust,16/07/2021,(82000) Provisions & Kitchens,(id:42419) Transplant Renal and Urology,NHS SUPPLY CHAIN (MAIDSTONE),id:14213935  ,  92.63
Department of Health,Guys and St Thomas NHS Foundation Trust,16/07/2021,(82800) Bedding & Linen,(id:42419) Transplant Renal and Urology,NHS SUPPLY CHAIN (MAIDSTONE),id:14160388   ,  48.58
Department of Health,Guys and St Thomas NHS Foundation Trust,16/07/2021,(82800) Bedding & Linen,(id:42419) Transplant Renal and Urology,NHS SUPPLY CHAIN (MAIDSTONE),id:14163435   ,  79.40
Department of Health,Guys and St Thomas NHS Foundation Trust,16/07/2021,(83400) Office Equipment,(id:42419) Transplant Renal and Urology,NHS SUPPLY CHAIN (MAIDSTONE),id:14213935  ,  60.57
Department of Health,Guys and St Thomas NHS Foundation Trust,29/07/2021,(83400) Office Equipment,(id:42419) Transplant Renal and Urology,NHS SUPPLY CHAIN (MAIDSTONE),id:14231714  ,  67.18
Department of Health,Guys and St Thomas NHS Foundation Trust,16/07/2021,(81225) Medical Surgical Supplies & Equipment,(id:42419) Transplant Renal and Urology,NHS SUPPLY CHAIN (MAIDSTONE),id:14163435 ,  24.24
Department of Health,Guys and St Thomas NHS Foundation Trust,16/07/2021,(81700) Lab Equipment Purchase,(id:42419) Transplant Renal and Urology,NHS SUPPLY CHAIN (MAIDSTONE),id:14213935 ,  11.57
Department of Health,Guys and St Thomas NHS Foundation Trust,09/07/2021,(83400) Office Equipment,(id:2826419) Transplant Renal and Urology,ARMENIAN BONE MARROW DONOR REGISTRY CHARITABLE TRUST,id:14213494 ,3747.70
Department of Health,Guys and St Thomas NHS Foundation Trust,16/07/2021,(81200) Medical Surgical Supplies & Equipment,(id:42439) Transplant Renal and Urology,INTUITIVE SURGICAL LTD,id:14196107  ,    47512.80
Department of Health,Guys and St Thomas NHS Foundation Trust,16/07/2021,(81200) Medical Surgical Supplies & Equipment,(id:42439) Transplant Renal and Urology,INTUITIVE SURGICAL LTD,id:14227061  ,2503.20
Department of Health,Guys and St Thomas NHS Foundation Trust,16/07/2021,(81200) Medical Surgical Supplies & Equipment,(id:42439) Transplant Renal and Urology,STRYKER UK LTD,id:13320682,6138.72
Department of Health,Guys and St Thomas NHS Foundation Trust,16/07/2021,(81200) Medical Surgical Supplies & Equipment,(id:42439) Transplant Renal and Urology,INTUITIVE SURGICAL LTD,id:14246261  ,    17522.40
Department of Health,Guys and St Thomas NHS Foundation Trust,29/07/2021,(81200) Medical Surgical Supplies & Equipment,(id:42439) Transplant Renal and Urology,INTUITIVE SURGICAL LTD,id:14257844  ,    -1380.00
Department of Health,Guys and St Thomas NHS Foundation Trust,16/07/2021,(82800) Bedding & Linen,(id:42439) Transplant Renal and Urology,INTUITIVE SURGICAL LTD,id:14206011    ,    12279.60
Department of Health,Guys and St Thomas NHS Foundation Trust,29/07/2021,(81100) Dressings,(id:42439) Transplant Renal and Urology,MEDTRONIC LTD,id:14241471    ,1872.00
Department of Health,Guys and St Thomas NHS Foundation Trust,16/07/2021,(83400) Office Equipment,(id:969419) Transplant Renal and Urology,NHS SUPPLY CHAIN (MAIDSTONE),id:14198514 ,   4.80
Department of Health,Guys and St Thomas NHS Foundation Trust,16/07/2021,(81200) Medical Surgical Supplies & Equipment,(id:42450) Transplant Renal and Urology,APPLIED MEDICAL UK LTD,id:14236591  ,1221.00
Department of Health,Guys and St Thomas NHS Foundation Trust,16/07/2021,(81200) Medical Surgical Supplies & Equipment,(id:42450) Transplant Renal and Urology,APPLIED MEDICAL UK LTD,id:14236589  , 637.56
Department of Health,Guys and St Thomas NHS Foundation Trust,23/07/2021,(81200) Medical Surgical Supplies & Equipment,(id:42450) Transplant Renal and Urology,STRYKER UK LTD,id:14260765, 613.87
Department of Health,Guys and St Thomas NHS Foundation Trust,23/07/2021,(81100) Dressings,(id:42450) Transplant Renal and Urology,JOHNSON & JOHNSON MEDICAL LTD,id:13923821   , 148.50
Department of Health,Guys and St Thomas NHS Foundation Trust,16/07/2021,(81200) Medical Surgical Supplies & Equipment,(id:2882419) Transplant Renal and Urology,NHS SUPPLY CHAIN (MAIDSTONE),id:14177634    , 224.31
Department of Health,Guys and St Thomas NHS Foundation Trust,16/07/2021,(82000) Provisions & Kitchens,(id:42442) Transplant Renal and Urology,NHS SUPPLY CHAIN (MAIDSTONE),id:14160388  ,  70.03
Department of Health,Guys and St Thomas NHS Foundation Trust,16/07/2021,(82800) Bedding & Linen,(id:42442) Transplant Renal and Urology,NHS SUPPLY CHAIN (MAIDSTONE),id:14160388   , 219.96
Department of Health,Guys and St Thomas NHS Foundation Trust,16/07/2021,(81100) Dressings,(id:42442) Transplant Renal and Urology,NHS SUPPLY CHAIN (MAIDSTONE),id:14198514    , 231.19
Department of Health,Guys and St Thomas NHS Foundation Trust,16/07/2021,(83400) Office Equipment,(id:42442) Transplant Renal and Urology,NHS SUPPLY CHAIN (MAIDSTONE),id:14213935  , 217.69
Department of Health,Guys and St Thomas NHS Foundation Trust,16/07/2021,(83400) Office Equipment,(id:42442) Transplant Renal and Urology,NHS SUPPLY CHAIN (MAIDSTONE),id:14198514  , 134.36
Department of Health,Guys and St Thomas NHS Foundation Trust,16/07/2021,(83400) Office Equipment,(id:42442) Transplant Renal and Urology,NHS SUPPLY CHAIN (MAIDSTONE),id:14160388  , 128.13
Department of Health,Guys and St Thomas NHS Foundation Trust,16/07/2021,(81225) Medical Surgical Supplies & Equipment,(id:42442) Transplant Renal and Urology,NHS SUPPLY CHAIN (MAIDSTONE),id:14160388 ,  30.36
Department of Health,Guys and St Thomas NHS Foundation Trust,16/07/2021,(82700) Uniforms & Clothing,(id:42443) Transplant Renal and Urology,NHS SUPPLY CHAIN (MAIDSTONE),id:14198514    ,  31.68
Department of Health,Guys and St Thomas NHS Foundation Trust,16/07/2021,(82800) Bedding & Linen,(id:42443) Transplant Renal and Urology,NHS SUPPLY CHAIN (MAIDSTONE),id:14198514   , 112.72
Department of Health,Guys and St Thomas NHS Foundation Trust,16/07/2021,(82800) Bedding & Linen,(id:42443) Transplant Renal and Urology,NHS SUPPLY CHAIN (MAIDSTONE),id:14160388   ,  67.42
Department of Health,Guys and St Thomas NHS Foundation Trust,16/07/2021,(81100) Dressings,(id:42443) Transplant Renal and Urology,NHS SUPPLY CHAIN (MAIDSTONE),id:14213935    , 361.68
Department of Health,Guys and St Thomas NHS Foundation Trust,16/07/2021,(81100) Dressings,(id:42443) Transplant Renal and Urology,NHS SUPPLY CHAIN (MAIDSTONE),id:14160388    ,  86.88
Department of Health,Guys and St Thomas NHS Foundation Trust,02/07/2021,(81200) Medical Surgical Supplies & Equipment,(id:42444) Transplant Renal and Urology,BOSTON SCIENTIFIC LTD,id:14163783   , 677.64
Department of Health,Guys and St Thomas NHS Foundation Trust,16/07/2021,(81200) Medical Surgical Supplies & Equipment,(id:42444) Transplant Renal and Urology,NHS SUPPLY CHAIN (MAIDSTONE),id:14198514 ,  24.60
Department of Health,Guys and St Thomas NHS Foundation Trust,09/07/2021,(81200) Medical Surgical Supplies & Equipment,(id:42444) Transplant Renal and Urology,COOK UK LTD,id:14166646   , 367.20
Department of Health,Guys and St Thomas NHS Foundation Trust,29/07/2021,(81200) Medical Surgical Supplies & Equipment,(id:42444) Transplant Renal and Urology,MERCIAN SURGICAL SUPPLY CO LTD,id:14276649    ,1854.00
Department of Health,Guys and St Thomas NHS Foundation Trust,02/07/2021,(81200) Medical Surgical Supplies & Equipment,(id:42446) Transplant Renal and Urology,BOSTON SCIENTIFIC LTD,id:14036488   , 845.82
Department of Health,Guys and St Thomas NHS Foundation Trust,29/07/2021,(81200) Medical Surgical Supplies & Equipment,(id:42446) Transplant Renal and Urology,NHS SUPPLY CHAIN (MAIDSTONE),id:14231714 ,9012.15
Department of Health,Guys and St Thomas NHS Foundation Trust,02/07/2021,(81200) Medical Surgical Supplies & Equipment,(id:42446) Transplant Renal and Urology,AQUILANT LTD,id:14202712  , 578.76
Department of Health,Guys and St Thomas NHS Foundation Trust,23/07/2021,(81200) Medical Surgical Supplies & Equipment,(id:42446) Transplant Renal and Urology,GETINGE UK LTD,id:14254634,  24.00
Department of Health,Guys and St Thomas NHS Foundation Trust,29/07/2021,(81200) Medical Surgical Supplies & Equipment,(id:42446) Transplant Renal and Urology,ENVIROGEN WATER TECHNOLOGIES LTD,id:14279482  ,  18.00
Department of Health,Guys and St Thomas NHS Foundation Trust,16/07/2021,(83400) Office Equipment,(id:42447) Transplant Renal and Urology,NHS SUPPLY CHAIN (MAIDSTONE),id:14198514  , 175.25
Department of Health,Guys and St Thomas NHS Foundation Trust,16/07/2021,(82800) Bedding & Linen,(id:42447) Transplant Renal and Urology,NHS SUPPLY CHAIN (MAIDSTONE),id:14163435   , 121.99
Department of Health,Guys and St Thomas NHS Foundation Trust,16/07/2021,(81700) Lab Equipment Purchase,(id:42447) Transplant Renal and Urology,NHS SUPPLY CHAIN (MAIDSTONE),id:14198514 ,  47.24
Department of Health,Guys and St Thomas NHS Foundation Trust,16/07/2021,(81100) Dressings,(id:42447) Transplant Renal and Urology,NHS SUPPLY CHAIN (MAIDSTONE),id:14213935    ,  47.20
Department of Health,Guys and St Thomas NHS Foundation Trust,16/07/2021,(81225) Medical Surgical Supplies & Equipment,(id:42447) Transplant Renal and Urology,NHS SUPPLY CHAIN (MAIDSTONE),id:14198514 ,  15.60
Department of Health,Guys and St Thomas NHS Foundation Trust,16/07/2021,(81225) Medical Surgical Supplies & Equipment,(id:42447) Transplant Renal and Urology,NHS SUPPLY CHAIN (MAIDSTONE),id:14160388 ,  12.48
Department of Health,Guys and St Thomas NHS Foundation Trust,23/07/2021,(50203) Consultants,(id:42447) Transplant Renal and Urology,KINGS COLLEGE LONDON:03529700,id:14216726 ,    16860.36
Department of Health,Guys and St Thomas NHS Foundation Trust,02/07/2021,(50200) Consultants,(id:42447) Transplant Renal and Urology,KING'S COLLEGE HOSPITAL NHS FOUNDATION TRUST,id:14199783 ,2503.67
Department of Health,Guys and St Thomas NHS Foundation Trust,16/07/2021,(50200) Consultants,(id:42447) Transplant Renal and Urology,KING'S COLLEGE HOSPITAL NHS FOUNDATION TRUST,id:13687477 ,9864.28
Department of Health,Guys and St Thomas NHS Foundation Trust,16/07/2021,(81230) Medical Surgical Supplies & Equipment,(id:42447) Transplant Renal and Urology,NHS SUPPLY CHAIN (MAIDSTONE),id:14198514 ,  10.08
Department of Health,Guys and St Thomas NHS Foundation Trust,16/07/2021,(82800) Bedding & Linen,(id:2653419) Transplant Renal and Urology,NHS SUPPLY CHAIN (MAIDSTONE),id:14177634 ,  13.54
Department of Health,Guys and St Thomas NHS Foundation Trust,16/07/2021,(81200) Medical Surgical Supplies & Equipment,(id:42420) Transplant Renal and Urology,NHS SUPPLY CHAIN (MAIDSTONE),id:14198514 ,4790.83
Department of Health,Guys and St Thomas NHS Foundation Trust,16/07/2021,(81200) Medical Surgical Supplies & Equipment,(id:42420) Transplant Renal and Urology,NHS SUPPLY CHAIN (MAIDSTONE),id:14160388 ,5079.52
Department of Health,Guys and St Thomas NHS Foundation Trust,16/07/2021,(81200) Medical Surgical Supplies & Equipment,(id:42420) Transplant Renal and Urology,NHS SUPPLY CHAIN (MAIDSTONE),id:14177634 ,  68.40
Department of Health,Guys and St Thomas NHS Foundation Trust,29/07/2021,(81200) Medical Surgical Supplies & Equipment,(id:42420) Transplant Renal and Urology,BAXTER HEALTHCARE LTD,id:14253413   ,2689.34
Department of Health,Guys and St Thomas NHS Foundation Trust,23/07/2021,(80150) Drug Costs,(id:42420) Transplant Renal and Urology,BAXTER HEALTHCARE LTD,id:14253439, 192.00
Department of Health,Guys and St Thomas NHS Foundation Trust,16/07/2021,(82800) Bedding & Linen,(id:42420) Transplant Renal and Urology,NHS SUPPLY CHAIN (MAIDSTONE),id:14198514   , 392.35
Department of Health,Guys and St Thomas NHS Foundation Trust,16/07/2021,(81100) Dressings,(id:3671419) Transplant Renal and Urology,NHS SUPPLY CHAIN (MAIDSTONE),id:14213935  , 492.78
Department of Health,Guys and St Thomas NHS Foundation Trust,16/07/2021,(82600) Uniforms & Clothing,(id:42435) Transplant Renal and Urology,NHS SUPPLY CHAIN (MAIDSTONE),id:14213935    ,  63.72
Department of Health,Guys and St Thomas NHS Foundation Trust,16/07/2021,(82800) Bedding & Linen,(id:42435) Transplant Renal and Urology,NHS SUPPLY CHAIN (MAIDSTONE),id:14213935   , 177.23
Department of Health,Guys and St Thomas NHS Foundation Trust,29/07/2021,(50522) Unqualified Nursing Staff,(id:42435) Transplant Renal and Urology,CARE PROVIDERS HEALTHCARE,id:14281441 , 483.55
Department of Health,Guys and St Thomas NHS Foundation Trust,16/07/2021,(81100) Dressings,(id:42435) Transplant Renal and Urology,NHS SUPPLY CHAIN (MAIDSTONE),id:14213935    , 400.53
Department of Health,Guys and St Thomas NHS Foundation Trust,16/07/2021,(83400) Office Equipment,(id:42435) Transplant Renal and Urology,NHS SUPPLY CHAIN (MAIDSTONE),id:14163435  , 219.06
Department of Health,Guys and St Thomas NHS Foundation Trust,23/07/2021,(81200) Medical Surgical Supplies & Equipment,(id:42433) Transplant Renal and Urology,HEALTHCARE 21 LTD,id:14253688  ,7119.00
Department of Health,Guys and St Thomas NHS Foundation Trust,16/07/2021,(82800) Bedding & Linen,(id:42428) Transplant Renal and Urology,NHS SUPPLY CHAIN (MAIDSTONE),id:14160388   ,  62.64
Department of Health,Guys and St Thomas NHS Foundation Trust,16/07/2021,(83400) Office Equipment,(id:42428) Transplant Renal and Urology,NHS SUPPLY CHAIN (MAIDSTONE),id:14213935  ,  24.70
Department of Health,Guys and St Thomas NHS Foundation Trust,16/07/2021,(81700) Lab Equipment Purchase,(id:42428) Transplant Renal and Urology,NHS SUPPLY CHAIN (MAIDSTONE),id:14160388 , 317.72
Department of Health,Guys and St Thomas NHS Foundation Trust,16/07/2021,(81700) Lab Equipment Purchase,(id:42428) Transplant Renal and Urology,NHS SUPPLY CHAIN (MAIDSTONE),id:14198514 , 149.60
Department of Health,Guys and St Thomas NHS Foundation Trust,02/07/2021,(81200) Medical Surgical Supplies & Equipment,(id:42430) Transplant Renal and Urology,B.BRAUN MEDICAL LTD,id:13410034,2578.78
Department of Health,Guys and St Thomas NHS Foundation Trust,02/07/2021,(81200) Medical Surgical Supplies & Equipment,(id:42430) Transplant Renal and Urology,B.BRAUN MEDICAL LTD,id:14217894,2648.23
Department of Health,Guys and St Thomas NHS Foundation Trust,16/07/2021,(81200) Medical Surgical Supplies & Equipment,(id:42430) Transplant Renal and Urology,B.BRAUN MEDICAL LTD,id:14246312,2091.41
Department of Health,Guys and St Thomas NHS Foundation Trust,23/07/2021,(81200) Medical Surgical Supplies & Equipment,(id:42430) Transplant Renal and Urology,RENAL HEALTHCARE SERVICES LTD,id:14174316, 582.00
Department of Health,Guys and St Thomas NHS Foundation Trust,29/07/2021,(81200) Medical Surgical Supplies & Equipment,(id:42422) Transplant Renal and Urology,NXSTAGE MEDICAL UK LIMITED,id:14272499   , 748.32
Department of Health,Guys and St Thomas NHS Foundation Trust,29/07/2021,(81200) Medical Surgical Supplies & Equipment,(id:42422) Transplant Renal and Urology,NXSTAGE MEDICAL UK LIMITED,id:14276834   ,1427.55
Department of Health,Guys and St Thomas NHS Foundation Trust,23/07/2021,(81200) Medical Surgical Supplies & Equipment,(id:42422) Transplant Renal and Urology,NXSTAGE MEDICAL UK LIMITED,id:14189394   ,1964.16
Department of Health,Guys and St Thomas NHS Foundation Trust,23/07/2021,(81200) Medical Surgical Supplies & Equipment,(id:42422) Transplant Renal and Urology,NXSTAGE MEDICAL UK LIMITED,id:14075994   , 729.72
Department of Health,Guys and St Thomas NHS Foundation Trust,16/07/2021,(82000) Provisions & Kitchens,(id:42421) Transplant Renal and Urology,NHS SUPPLY CHAIN (MAIDSTONE),id:14213935  ,  36.86
Department of Health,Guys and St Thomas NHS Foundation Trust,09/07/2021,(81200) Medical Surgical Supplies & Equipment,(id:42421) Transplant Renal and Urology,BAXTER HEALTHCARE LTD,id:14202855   ,2686.95
Department of Health,Guys and St Thomas NHS Foundation Trust,29/07/2021,(81200) Medical Surgical Supplies & Equipment,(id:42421) Transplant Renal and Urology,KIMAL PLC,id:14277247,2460.00
Department of Health,Guys and St Thomas NHS Foundation Trust,23/07/2021,(81200) Medical Surgical Supplies & Equipment,(id:42421) Transplant Renal and Urology,BAXTER HEALTHCARE LTD,id:14052005   ,1207.35
Department of Health,Guys and St Thomas NHS Foundation Trust,09/07/2021,(83760) Rent,(id:42427) Transplant Renal and Urology,CHARTWELL PROPERTIES LIMITED,id:14240187    ,5365.20
Department of Health,Guys and St Thomas NHS Foundation Trust,09/07/2021,(83760) Rent,(id:42427) Transplant Renal and Urology,CHARTWELL PROPERTIES LIMITED,id:14240184    ,7190.67
Department of Health,Guys and St Thomas NHS Foundation Trust,16/07/2021,(81700) Lab Equipment Purchase,(id:42427) Transplant Renal and Urology,NHS SUPPLY CHAIN (MAIDSTONE),id:14160388 ,  91.22
Department of Health,Guys and St Thomas NHS Foundation Trust,16/07/2021,(83765) Rent,(id:4622425) Transplant Renal and Urology,FRESENIUS MEDICAL CARE RENAL SERVICES LT,id:14199454, 713.97
Department of Health,Guys and St Thomas NHS Foundation Trust,29/07/2021,(80150) Drug Costs,(id:4622425) Transplant Renal and Urology,FRESENIUS MEDICAL CARE RENAL SERVICES LT,id:14206029    , 538.75
Department of Health,Guys and St Thomas NHS Foundation Trust,29/07/2021,(80150) Drug Costs,(id:4622425) Transplant Renal and Urology,FRESENIUS MEDICAL CARE RENAL SERVICES LT,id:14206026    , 690.24
Department of Health,Guys and St Thomas NHS Foundation Trust,02/07/2021,(81200) Medical Surgical Supplies & Equipment,(id:42481) Surgery,SEVERN HEALTHCARE TECHNOLOGIES LTD,id:14182394 ,1401.60
Department of Health,Guys and St Thomas NHS Foundation Trust,23/07/2021,(81200) Medical Surgical Supplies & Equipment,(id:42481) Surgery,SEVERN HEALTHCARE TECHNOLOGIES LTD,id:14232777 ,1401.60
Department of Health,Guys and St Thomas NHS Foundation Trust,16/07/2021,(81200) Medical Surgical Supplies & Equipment,(id:42483) Surgery,NHS SUPPLY CHAIN (MAIDSTONE),id:14198514  , 411.22
Department of Health,Guys and St Thomas NHS Foundation Trust,29/07/2021,(81200) Medical Surgical Supplies & Equipment,(id:42483) Surgery,NHS SUPPLY CHAIN (MAIDSTONE),id:14231714  ,  46.49
Department of Health,Guys and St Thomas NHS Foundation Trust,16/07/2021,(82800) Bedding & Linen,(id:42483) Surgery,NHS SUPPLY CHAIN (MAIDSTONE),id:14213935    ,  20.30
Department of Health,Guys and St Thomas NHS Foundation Trust,16/07/2021,(81200) Medical Surgical Supplies & Equipment,(id:42484) Surgery,NHS SUPPLY CHAIN (MAIDSTONE),id:14198514  ,3309.64
Department of Health,Guys and St Thomas NHS Foundation Trust,23/07/2021,(81200) Medical Surgical Supplies & Equipment,(id:42484) Surgery,SEVERN HEALTHCARE TECHNOLOGIES LTD,id:14232780 ,3744.00
Department of Health,Guys and St Thomas NHS Foundation Trust,02/07/2021,(81200) Medical Surgical Supplies & Equipment,(id:42484) Surgery,ZETHON LIMITED (ROSS ELECTRO MEDICAL REM LTD),id:14180117, 553.20
Department of Health,Guys and St Thomas NHS Foundation Trust,02/07/2021,(81200) Medical Surgical Supplies & Equipment,(id:42484) Surgery,SEBBIN UK LTD,id:14159950  , 513.60
Department of Health,Guys and St Thomas NHS Foundation Trust,09/07/2021,(81200) Medical Surgical Supplies & Equipment,(id:42484) Surgery,SEBBIN UK LTD,id:14221956  ,2709.60
Department of Health,Guys and St Thomas NHS Foundation Trust,09/07/2021,(81200) Medical Surgical Supplies & Equipment,(id:42484) Surgery,HEALTHCARE 21 LTD,id:14202710   , 994.00
Department of Health,Guys and St Thomas NHS Foundation Trust,09/07/2021,(81200) Medical Surgical Supplies & Equipment,(id:42484) Surgery,HEALTHCARE 21 LTD,id:14202707   ,4260.00
Department of Health,Guys and St Thomas NHS Foundation Trust,16/07/2021,(81255) Medical Surgical Supplies & Equipment,(id:42485) Surgery,NHS SUPPLY CHAIN (MAIDSTONE),id:14177634  ,    .62
Department of Health,Guys and St Thomas NHS Foundation Trust,02/07/2021,(81000) Surgical Appliances,(id:42485) Surgery,TALAR MADE ORTHOTICS LTD,id:14210774    ,  86.24
Department of Health,Guys and St Thomas NHS Foundation Trust,16/07/2021,(82000) Provisions & Kitchens,(id:42485) Surgery,NHS SUPPLY CHAIN (MAIDSTONE),id:14177634   ,   6.56
Department of Health,Guys and St Thomas NHS Foundation Trust,16/07/2021,(81100) Dressings,(id:42485) Surgery,NHS SUPPLY CHAIN (MAIDSTONE),id:14213935, 956.91
Department of Health,Guys and St Thomas NHS Foundation Trust,16/07/2021,(81200) Medical Surgical Supplies & Equipment,(id:42485) Surgery,NHS SUPPLY CHAIN (MAIDSTONE),id:14213935  , 376.57
Department of Health,Guys and St Thomas NHS Foundation Trust,16/07/2021,(81200) Medical Surgical Supplies & Equipment,(id:884419) Surgery,NHS SUPPLY CHAIN (MAIDSTONE),id:14177634 ,  21.60
Department of Health,Guys and St Thomas NHS Foundation Trust,16/07/2021,(81100) Dressings,(id:884419) Surgery,NHS SUPPLY CHAIN (MAIDSTONE),id:14198514    ,1016.64
Department of Health,Guys and St Thomas NHS Foundation Trust,16/07/2021,(82600) Uniforms & Clothing,(id:42463) Surgery,NHS SUPPLY CHAIN (MAIDSTONE),id:14213935,  43.80
Department of Health,Guys and St Thomas NHS Foundation Trust,16/07/2021,(81200) Medical Surgical Supplies & Equipment,(id:42463) Surgery,NHS SUPPLY CHAIN (MAIDSTONE),id:14163435  , 472.08
Department of Health,Guys and St Thomas NHS Foundation Trust,16/07/2021,(83400) Office Equipment,(id:42463) Surgery,NHS SUPPLY CHAIN (MAIDSTONE),id:14198514   ,1264.77
Department of Health,Guys and St Thomas NHS Foundation Trust,16/07/2021,(81200) Medical Surgical Supplies & Equipment,(id:42464) Surgery,NHS SUPPLY CHAIN (MAIDSTONE),id:14177634  ,  17.90
Department of Health,Guys and St Thomas NHS Foundation Trust,16/07/2021,(86300) Healthcare from non-NHS bodies,(id:42464) Surgery,JOHNSON & JOHNSON FINANCE LIMITED,id:14249234    ,    68769.60
Department of Health,Guys and St Thomas NHS Foundation Trust,16/07/2021,(82600) Uniforms & Clothing,(id:42465) Surgery,NHS SUPPLY CHAIN (MAIDSTONE),id:14198514,   9.82
Department of Health,Guys and St Thomas NHS Foundation Trust,16/07/2021,(81225) Medical Surgical Supplies & Equipment,(id:42465) Surgery,NHS SUPPLY CHAIN (MAIDSTONE),id:14163435  , 111.19
Department of Health,Guys and St Thomas NHS Foundation Trust,16/07/2021,(81700) Lab Equipment Purchase,(id:42465) Surgery,NHS SUPPLY CHAIN (MAIDSTONE),id:14177634  ,  47.73
Department of Health,Guys and St Thomas NHS Foundation Trust,29/07/2021,(81700) Lab Equipment Purchase,(id:42465) Surgery,NHS SUPPLY CHAIN (MAIDSTONE),id:14231714  ,   9.03
Department of Health,Guys and St Thomas NHS Foundation Trust,02/07/2021,(81100) Dressings,(id:42466) Surgery,JOINT OPERATIONS (UK) LLP,id:14216675   ,    -1040.40
Department of Health,Guys and St Thomas NHS Foundation Trust,16/07/2021,(81225) Medical Surgical Supplies & Equipment,(id:42466) Surgery,NHS SUPPLY CHAIN (MAIDSTONE),id:14213935  , 287.52
Department of Health,Guys and St Thomas NHS Foundation Trust,23/07/2021,(82600) Uniforms & Clothing,(id:42467) Surgery,BUNZL HEALTHCARE,id:14253565  , 825.07
Department of Health,Guys and St Thomas NHS Foundation Trust,02/07/2021,(81200) Medical Surgical Supplies & Equipment,(id:42467) Surgery,JOHNSON & JOHNSON MEDICAL LTD,id:14180896 , 583.93
Department of Health,Guys and St Thomas NHS Foundation Trust,02/07/2021,(81200) Medical Surgical Supplies & Equipment,(id:42467) Surgery,JOHNSON & JOHNSON MEDICAL LTD,id:14174744 ,1304.65
Department of Health,Guys and St Thomas NHS Foundation Trust,02/07/2021,(81200) Medical Surgical Supplies & Equipment,(id:42467) Surgery,JOHNSON & JOHNSON MEDICAL LTD,id:14199628 ,    -1349.45
Department of Health,Guys and St Thomas NHS Foundation Trust,02/07/2021,(81200) Medical Surgical Supplies & Equipment,(id:42467) Surgery,JOHNSON & JOHNSON MEDICAL LTD,id:14199659 ,    -2770.54
Department of Health,Guys and St Thomas NHS Foundation Trust,16/07/2021,(81200) Medical Surgical Supplies & Equipment,(id:42467) Surgery,ACUMED LTD,id:13879074,3431.16
Department of Health,Guys and St Thomas NHS Foundation Trust,23/07/2021,(81200) Medical Surgical Supplies & Equipment,(id:42467) Surgery,JOHNSON & JOHNSON MEDICAL LTD,id:14227238 , 972.18
Department of Health,Guys and St Thomas NHS Foundation Trust,29/07/2021,(81200) Medical Surgical Supplies & Equipment,(id:42467) Surgery,NHS SUPPLY CHAIN (MAIDSTONE),id:14231714  ,1932.83
Department of Health,Guys and St Thomas NHS Foundation Trust,29/07/2021,(81200) Medical Surgical Supplies & Equipment,(id:42467) Surgery,JOHNSON & JOHNSON MEDICAL LTD,id:14241486 , 816.06
Department of Health,Guys and St Thomas NHS Foundation Trust,09/07/2021,(81200) Medical Surgical Supplies & Equipment,(id:42467) Surgery,JOHNSON & JOHNSON MEDICAL LTD,id:14184551 ,1000.56
Department of Health,Guys and St Thomas NHS Foundation Trust,29/07/2021,(83400) Office Equipment,(id:42467) Surgery,NHS SUPPLY CHAIN (MAIDSTONE),id:14231714   , 775.77
Department of Health,Guys and St Thomas NHS Foundation Trust,16/07/2021,(81225) Medical Surgical Supplies & Equipment,(id:42467) Surgery,NHS SUPPLY CHAIN (MAIDSTONE),id:14198514  ,  73.12
Department of Health,Guys and St Thomas NHS Foundation Trust,29/07/2021,(81225) Medical Surgical Supplies & Equipment,(id:42467) Surgery,NHS SUPPLY CHAIN (MAIDSTONE),id:14231714  ,  19.44
Department of Health,Guys and St Thomas NHS Foundation Trust,16/07/2021,(82800) Bedding & Linen,(id:42458) Surgery,NHS SUPPLY CHAIN (MAIDSTONE),id:14160388    ,  39.07
Department of Health,Guys and St Thomas NHS Foundation Trust,23/07/2021,(81000) Surgical Appliances,(id:42458) Surgery,TALAR MADE ORTHOTICS LTD,id:14264977    ,  29.40
Department of Health,Guys and St Thomas NHS Foundation Trust,16/07/2021,(83400) Office Equipment,(id:42458) Surgery,NHS SUPPLY CHAIN (MAIDSTONE),id:14177634   ,  60.43
Department of Health,Guys and St Thomas NHS Foundation Trust,16/07/2021,(81700) Lab Equipment Purchase,(id:42458) Surgery,NHS SUPPLY CHAIN (MAIDSTONE),id:14160388  ,  14.92
Department of Health,Guys and St Thomas NHS Foundation Trust,16/07/2021,(81700) Lab Equipment Purchase,(id:42458) Surgery,NHS SUPPLY CHAIN (MAIDSTONE),id:14213935  ,  23.25
Department of Health,Guys and St Thomas NHS Foundation Trust,29/07/2021,(81700) Lab Equipment Purchase,(id:42458) Surgery,NHS SUPPLY CHAIN (MAIDSTONE),id:14231714  ,   9.17
Department of Health,Guys and St Thomas NHS Foundation Trust,16/07/2021,(81255) Medical Surgical Supplies & Equipment,(id:42458) Surgery,NHS SUPPLY CHAIN (MAIDSTONE),id:14213935  ,   1.20
Department of Health,Guys and St Thomas NHS Foundation Trust,16/07/2021,(81255) Medical Surgical Supplies & Equipment,(id:42458) Surgery,NHS SUPPLY CHAIN (MAIDSTONE),id:14160388  ,   9.48
Department of Health,Guys and St Thomas NHS Foundation Trust,16/07/2021,(81255) Medical Surgical Supplies & Equipment,(id:42458) Surgery,NHS SUPPLY CHAIN (MAIDSTONE),id:14177634  ,   1.56
Department of Health,Guys and St Thomas NHS Foundation Trust,16/07/2021,(82700) Uniforms & Clothing,(id:42459) Surgery,NHS SUPPLY CHAIN (MAIDSTONE),id:14160388,  43.68
Department of Health,Guys and St Thomas NHS Foundation Trust,29/07/2021,(82000) Provisions & Kitchens,(id:42459) Surgery,NHS SUPPLY CHAIN (MAIDSTONE),id:14231714   , 432.80
Department of Health,Guys and St Thomas NHS Foundation Trust,29/07/2021,(82800) Bedding & Linen,(id:42459) Surgery,NHS SUPPLY CHAIN (MAIDSTONE),id:14231714    ,  92.94
Department of Health,Guys and St Thomas NHS Foundation Trust,16/07/2021,(82800) Bedding & Linen,(id:42459) Surgery,NHS SUPPLY CHAIN (MAIDSTONE),id:14177634    ,  99.86
Department of Health,Guys and St Thomas NHS Foundation Trust,16/07/2021,(81100) Dressings,(id:42459) Surgery,NHS SUPPLY CHAIN (MAIDSTONE),id:14213935,  79.99
Department of Health,Guys and St Thomas NHS Foundation Trust,23/07/2021,(81000) Surgical Appliances,(id:42459) Surgery,TALAR MADE ORTHOTICS LTD,id:14264816    , 223.30
Department of Health,Guys and St Thomas NHS Foundation Trust,16/07/2021,(83400) Office Equipment,(id:42459) Surgery,NHS SUPPLY CHAIN (MAIDSTONE),id:14213935   ,  86.50
Department of Health,Guys and St Thomas NHS Foundation Trust,16/07/2021,(83400) Office Equipment,(id:42459) Surgery,NHS SUPPLY CHAIN (MAIDSTONE),id:14198514   , 147.79
Department of Health,Guys and St Thomas NHS Foundation Trust,29/07/2021,(82800) Bedding & Linen,(id:42461) Surgery,NHS SUPPLY CHAIN (MAIDSTONE),id:14231714    ,  60.30
Department of Health,Guys and St Thomas NHS Foundation Trust,23/07/2021,(81000) Surgical Appliances,(id:42461) Surgery,MEDI UK LTD,id:14258215  , 300.00
Department of Health,Guys and St Thomas NHS Foundation Trust,02/07/2021,(89270) Establishment,(id:3821419) Cancer Supportive Services and R&D,WHITE BICYCLE LTD,id:14210994   ,3250.00
Department of Health,Guys and St Thomas NHS Foundation Trust,16/07/2021,(81100) Dressings,(id:42265) Haematology Cellular Pathology and Supporting Services,NHS SUPPLY CHAIN (MAIDSTONE),id:14177634   , 162.82
Department of Health,Guys and St Thomas NHS Foundation Trust,29/07/2021,(81100) Dressings,(id:42265) Haematology Cellular Pathology and Supporting Services,NHS SUPPLY CHAIN (MAIDSTONE),id:14231714   , 189.56
Department of Health,Guys and St Thomas NHS Foundation Trust,16/07/2021,(81200) Medical Surgical Supplies & Equipment,(id:42265) Haematology Cellular Pathology and Supporting Services,NHS SUPPLY CHAIN (MAIDSTONE),id:14213935,1741.95
Department of Health,Guys and St Thomas NHS Foundation Trust,09/07/2021,(50522) Unqualified Nursing Staff,(id:42265) Haematology Cellular Pathology and Supporting Services,GLOBE LOCUMS LTD,id:14236420    , 216.97
Department of Health,Guys and St Thomas NHS Foundation Trust,09/07/2021,(50522) Unqualified Nursing Staff,(id:42265) Haematology Cellular Pathology and Supporting Services,GLOBE LOCUMS LTD,id:14236419    , 256.74
Department of Health,Guys and St Thomas NHS Foundation Trust,16/07/2021,(50522) Unqualified Nursing Staff,(id:42265) Haematology Cellular Pathology and Supporting Services,GLOBE LOCUMS LTD,id:14250390    , 263.50
Department of Health,Guys and St Thomas NHS Foundation Trust,16/07/2021,(81225) Medical Surgical Supplies & Equipment,(id:42265) Haematology Cellular Pathology and Supporting Services,NHS SUPPLY CHAIN (MAIDSTONE),id:14160388,  19.39
Department of Health,Guys and St Thomas NHS Foundation Trust,16/07/2021,(81700) Lab Equipment Purchase,(id:42265) Haematology Cellular Pathology and Supporting Services,NHS SUPPLY CHAIN (MAIDSTONE),id:14213935,   9.76
Department of Health,Guys and St Thomas NHS Foundation Trust,16/07/2021,(81255) Medical Surgical Supplies & Equipment,(id:42265) Haematology Cellular Pathology and Supporting Services,NHS SUPPLY CHAIN (MAIDSTONE),id:14198514,   2.16
Department of Health,Guys and St Thomas NHS Foundation Trust,02/07/2021,(81000) Surgical Appliances,(id:42268) Haematology Cellular Pathology and Supporting Services,MEDI UK LTD,id:14210716,  52.03
Department of Health,Guys and St Thomas NHS Foundation Trust,16/07/2021,(81255) Medical Surgical Supplies & Equipment,(id:42270) Haematology Cellular Pathology and Supporting Services,NHS SUPPLY CHAIN (MAIDSTONE),id:14163435,    .67
Department of Health,Guys and St Thomas NHS Foundation Trust,16/07/2021,(83400) Office Equipment,(id:42270) Haematology Cellular Pathology and Supporting Services,NHS SUPPLY CHAIN (MAIDSTONE),id:14163435 , 319.00
Department of Health,Guys and St Thomas NHS Foundation Trust,29/07/2021,(83400) Office Equipment,(id:42270) Haematology Cellular Pathology and Supporting Services,NHS SUPPLY CHAIN (MAIDSTONE),id:14231714 ,   3.24
Department of Health,Guys and St Thomas NHS Foundation Trust,16/07/2021,(81700) Lab Equipment Purchase,(id:42270) Haematology Cellular Pathology and Supporting Services,NHS SUPPLY CHAIN (MAIDSTONE),id:14177634, 128.33
Department of Health,Guys and St Thomas NHS Foundation Trust,16/07/2021,(81700) Lab Equipment Purchase,(id:42270) Haematology Cellular Pathology and Supporting Services,NHS SUPPLY CHAIN (MAIDSTONE),id:14163435, 202.25
Department of Health,Guys and St Thomas NHS Foundation Trust,16/07/2021,(82600) Uniforms & Clothing,(id:42270) Haematology Cellular Pathology and Supporting Services,NHS SUPPLY CHAIN (MAIDSTONE),id:14163435   ,  70.35
Department of Health,Guys and St Thomas NHS Foundation Trust,16/07/2021,(82000) Provisions & Kitchens,(id:42272) Haematology Cellular Pathology and Supporting Services,NHS SUPPLY CHAIN (MAIDSTONE),id:14213935 ,  15.60
Department of Health,Guys and St Thomas NHS Foundation Trust,16/07/2021,(81200) Medical Surgical Supplies & Equipment,(id:42272) Haematology Cellular Pathology and Supporting Services,NHS SUPPLY CHAIN (MAIDSTONE),id:14160388, 433.32
Department of Health,Guys and St Thomas NHS Foundation Trust,16/07/2021,(81100) Dressings,(id:42272) Haematology Cellular Pathology and Supporting Services,NHS SUPPLY CHAIN (MAIDSTONE),id:14213935   ,  41.96
Department of Health,Guys and St Thomas NHS Foundation Trust,28/07/2021,(80205) Drug Costs,(id:42273) Haematology Cellular Pathology and Supporting Services,HEALTHCARE AT HOME LTD,id:14277031   ,5382.00
Department of Health,Guys and St Thomas NHS Foundation Trust,29/07/2021,(80205) Drug Costs,(id:42273) Haematology Cellular Pathology and Supporting Services,HEALTHCARE AT HOME LTD,id:14282284   ,1616.60
Department of Health,Guys and St Thomas NHS Foundation Trust,29/07/2021,(80205) Drug Costs,(id:42273) Haematology Cellular Pathology and Supporting Services,HEALTHCARE AT HOME LTD,id:14283476   ,4180.17
Department of Health,Guys and St Thomas NHS Foundation Trust,29/07/2021,(80205) Drug Costs,(id:42273) Haematology Cellular Pathology and Supporting Services,HEALTHCARE AT HOME LTD,id:14283481   ,4930.17
Department of Health,Guys and St Thomas NHS Foundation Trust,16/07/2021,(83400) Office Equipment,(id:42128) Haematology Cellular Pathology and Supporting Services,NHS SUPPLY CHAIN (MAIDSTONE),id:14177634 , 336.47
Department of Health,Guys and St Thomas NHS Foundation Trust,23/07/2021,(54052) Technical Officers,(id:42128) Haematology Cellular Pathology and Supporting Services,TOTAL ASSIST RECRUITMENT LTD,id:14250508    ,1024.56
Department of Health,Guys and St Thomas NHS Foundation Trust,09/07/2021,(81700) Lab Equipment Purchase,(id:42128) Haematology Cellular Pathology and Supporting Services,CHEMSOL LIMITED,id:14225454   ,1265.73
Department of Health,Guys and St Thomas NHS Foundation Trust,23/07/2021,(81000) Surgical Appliances,(id:42257) Oncology Services,MEDI UK LTD,id:14258215  , 494.44
Department of Health,Guys and St Thomas NHS Foundation Trust,16/07/2021,(83400) Office Equipment,(id:42258) Oncology Services,NHS SUPPLY CHAIN (MAIDSTONE),id:14163435   ,  14.23
Department of Health,Guys and St Thomas NHS Foundation Trust,29/07/2021,(83400) Office Equipment,(id:42258) Oncology Services,NHS SUPPLY CHAIN (MAIDSTONE),id:14231714   ,  67.47
Department of Health,Guys and St Thomas NHS Foundation Trust,16/07/2021,(82800) Bedding & Linen,(id:42258) Oncology Services,NHS SUPPLY CHAIN (MAIDSTONE),id:14160388    , 189.30
Department of Health,Guys and St Thomas NHS Foundation Trust,29/07/2021,(52062) Radiographers,(id:42258) Oncology Services,PRICEWATERHOUSECOOPERS LLP,id:14286574   ,1237.57
Department of Health,Guys and St Thomas NHS Foundation Trust,09/07/2021,(89595) Non-Healthcare from Foundation Trusts,(id:42258) Oncology Services,OXLEAS NHS FOUNDATION TRUST,id:14233321   ,    13256.00
Department of Health,Guys and St Thomas NHS Foundation Trust,16/07/2021,(81500) X Ray Equipment Purchase,(id:42258) Oncology Services,NHS SUPPLY CHAIN (MAIDSTONE),id:14198514, 310.80
Department of Health,Guys and St Thomas NHS Foundation Trust,16/07/2021,(83400) Office Equipment,(id:42261) Oncology Services,NHS SUPPLY CHAIN (MAIDSTONE),id:14177634   ,  35.70
Department of Health,Guys and St Thomas NHS Foundation Trust,02/07/2021,(81000) Surgical Appliances,(id:42261) Oncology Services,TALAR MADE ORTHOTICS LTD,id:14210769    ,  12.00
Department of Health,Guys and St Thomas NHS Foundation Trust,23/07/2021,(81000) Surgical Appliances,(id:42261) Oncology Services,MEDI UK LTD,id:14258196  , 255.76
Department of Health,Guys and St Thomas NHS Foundation Trust,23/07/2021,(81200) Medical Surgical Supplies & Equipment,(id:42260) Oncology Services,KIMAL PLC,id:13689314 ,4410.62
Department of Health,Guys and St Thomas NHS Foundation Trust,29/07/2021,(81230) Medical Surgical Supplies & Equipment,(id:42260) Oncology Services,VYGON (UK) LTD,id:14238248 , 990.14
Department of Health,Guys and St Thomas NHS Foundation Trust,29/07/2021,(81230) Medical Surgical Supplies & Equipment,(id:42260) Oncology Services,VYGON (UK) LTD,id:14238249 , 990.14
Department of Health,Guys and St Thomas NHS Foundation Trust,16/07/2021,(82800) Bedding & Linen,(id:42260) Oncology Services,NHS SUPPLY CHAIN (MAIDSTONE),id:14177634    , 201.27
Department of Health,Guys and St Thomas NHS Foundation Trust,16/07/2021,(82800) Bedding & Linen,(id:42260) Oncology Services,NHS SUPPLY CHAIN (MAIDSTONE),id:14198514    , 223.64
Department of Health,Guys and St Thomas NHS Foundation Trust,29/07/2021,(81255) Medical Surgical Supplies & Equipment,(id:42260) Oncology Services,NHS SUPPLY CHAIN (MAIDSTONE),id:14231714  ,    .62
Department of Health,Guys and St Thomas NHS Foundation Trust,29/07/2021,(83400) Office Equipment,(id:42260) Oncology Services,NHS SUPPLY CHAIN (MAIDSTONE),id:14231714   ,  20.06
Department of Health,Guys and St Thomas NHS Foundation Trust,16/07/2021,(81700) Lab Equipment Purchase,(id:42260) Oncology Services,NHS SUPPLY CHAIN (MAIDSTONE),id:14160388  , 368.19
Department of Health,Guys and St Thomas NHS Foundation Trust,29/07/2021,(81700) Lab Equipment Purchase,(id:42260) Oncology Services,NHS SUPPLY CHAIN (MAIDSTONE),id:14231714  , 322.95
Department of Health,Guys and St Thomas NHS Foundation Trust,16/07/2021,(82700) Uniforms & Clothing,(id:42260) Oncology Services,NHS SUPPLY CHAIN (MAIDSTONE),id:14163435, 264.84
Department of Health,Guys and St Thomas NHS Foundation Trust,16/07/2021,(82000) Provisions & Kitchens,(id:42259) Oncology Services,NHS SUPPLY CHAIN (MAIDSTONE),id:14213935   ,  80.08
Department of Health,Guys and St Thomas NHS Foundation Trust,16/07/2021,(82000) Provisions & Kitchens,(id:42259) Oncology Services,NHS SUPPLY CHAIN (MAIDSTONE),id:14163435   , 349.36
Department of Health,Guys and St Thomas NHS Foundation Trust,16/07/2021,(50552) Qualified Nursing Staff,(id:42259) Oncology Services,MSI GROUP LTD,id:14250259 , 373.57
Department of Health,Guys and St Thomas NHS Foundation Trust,29/07/2021,(81225) Medical Surgical Supplies & Equipment,(id:42259) Oncology Services,NHS SUPPLY CHAIN (MAIDSTONE),id:14231714  ,   3.12
Department of Health,Guys and St Thomas NHS Foundation Trust,16/07/2021,(82000) Provisions & Kitchens,(id:42280) Surgical Oncology,NHS SUPPLY CHAIN (MAIDSTONE),id:14198514   ,  15.60
Department of Health,Guys and St Thomas NHS Foundation Trust,02/07/2021,(81200) Medical Surgical Supplies & Equipment,(id:42280) Surgical Oncology,RAISE HEALTHCARE PVT LTD,id:14210474 ,2730.00
Department of Health,Guys and St Thomas NHS Foundation Trust,02/07/2021,(81200) Medical Surgical Supplies & Equipment,(id:42280) Surgical Oncology,JOHNSON & JOHNSON MEDICAL LTD,id:14199508 ,    -1088.36
Department of Health,Guys and St Thomas NHS Foundation Trust,09/07/2021,(81200) Medical Surgical Supplies & Equipment,(id:42280) Surgical Oncology,JOHNSON & JOHNSON MEDICAL LTD,id:14163861 , 748.51
Department of Health,Guys and St Thomas NHS Foundation Trust,09/07/2021,(81200) Medical Surgical Supplies & Equipment,(id:42280) Surgical Oncology,JOHNSON & JOHNSON MEDICAL LTD,id:14110832 , 913.92
Department of Health,Guys and St Thomas NHS Foundation Trust,16/07/2021,(81200) Medical Surgical Supplies & Equipment,(id:42280) Surgical Oncology,JOHNSON & JOHNSON MEDICAL LTD,id:14030141 , 917.84
Department of Health,Guys and St Thomas NHS Foundation Trust,16/07/2021,(81200) Medical Surgical Supplies & Equipment,(id:42280) Surgical Oncology,NHS SUPPLY CHAIN (MAIDSTONE),id:14177634  ,1217.04
Department of Health,Guys and St Thomas NHS Foundation Trust,16/07/2021,(81200) Medical Surgical Supplies & Equipment,(id:42280) Surgical Oncology,JOHNSON & JOHNSON MEDICAL LTD,id:13777605 ,1879.56
Department of Health,Guys and St Thomas NHS Foundation Trust,16/07/2021,(81200) Medical Surgical Supplies & Equipment,(id:42280) Surgical Oncology,NHS SUPPLY CHAIN (MAIDSTONE),id:14163435  ,  15.66
Department of Health,Guys and St Thomas NHS Foundation Trust,29/07/2021,(81200) Medical Surgical Supplies & Equipment,(id:42280) Surgical Oncology,Q MEDICAL TECHNOLOGIES LTD,id:14275918    ,    -1428.00
Department of Health,Guys and St Thomas NHS Foundation Trust,23/07/2021,(81200) Medical Surgical Supplies & Equipment,(id:42280) Surgical Oncology,ADVANTECH SURGICAL LTD,id:14266754   ,5916.20
Department of Health,Guys and St Thomas NHS Foundation Trust,16/07/2021,(83400) Office Equipment,(id:42280) Surgical Oncology,NHS SUPPLY CHAIN (MAIDSTONE),id:14160388   ,  60.16
Department of Health,Guys and St Thomas NHS Foundation Trust,16/07/2021,(84500) Establishment,(id:42280) Surgical Oncology,OFFICE DEPOT UK LTD,id:14214427, 191.11
Department of Health,Guys and St Thomas NHS Foundation Trust,02/07/2021,(81000) Surgical Appliances,(id:42280) Surgical Oncology,MEDI UK LTD,id:14210718  , 112.74
Department of Health,Guys and St Thomas NHS Foundation Trust,29/07/2021,(82600) Uniforms & Clothing,(id:42280) Surgical Oncology,DICT8 LIMITED,id:14279043, 810.12
Department of Health,Guys and St Thomas NHS Foundation Trust,16/07/2021,(81100) Dressings,(id:243406) Surgical Oncology,NHS SUPPLY CHAIN (MAIDSTONE),id:14177634    ,  98.13
Department of Health,Guys and St Thomas NHS Foundation Trust,16/07/2021,(81100) Dressings,(id:42473) Surgical Oncology,NHS SUPPLY CHAIN (MAIDSTONE),id:14177634, 385.38
Department of Health,Guys and St Thomas NHS Foundation Trust,16/07/2021,(81100) Dressings,(id:42473) Surgical Oncology,NHS SUPPLY CHAIN (MAIDSTONE),id:14198514, 252.76
Department of Health,Guys and St Thomas NHS Foundation Trust,02/07/2021,(81200) Medical Surgical Supplies & Equipment,(id:42473) Surgical Oncology,CCMED LTD,id:14208535 , 867.00
Department of Health,Guys and St Thomas NHS Foundation Trust,02/07/2021,(81200) Medical Surgical Supplies & Equipment,(id:42473) Surgical Oncology,JOHNSON & JOHNSON MEDICAL LTD,id:14175960 ,6533.77
Department of Health,Guys and St Thomas NHS Foundation Trust,09/07/2021,(81200) Medical Surgical Supplies & Equipment,(id:42473) Surgical Oncology,CCMED LTD,id:14223354 , 867.00
Department of Health,Guys and St Thomas NHS Foundation Trust,09/07/2021,(81200) Medical Surgical Supplies & Equipment,(id:42473) Surgical Oncology,NEOMED UK LTD,id:14142723  ,4762.80
Department of Health,Guys and St Thomas NHS Foundation Trust,09/07/2021,(81200) Medical Surgical Supplies & Equipment,(id:42473) Surgical Oncology,MEDTRONIC LTD,id:14104651  , 547.20
Department of Health,Guys and St Thomas NHS Foundation Trust,09/07/2021,(81200) Medical Surgical Supplies & Equipment,(id:42473) Surgical Oncology,MEDTRONIC LTD,id:14104644  , 619.20
Department of Health,Guys and St Thomas NHS Foundation Trust,16/07/2021,(81200) Medical Surgical Supplies & Equipment,(id:42473) Surgical Oncology,JOHNSON & JOHNSON MEDICAL LTD,id:14218025 , 886.20
Department of Health,Guys and St Thomas NHS Foundation Trust,02/07/2021,(81300) Medical Surgical Supplies & Equipment,(id:42473) Surgical Oncology,CLS SURGICAL LTD,id:14120034    ,3403.63
Department of Health,Guys and St Thomas NHS Foundation Trust,16/07/2021,(81300) Medical Surgical Supplies & Equipment,(id:42473) Surgical Oncology,CLS SURGICAL LTD,id:13647901    ,2203.63
Department of Health,Guys and St Thomas NHS Foundation Trust,16/07/2021,(81000) Surgical Appliances,(id:42473) Surgical Oncology,NHS SUPPLY CHAIN (MAIDSTONE),id:14163435,  60.48
Department of Health,Guys and St Thomas NHS Foundation Trust,09/07/2021,(81200) Medical Surgical Supplies & Equipment,(id:42474) Surgical Oncology,MEDTRONIC LTD,id:14200151  , 488.40
Department of Health,Guys and St Thomas NHS Foundation Trust,09/07/2021,(81200) Medical Surgical Supplies & Equipment,(id:42474) Surgical Oncology,MEDTRONIC LTD,id:14193522  , 622.80
Department of Health,Guys and St Thomas NHS Foundation Trust,09/07/2021,(81200) Medical Surgical Supplies & Equipment,(id:42474) Surgical Oncology,MEDTRONIC LTD,id:14193520  , 950.40
Department of Health,Guys and St Thomas NHS Foundation Trust,16/07/2021,(81200) Medical Surgical Supplies & Equipment,(id:42474) Surgical Oncology,DELTA SURGICAL LTD,id:14183525  , 590.40
Department of Health,Guys and St Thomas NHS Foundation Trust,09/07/2021,(84656) Establishment,(id:42474) Surgical Oncology,DICT8 LIMITED,id:14212794 ,1522.08
Department of Health,Guys and St Thomas NHS Foundation Trust,16/07/2021,(82800) Bedding & Linen,(id:42475) Surgical Oncology,NHS SUPPLY CHAIN (MAIDSTONE),id:14177634    , 158.15
Department of Health,Guys and St Thomas NHS Foundation Trust,16/07/2021,(81200) Medical Surgical Supplies & Equipment,(id:42475) Surgical Oncology,STARKEY LABS LTD,id:14111773    ,   -52015.20
Department of Health,Guys and St Thomas NHS Foundation Trust,02/07/2021,(81215) Medical Surgical Supplies & Equipment,(id:42475) Surgical Oncology,COCHLEAR EUROPE LTD,id:14218896 ,    11100.00
Department of Health,Guys and St Thomas NHS Foundation Trust,09/07/2021,(81215) Medical Surgical Supplies & Equipment,(id:42475) Surgical Oncology,COCHLEAR EUROPE LTD,id:14232326 ,5394.00
Department of Health,Guys and St Thomas NHS Foundation Trust,16/07/2021,(81215) Medical Surgical Supplies & Equipment,(id:42475) Surgical Oncology,NHS SUPPLY CHAIN (MAIDSTONE),id:14213935  ,    29308.39
Department of Health,Guys and St Thomas NHS Foundation Trust,16/07/2021,(81215) Medical Surgical Supplies & Equipment,(id:42475) Surgical Oncology,COCHLEAR EUROPE LTD,id:14233194 ,4758.00
Department of Health,Guys and St Thomas NHS Foundation Trust,29/07/2021,(81215) Medical Surgical Supplies & Equipment,(id:42475) Surgical Oncology,ADVANCED BIONICS SARL (AND UK LTD),id:14271788 ,2834.40
Department of Health,Guys and St Thomas NHS Foundation Trust,02/07/2021,(81225) Medical Surgical Supplies & Equipment,(id:42475) Surgical Oncology,COCHLEAR EUROPE LTD,id:14217097 ,1892.40
Department of Health,Guys and St Thomas NHS Foundation Trust,23/07/2021,(81225) Medical Surgical Supplies & Equipment,(id:42475) Surgical Oncology,COCHLEAR EUROPE LTD,id:14261040 , 609.60
Department of Health,Guys and St Thomas NHS Foundation Trust,02/07/2021,(81230) Medical Surgical Supplies & Equipment,(id:42286) Surgical Oncology,PULMONX INTERNATIONAL SARL,id:14109795    , 780.00
Department of Health,Guys and St Thomas NHS Foundation Trust,16/07/2021,(82800) Bedding & Linen,(id:42286) Surgical Oncology,NHS SUPPLY CHAIN (MAIDSTONE),id:14177634    , 110.40
Department of Health,Guys and St Thomas NHS Foundation Trust,02/07/2021,(81245) Medical Surgical Supplies & Equipment,(id:42286) Surgical Oncology,INTER GLOBAL SURGICAL LLP,id:14216942, 508.32
Department of Health,Guys and St Thomas NHS Foundation Trust,16/07/2021,(81200) Medical Surgical Supplies & Equipment,(id:42286) Surgical Oncology,NHS SUPPLY CHAIN (MAIDSTONE),id:14198514  ,    11958.07
Department of Health,Guys and St Thomas NHS Foundation Trust,16/07/2021,(81200) Medical Surgical Supplies & Equipment,(id:42286) Surgical Oncology,WL GORE & ASSOCIATES (UK) LTD,id:14243854 ,1183.20
Department of Health,Guys and St Thomas NHS Foundation Trust,23/07/2021,(81200) Medical Surgical Supplies & Equipment,(id:42286) Surgical Oncology,MEDTRONIC LTD,id:14233677  ,1229.26
Department of Health,Guys and St Thomas NHS Foundation Trust,23/07/2021,(81200) Medical Surgical Supplies & Equipment,(id:42286) Surgical Oncology,MEDELA UK LTD,id:14260515  ,4034.40
Department of Health,Guys and St Thomas NHS Foundation Trust,09/07/2021,(81200) Medical Surgical Supplies & Equipment,(id:42286) Surgical Oncology,MEDTRONIC LTD,id:14206590  ,1386.54
Department of Health,Guys and St Thomas NHS Foundation Trust,09/07/2021,(81200) Medical Surgical Supplies & Equipment,(id:42286) Surgical Oncology,ALBYN MEDICAL LTD,id:14229265   ,1821.60
Department of Health,Guys and St Thomas NHS Foundation Trust,09/07/2021,(81200) Medical Surgical Supplies & Equipment,(id:42286) Surgical Oncology,MEDTRONIC LTD,id:14174766  ,3725.63
Department of Health,Guys and St Thomas NHS Foundation Trust,09/07/2021,(81200) Medical Surgical Supplies & Equipment,(id:42286) Surgical Oncology,MEDTRONIC LTD,id:14187555  , 962.97
Department of Health,Guys and St Thomas NHS Foundation Trust,09/07/2021,(81200) Medical Surgical Supplies & Equipment,(id:42286) Surgical Oncology,MEDTRONIC LTD,id:14201258  ,1989.50
Department of Health,Guys and St Thomas NHS Foundation Trust,09/07/2021,(81200) Medical Surgical Supplies & Equipment,(id:42286) Surgical Oncology,MEDTRONIC LTD,id:14184600  ,5508.00
Department of Health,Guys and St Thomas NHS Foundation Trust,29/07/2021,(81200) Medical Surgical Supplies & Equipment,(id:42286) Surgical Oncology,LINDSAY SURGICAL SUPPLIES LIMITED,id:14272449  , 940.80
Department of Health,Guys and St Thomas NHS Foundation Trust,29/07/2021,(81200) Medical Surgical Supplies & Equipment,(id:42286) Surgical Oncology,MEDTRONIC LTD,id:14241469  ,1304.95
Department of Health,Guys and St Thomas NHS Foundation Trust,29/07/2021,(81200) Medical Surgical Supplies & Equipment,(id:42286) Surgical Oncology,MEDTRONIC LTD,id:14241369  ,1368.54
Department of Health,Guys and St Thomas NHS Foundation Trust,29/07/2021,(82000) Provisions & Kitchens,(id:42284) Surgical Oncology,NHS SUPPLY CHAIN (MAIDSTONE),id:14231714   , 248.73
Department of Health,Guys and St Thomas NHS Foundation Trust,16/07/2021,(82800) Bedding & Linen,(id:42284) Surgical Oncology,NHS SUPPLY CHAIN (MAIDSTONE),id:14177634    ,  77.17
Department of Health,Guys and St Thomas NHS Foundation Trust,16/07/2021,(81200) Medical Surgical Supplies & Equipment,(id:42284) Surgical Oncology,NHS SUPPLY CHAIN (MAIDSTONE),id:14163435  , 445.50
Department of Health,Guys and St Thomas NHS Foundation Trust,16/07/2021,(83400) Office Equipment,(id:42284) Surgical Oncology,NHS SUPPLY CHAIN (MAIDSTONE),id:14177634   , 151.99
Department of Health,Guys and St Thomas NHS Foundation Trust,16/07/2021,(81225) Medical Surgical Supplies & Equipment,(id:42284) Surgical Oncology,NHS SUPPLY CHAIN (MAIDSTONE),id:14213935  ,  72.72
Department of Health,Guys and St Thomas NHS Foundation Trust,16/07/2021,(81255) Medical Surgical Supplies & Equipment,(id:42284) Surgical Oncology,NHS SUPPLY CHAIN (MAIDSTONE),id:14163435  ,  10.80
Department of Health,Guys and St Thomas NHS Foundation Trust,16/07/2021,(82000) Provisions & Kitchens,(id:42470) Surgical Oncology,NHS SUPPLY CHAIN (MAIDSTONE),id:14160388   ,  57.60
Department of Health,Guys and St Thomas NHS Foundation Trust,16/07/2021,(82000) Provisions & Kitchens,(id:42470) Surgical Oncology,NHS SUPPLY CHAIN (MAIDSTONE),id:14177634   , 497.28
Department of Health,Guys and St Thomas NHS Foundation Trust,02/07/2021,(50552) Qualified Nursing Staff,(id:42470) Surgical Oncology,CONTINENTAL NURSE LTD,id:14217307   ,2493.60
Department of Health,Guys and St Thomas NHS Foundation Trust,16/07/2021,(81255) Medical Surgical Supplies & Equipment,(id:42470) Surgical Oncology,NHS SUPPLY CHAIN (MAIDSTONE),id:14198514  ,   1.70
Department of Health,Guys and St Thomas NHS Foundation Trust,16/07/2021,(83400) Office Equipment,(id:42470) Surgical Oncology,NHS SUPPLY CHAIN (MAIDSTONE),id:14177634   , 177.33
Department of Health,Guys and St Thomas NHS Foundation Trust,16/07/2021,(83400) Office Equipment,(id:42470) Surgical Oncology,NHS SUPPLY CHAIN (MAIDSTONE),id:14213935   , 143.13
Department of Health,Guys and St Thomas NHS Foundation Trust,16/07/2021,(81700) Lab Equipment Purchase,(id:42470) Surgical Oncology,NHS SUPPLY CHAIN (MAIDSTONE),id:14160388  , 101.66
Department of Health,Guys and St Thomas NHS Foundation Trust,16/07/2021,(81200) Medical Surgical Supplies & Equipment,(id:42508) Surgical Oncology,NHS SUPPLY CHAIN (MAIDSTONE),id:14163435  ,  88.26
Department of Health,Guys and St Thomas NHS Foundation Trust,16/07/2021,(81200) Medical Surgical Supplies & Equipment,(id:42508) Surgical Oncology,NHS SUPPLY CHAIN (MAIDSTONE),id:14198514  ,  19.20
Department of Health,Guys and St Thomas NHS Foundation Trust,16/07/2021,(83400) Office Equipment,(id:42508) Surgical Oncology,NHS SUPPLY CHAIN (MAIDSTONE),id:14163435   ,  22.33
Department of Health,Guys and St Thomas NHS Foundation Trust,16/07/2021,(82600) Uniforms & Clothing,(id:41858) Acute & General Medicine,NHS SUPPLY CHAIN (MAIDSTONE),id:14163435   ,  61.20
Department of Health,Guys and St Thomas NHS Foundation Trust,29/07/2021,(82700) Uniforms & Clothing,(id:41858) Acute & General Medicine,NHS SUPPLY CHAIN (MAIDSTONE),id:14231714   ,  31.68
Department of Health,Guys and St Thomas NHS Foundation Trust,16/07/2021,(83400) Office Equipment,(id:41858) Acute & General Medicine,NHS SUPPLY CHAIN (MAIDSTONE),id:14177634 ,  42.46
Department of Health,Guys and St Thomas NHS Foundation Trust,16/07/2021,(82800) Bedding & Linen,(id:41858) Acute & General Medicine,NHS SUPPLY CHAIN (MAIDSTONE),id:14163435  , 279.42
Department of Health,Guys and St Thomas NHS Foundation Trust,16/07/2021,(81100) Dressings,(id:41858) Acute & General Medicine,NHS SUPPLY CHAIN (MAIDSTONE),id:14213935   ,2737.98
Department of Health,Guys and St Thomas NHS Foundation Trust,16/07/2021,(81100) Dressings,(id:41858) Acute & General Medicine,NHS SUPPLY CHAIN (MAIDSTONE),id:14163435   ,6302.18
Department of Health,Guys and St Thomas NHS Foundation Trust,23/07/2021,(50552) Qualified Nursing Staff,(id:41858) Acute & General Medicine,GLOBE LOCUMS LTD,id:14268583 , 270.26
Department of Health,Guys and St Thomas NHS Foundation Trust,16/07/2021,(81200) Medical Surgical Supplies & Equipment,(id:41858) Acute & General Medicine,NHS SUPPLY CHAIN (MAIDSTONE),id:14177634, 928.00
Department of Health,Guys and St Thomas NHS Foundation Trust,16/07/2021,(82600) Uniforms & Clothing,(id:41859) Acute & General Medicine,NHS SUPPLY CHAIN (MAIDSTONE),id:14198514   ,  25.06
Department of Health,Guys and St Thomas NHS Foundation Trust,29/07/2021,(82700) Uniforms & Clothing,(id:41859) Acute & General Medicine,NHS SUPPLY CHAIN (MAIDSTONE),id:14231714   ,  53.52
Department of Health,Guys and St Thomas NHS Foundation Trust,16/07/2021,(82000) Provisions & Kitchens,(id:41859) Acute & General Medicine,NHS SUPPLY CHAIN (MAIDSTONE),id:14213935 ,   8.74
Department of Health,Guys and St Thomas NHS Foundation Trust,16/07/2021,(83400) Office Equipment,(id:41859) Acute & General Medicine,NHS SUPPLY CHAIN (MAIDSTONE),id:14213935 , 127.15
Department of Health,Guys and St Thomas NHS Foundation Trust,16/07/2021,(82800) Bedding & Linen,(id:41859) Acute & General Medicine,NHS SUPPLY CHAIN (MAIDSTONE),id:14213935  , 171.98
Department of Health,Guys and St Thomas NHS Foundation Trust,16/07/2021,(81100) Dressings,(id:41859) Acute & General Medicine,NHS SUPPLY CHAIN (MAIDSTONE),id:14160388   , 306.48
Department of Health,Guys and St Thomas NHS Foundation Trust,16/07/2021,(81100) Dressings,(id:41859) Acute & General Medicine,NHS SUPPLY CHAIN (MAIDSTONE),id:14177634   , 179.81
Department of Health,Guys and St Thomas NHS Foundation Trust,09/07/2021,(50552) Qualified Nursing Staff,(id:41859) Acute & General Medicine,MSI GROUP LTD,id:14236538    , 341.87
Department of Health,Guys and St Thomas NHS Foundation Trust,16/07/2021,(50552) Qualified Nursing Staff,(id:41859) Acute & General Medicine,CARE PROVIDERS HEALTHCARE,id:14250175  , 621.92
Department of Health,Guys and St Thomas NHS Foundation Trust,16/07/2021,(81255) Medical Surgical Supplies & Equipment,(id:41859) Acute & General Medicine,NHS SUPPLY CHAIN (MAIDSTONE),id:14177634,    .94
Department of Health,Guys and St Thomas NHS Foundation Trust,16/07/2021,(50522) Unqualified Nursing Staff,(id:41859) Acute & General Medicine,CARE PROVIDERS HEALTHCARE,id:14250416, 252.92
Department of Health,Guys and St Thomas NHS Foundation Trust,16/07/2021,(82600) Uniforms & Clothing,(id:41860) Acute & General Medicine,NHS SUPPLY CHAIN (MAIDSTONE),id:14160388   ,  30.60
Department of Health,Guys and St Thomas NHS Foundation Trust,16/07/2021,(82700) Uniforms & Clothing,(id:41860) Acute & General Medicine,NHS SUPPLY CHAIN (MAIDSTONE),id:14163435   ,  31.68
Department of Health,Guys and St Thomas NHS Foundation Trust,16/07/2021,(82000) Provisions & Kitchens,(id:41860) Acute & General Medicine,NHS SUPPLY CHAIN (MAIDSTONE),id:14198514 , 300.29
Department of Health,Guys and St Thomas NHS Foundation Trust,16/07/2021,(83400) Office Equipment,(id:41860) Acute & General Medicine,NHS SUPPLY CHAIN (MAIDSTONE),id:14198514 ,  50.41
Department of Health,Guys and St Thomas NHS Foundation Trust,16/07/2021,(82800) Bedding & Linen,(id:41860) Acute & General Medicine,NHS SUPPLY CHAIN (MAIDSTONE),id:14198514  ,  84.55
Department of Health,Guys and St Thomas NHS Foundation Trust,16/07/2021,(50552) Qualified Nursing Staff,(id:41860) Acute & General Medicine,CONTINENTAL NURSE LTD,id:14250385 ,2677.41
Department of Health,Guys and St Thomas NHS Foundation Trust,02/07/2021,(50552) Qualified Nursing Staff,(id:41860) Acute & General Medicine,CARE PROVIDERS HEALTHCARE,id:14221576  , 378.47
Department of Health,Guys and St Thomas NHS Foundation Trust,23/07/2021,(50552) Qualified Nursing Staff,(id:41860) Acute & General Medicine,GLOBE LOCUMS LTD,id:14268583 , 270.26
Department of Health,Guys and St Thomas NHS Foundation Trust,16/07/2021,(50522) Unqualified Nursing Staff,(id:41860) Acute & General Medicine,GLOBE LOCUMS LTD,id:14250214    , 469.56
Department of Health,Guys and St Thomas NHS Foundation Trust,23/07/2021,(50522) Unqualified Nursing Staff,(id:41860) Acute & General Medicine,GLOBE LOCUMS LTD,id:14268646    , 436.84
Department of Health,Guys and St Thomas NHS Foundation Trust,16/07/2021,(81225) Medical Surgical Supplies & Equipment,(id:41860) Acute & General Medicine,NHS SUPPLY CHAIN (MAIDSTONE),id:14163435,  29.12
Department of Health,Guys and St Thomas NHS Foundation Trust,16/07/2021,(81700) Lab Equipment Purchase,(id:2182419) Acute & General Medicine,NHS SUPPLY CHAIN (MAIDSTONE),id:14177634   , 206.19
Department of Health,Guys and St Thomas NHS Foundation Trust,29/07/2021,(81255) Medical Surgical Supplies & Equipment,(id:2182419) Acute & General Medicine,NHS SUPPLY CHAIN (MAIDSTONE),id:14231714   ,  11.67
Department of Health,Guys and St Thomas NHS Foundation Trust,02/07/2021,(81200) Medical Surgical Supplies & Equipment,(id:2182419) Acute & General Medicine,VISUAL SYSTEMS & SIGN CO LTD,id:14211174   , 207.14
Department of Health,Guys and St Thomas NHS Foundation Trust,16/07/2021,(81200) Medical Surgical Supplies & Equipment,(id:2182419) Acute & General Medicine,NHS SUPPLY CHAIN (MAIDSTONE),id:14213935   ,1603.45
Department of Health,Guys and St Thomas NHS Foundation Trust,02/07/2021,(50522) Unqualified Nursing Staff,(id:2182419) Acute & General Medicine,CARE PROVIDERS HEALTHCARE,id:14221556   , 279.42
Department of Health,Guys and St Thomas NHS Foundation Trust,09/07/2021,(50522) Unqualified Nursing Staff,(id:2182419) Acute & General Medicine,GLOBE LOCUMS LTD,id:14236424  , 224.53
Department of Health,Guys and St Thomas NHS Foundation Trust,09/07/2021,(50522) Unqualified Nursing Staff,(id:2182419) Acute & General Medicine,MSI GROUP LTD,id:14236183, 267.66
Department of Health,Guys and St Thomas NHS Foundation Trust,16/07/2021,(82800) Bedding & Linen,(id:41868) Acute & General Medicine,NHS SUPPLY CHAIN (MAIDSTONE),id:14177634  , 151.72
Department of Health,Guys and St Thomas NHS Foundation Trust,16/07/2021,(82800) Bedding & Linen,(id:41868) Acute & General Medicine,NHS SUPPLY CHAIN (MAIDSTONE),id:14160388  ,  93.86
Department of Health,Guys and St Thomas NHS Foundation Trust,16/07/2021,(81200) Medical Surgical Supplies & Equipment,(id:41868) Acute & General Medicine,NHS SUPPLY CHAIN (MAIDSTONE),id:14198514, 300.59
Department of Health,Guys and St Thomas NHS Foundation Trust,16/07/2021,(81255) Medical Surgical Supplies & Equipment,(id:41868) Acute & General Medicine,NHS SUPPLY CHAIN (MAIDSTONE),id:14177634,   5.52
Department of Health,Guys and St Thomas NHS Foundation Trust,16/07/2021,(82600) Uniforms & Clothing,(id:41869) Acute & General Medicine,NHS SUPPLY CHAIN (MAIDSTONE),id:14163435   ,   5.76
Department of Health,Guys and St Thomas NHS Foundation Trust,16/07/2021,(82000) Provisions & Kitchens,(id:41869) Acute & General Medicine,NHS SUPPLY CHAIN (MAIDSTONE),id:14160388 ,  85.72
Department of Health,Guys and St Thomas NHS Foundation Trust,16/07/2021,(82800) Bedding & Linen,(id:41869) Acute & General Medicine,NHS SUPPLY CHAIN (MAIDSTONE),id:14177634  , 597.22
Department of Health,Guys and St Thomas NHS Foundation Trust,16/07/2021,(82800) Bedding & Linen,(id:41869) Acute & General Medicine,NHS SUPPLY CHAIN (MAIDSTONE),id:14198514  , 555.19
Department of Health,Guys and St Thomas NHS Foundation Trust,16/07/2021,(81100) Dressings,(id:41869) Acute & General Medicine,NHS SUPPLY CHAIN (MAIDSTONE),id:14177634   ,1452.58
Department of Health,Guys and St Thomas NHS Foundation Trust,29/07/2021,(81100) Dressings,(id:41869) Acute & General Medicine,NHS SUPPLY CHAIN (MAIDSTONE),id:14231714   ,1030.32
Department of Health,Guys and St Thomas NHS Foundation Trust,16/07/2021,(81225) Medical Surgical Supplies & Equipment,(id:41869) Acute & General Medicine,NHS SUPPLY CHAIN (MAIDSTONE),id:14163435,  41.88
Department of Health,Guys and St Thomas NHS Foundation Trust,16/07/2021,(81700) Lab Equipment Purchase,(id:41869) Acute & General Medicine,NHS SUPPLY CHAIN (MAIDSTONE),id:14160388, 249.49
Department of Health,Guys and St Thomas NHS Foundation Trust,23/07/2021,(50552) Qualified Nursing Staff,(id:41872) Acute & General Medicine,FIRSTPOINT HEALTHCARE LTD,id:14253009  , 429.99
Department of Health,Guys and St Thomas NHS Foundation Trust,29/07/2021,(50552) Qualified Nursing Staff,(id:41872) Acute & General Medicine,MEDICSPRO LTD,id:14284163    , 416.87
Department of Health,Guys and St Thomas NHS Foundation Trust,02/07/2021,(50522) Unqualified Nursing Staff,(id:41872) Acute & General Medicine,MSI GROUP LTD,id:14217422  , 259.78
Department of Health,Guys and St Thomas NHS Foundation Trust,09/07/2021,(50522) Unqualified Nursing Staff,(id:41872) Acute & General Medicine,GLOBE LOCUMS LTD,id:14236133    , 267.02
Department of Health,Guys and St Thomas NHS Foundation Trust,16/07/2021,(82600) Uniforms & Clothing,(id:41882) Acute & General Medicine,NHS SUPPLY CHAIN (MAIDSTONE),id:14198514   ,  16.85
Department of Health,Guys and St Thomas NHS Foundation Trust,29/07/2021,(82600) Uniforms & Clothing,(id:41882) Acute & General Medicine,NHS SUPPLY CHAIN (MAIDSTONE),id:14231714   ,  21.06
Department of Health,Guys and St Thomas NHS Foundation Trust,16/07/2021,(82000) Provisions & Kitchens,(id:41882) Acute & General Medicine,NHS SUPPLY CHAIN (MAIDSTONE),id:14163435 ,   2.88
Department of Health,Guys and St Thomas NHS Foundation Trust,16/07/2021,(81200) Medical Surgical Supplies & Equipment,(id:41882) Acute & General Medicine,BARD LTD,id:14176024, 583.50
Department of Health,Guys and St Thomas NHS Foundation Trust,23/07/2021,(50200) Consultants,(id:41876) Acute & General Medicine,KINGS COLLEGE LONDON:03529700,id:14141094,3053.40
Department of Health,Guys and St Thomas NHS Foundation Trust,16/07/2021,(83500) Furniture & Fittings,(id:41878) Acute & General Medicine,OFFICE DEPOT UK LTD,id:14206878 ,  13.76
Department of Health,Guys and St Thomas NHS Foundation Trust,16/07/2021,(81100) Dressings,(id:41878) Acute & General Medicine,NHS SUPPLY CHAIN (MAIDSTONE),id:14160388   , 206.17
Department of Health,Guys and St Thomas NHS Foundation Trust,23/07/2021,(50522) Unqualified Nursing Staff,(id:41878) Acute & General Medicine,GLOBE LOCUMS LTD,id:14268581    , 201.08
Department of Health,Guys and St Thomas NHS Foundation Trust,02/07/2021,(50522) Unqualified Nursing Staff,(id:41878) Acute & General Medicine,GLOBE LOCUMS LTD,id:14217258    , 224.80
Department of Health,Guys and St Thomas NHS Foundation Trust,02/07/2021,(50522) Unqualified Nursing Staff,(id:41878) Acute & General Medicine,MSI GROUP LTD,id:14217422  , 259.78
Department of Health,Guys and St Thomas NHS Foundation Trust,02/07/2021,(50522) Unqualified Nursing Staff,(id:41878) Acute & General Medicine,MSI GROUP LTD,id:14217387  , 293.19
Department of Health,Guys and St Thomas NHS Foundation Trust,09/07/2021,(50522) Unqualified Nursing Staff,(id:41878) Acute & General Medicine,CARE PROVIDERS HEALTHCARE,id:14240095, 220.26
Department of Health,Guys and St Thomas NHS Foundation Trust,09/07/2021,(50522) Unqualified Nursing Staff,(id:41878) Acute & General Medicine,CARE PROVIDERS HEALTHCARE,id:14240076, 269.60
Department of Health,Guys and St Thomas NHS Foundation Trust,09/07/2021,(50522) Unqualified Nursing Staff,(id:41878) Acute & General Medicine,CARE PROVIDERS HEALTHCARE,id:14236512, 592.24
Department of Health,Guys and St Thomas NHS Foundation Trust,09/07/2021,(50522) Unqualified Nursing Staff,(id:41878) Acute & General Medicine,HAYS HEALTHCARE LTD,id:14236556 , 567.64
Department of Health,Guys and St Thomas NHS Foundation Trust,29/07/2021,(82700) Uniforms & Clothing,(id:41879) Acute & General Medicine,NHS SUPPLY CHAIN (MAIDSTONE),id:14231714   ,  52.97
Department of Health,Guys and St Thomas NHS Foundation Trust,16/07/2021,(82000) Provisions & Kitchens,(id:41879) Acute & General Medicine,NHS SUPPLY CHAIN (MAIDSTONE),id:14177634 , 265.81
Department of Health,Guys and St Thomas NHS Foundation Trust,16/07/2021,(81100) Dressings,(id:41879) Acute & General Medicine,NHS SUPPLY CHAIN (MAIDSTONE),id:14163435   , 247.53
Department of Health,Guys and St Thomas NHS Foundation Trust,29/07/2021,(81100) Dressings,(id:41879) Acute & General Medicine,NHS SUPPLY CHAIN (MAIDSTONE),id:14231714   , 188.01
Department of Health,Guys and St Thomas NHS Foundation Trust,16/07/2021,(50522) Unqualified Nursing Staff,(id:41879) Acute & General Medicine,CARE PROVIDERS HEALTHCARE,id:14250172, 516.74
Department of Health,Guys and St Thomas NHS Foundation Trust,23/07/2021,(50522) Unqualified Nursing Staff,(id:41879) Acute & General Medicine,GLOBE LOCUMS LTD,id:14268738    , 236.01
Department of Health,Guys and St Thomas NHS Foundation Trust,29/07/2021,(50522) Unqualified Nursing Staff,(id:41879) Acute & General Medicine,MSI GROUP LTD,id:14281686  , 252.93
Department of Health,Guys and St Thomas NHS Foundation Trust,16/07/2021,(81200) Medical Surgical Supplies & Equipment,(id:41879) Acute & General Medicine,NHS SUPPLY CHAIN (MAIDSTONE),id:14163435, 648.27
Department of Health,Guys and St Thomas NHS Foundation Trust,29/07/2021,(81200) Medical Surgical Supplies & Equipment,(id:41879) Acute & General Medicine,NHS SUPPLY CHAIN (MAIDSTONE),id:14231714, 525.62
Department of Health,Guys and St Thomas NHS Foundation Trust,16/07/2021,(81225) Medical Surgical Supplies & Equipment,(id:41879) Acute & General Medicine,NHS SUPPLY CHAIN (MAIDSTONE),id:14198514,   9.70
Department of Health,Guys and St Thomas NHS Foundation Trust,09/07/2021,(50552) Qualified Nursing Staff,(id:41879) Acute & General Medicine,MSI GROUP LTD,id:14236408    , 699.56
Department of Health,Guys and St Thomas NHS Foundation Trust,16/07/2021,(82000) Provisions & Kitchens,(id:41880) Acute & General Medicine,NHS SUPPLY CHAIN (MAIDSTONE),id:14198514 , 496.17
Department of Health,Guys and St Thomas NHS Foundation Trust,16/07/2021,(82000) Provisions & Kitchens,(id:41880) Acute & General Medicine,NHS SUPPLY CHAIN (MAIDSTONE),id:14213935 , 431.31
Department of Health,Guys and St Thomas NHS Foundation Trust,16/07/2021,(82800) Bedding & Linen,(id:41880) Acute & General Medicine,NHS SUPPLY CHAIN (MAIDSTONE),id:14160388  , 249.26
Department of Health,Guys and St Thomas NHS Foundation Trust,09/07/2021,(50522) Unqualified Nursing Staff,(id:41880) Acute & General Medicine,GLOBE LOCUMS LTD,id:14236315    , 205.02
Department of Health,Guys and St Thomas NHS Foundation Trust,23/07/2021,(50522) Unqualified Nursing Staff,(id:41880) Acute & General Medicine,GLOBE LOCUMS LTD,id:14268535    , 241.20
Department of Health,Guys and St Thomas NHS Foundation Trust,20/07/2021,(83500) Furniture & Fittings,(id:41881) Acute & General Medicine,1ST CALL MOBILITY LTD,id:13559415    , -72.00
Department of Health,Guys and St Thomas NHS Foundation Trust,29/07/2021,(82800) Bedding & Linen,(id:41881) Acute & General Medicine,NHS SUPPLY CHAIN (MAIDSTONE),id:14231714  , 156.31
Department of Health,Guys and St Thomas NHS Foundation Trust,09/07/2021,(50522) Unqualified Nursing Staff,(id:41881) Acute & General Medicine,GLOBE LOCUMS LTD,id:14236190    , 208.96
Department of Health,Guys and St Thomas NHS Foundation Trust,09/07/2021,(50522) Unqualified Nursing Staff,(id:41881) Acute & General Medicine,MSI GROUP LTD,id:14236184  , 266.23
Department of Health,Guys and St Thomas NHS Foundation Trust,16/07/2021,(50522) Unqualified Nursing Staff,(id:41881) Acute & General Medicine,MSI GROUP LTD,id:14250200  , 258.38
Department of Health,Guys and St Thomas NHS Foundation Trust,16/07/2021,(50522) Unqualified Nursing Staff,(id:41881) Acute & General Medicine,MSI GROUP LTD,id:14250554  , 265.25
Department of Health,Guys and St Thomas NHS Foundation Trust,16/07/2021,(50522) Unqualified Nursing Staff,(id:41881) Acute & General Medicine,GLOBE LOCUMS LTD,id:14250268    , 269.10
Department of Health,Guys and St Thomas NHS Foundation Trust,02/07/2021,(50522) Unqualified Nursing Staff,(id:41881) Acute & General Medicine,GLOBE LOCUMS LTD,id:14217484    , 210.58
Department of Health,Guys and St Thomas NHS Foundation Trust,29/07/2021,(81225) Medical Surgical Supplies & Equipment,(id:41881) Acute & General Medicine,NHS SUPPLY CHAIN (MAIDSTONE),id:14231714,  16.33
Department of Health,Guys and St Thomas NHS Foundation Trust,16/07/2021,(83400) Office Equipment,(id:42025) Dental Services,NHS SUPPLY CHAIN (MAIDSTONE),id:14160388,  47.70
Department of Health,Guys and St Thomas NHS Foundation Trust,16/07/2021,(81200) Medical Surgical Supplies & Equipment,(id:42037) Dental Services,HENRY SCHEIN,id:14240734, 716.40
Department of Health,Guys and St Thomas NHS Foundation Trust,16/07/2021,(81200) Medical Surgical Supplies & Equipment,(id:42037) Dental Services,DENTSPLY IH LTD,id:14225961  ,2581.08
Department of Health,Guys and St Thomas NHS Foundation Trust,29/07/2021,(82600) Uniforms & Clothing,(id:42037) Dental Services,NHS SUPPLY CHAIN (MAIDSTONE),id:14231714  , 180.00
Department of Health,Guys and St Thomas NHS Foundation Trust,16/07/2021,(81100) Dressings,(id:42037) Dental Services,NHS SUPPLY CHAIN (MAIDSTONE),id:14198514  ,   4.24
Department of Health,Guys and St Thomas NHS Foundation Trust,16/07/2021,(83400) Office Equipment,(id:42037) Dental Services,NHS SUPPLY CHAIN (MAIDSTONE),id:14213935,  12.35
Department of Health,Guys and St Thomas NHS Foundation Trust,16/07/2021,(82800) Bedding & Linen,(id:42037) Dental Services,NHS SUPPLY CHAIN (MAIDSTONE),id:14160388 , 100.50
Department of Health,Guys and St Thomas NHS Foundation Trust,29/07/2021,(81100) Dressings,(id:42005) Dental Services,NHS SUPPLY CHAIN (MAIDSTONE),id:14231714  ,  12.10
Department of Health,Guys and St Thomas NHS Foundation Trust,16/07/2021,(81200) Medical Surgical Supplies & Equipment,(id:42005) Dental Services,NHS SUPPLY CHAIN (MAIDSTONE),id:14198514    ,1603.03
Department of Health,Guys and St Thomas NHS Foundation Trust,16/07/2021,(82800) Bedding & Linen,(id:42005) Dental Services,NHS SUPPLY CHAIN (MAIDSTONE),id:14177634 ,  60.30
Department of Health,Guys and St Thomas NHS Foundation Trust,16/07/2021,(82800) Bedding & Linen,(id:42007) Dental Services,NHS SUPPLY CHAIN (MAIDSTONE),id:14160388 ,  60.30
Department of Health,Guys and St Thomas NHS Foundation Trust,02/07/2021,(81200) Medical Surgical Supplies & Equipment,(id:42007) Dental Services,HENRY SCHEIN,id:14221805, 913.84
Department of Health,Guys and St Thomas NHS Foundation Trust,09/07/2021,(81200) Medical Surgical Supplies & Equipment,(id:42007) Dental Services,HENRY SCHEIN,id:14240175, 774.65
Department of Health,Guys and St Thomas NHS Foundation Trust,16/07/2021,(81200) Medical Surgical Supplies & Equipment,(id:42007) Dental Services,HENRY SCHEIN,id:14240198, 667.38
Department of Health,Guys and St Thomas NHS Foundation Trust,16/07/2021,(81200) Medical Surgical Supplies & Equipment,(id:42007) Dental Services,HENRY SCHEIN,id:14240245, 903.76
Department of Health,Guys and St Thomas NHS Foundation Trust,16/07/2021,(83400) Office Equipment,(id:42007) Dental Services,NHS SUPPLY CHAIN (MAIDSTONE),id:14198514,  23.06
Department of Health,Guys and St Thomas NHS Foundation Trust,16/07/2021,(81700) Lab Equipment Purchase,(id:42007) Dental Services,NHS SUPPLY CHAIN (MAIDSTONE),id:14160388    ,   9.36
Department of Health,Guys and St Thomas NHS Foundation Trust,29/07/2021,(81700) Lab Equipment Purchase,(id:42015) Dental Services,NHS SUPPLY CHAIN (MAIDSTONE),id:14231714    ,  19.44
Department of Health,Guys and St Thomas NHS Foundation Trust,16/07/2021,(50470) Medical Training Grades,(id:42033) Dental Services,EAST KENT HOSPITALS UNIVERSITY NHS FOUNDATION TRUST,id:13795318,3082.10
Department of Health,Guys and St Thomas NHS Foundation Trust,16/07/2021,(50470) Medical Training Grades,(id:42033) Dental Services,EAST KENT HOSPITALS UNIVERSITY NHS FOUNDATION TRUST,id:13795276,3082.10
Department of Health,Guys and St Thomas NHS Foundation Trust,16/07/2021,(83400) Office Equipment,(id:42027) Dental Services,NHS SUPPLY CHAIN (MAIDSTONE),id:14160388,  47.00
Department of Health,Guys and St Thomas NHS Foundation Trust,16/07/2021,(83400) Office Equipment,(id:42027) Dental Services,NHS SUPPLY CHAIN (MAIDSTONE),id:14213935,  64.56
Department of Health,Guys and St Thomas NHS Foundation Trust,02/07/2021,(81200) Medical Surgical Supplies & Equipment,(id:42027) Dental Services,HENRY SCHEIN,id:14219079, 994.38
Department of Health,Guys and St Thomas NHS Foundation Trust,02/07/2021,(81200) Medical Surgical Supplies & Equipment,(id:42027) Dental Services,HENRY SCHEIN,id:14219102, 560.62
Department of Health,Guys and St Thomas NHS Foundation Trust,16/07/2021,(81200) Medical Surgical Supplies & Equipment,(id:42027) Dental Services,NHS SUPPLY CHAIN (MAIDSTONE),id:14177634    ,  38.09
Department of Health,Guys and St Thomas NHS Foundation Trust,16/07/2021,(82000) Provisions & Kitchens,(id:42027) Dental Services,NHS SUPPLY CHAIN (MAIDSTONE),id:14160388,   6.62
Department of Health,Guys and St Thomas NHS Foundation Trust,02/07/2021,(81200) Medical Surgical Supplies & Equipment,(id:42028) Dental Services,HENRY SCHEIN,id:14219096, 910.18
Department of Health,Guys and St Thomas NHS Foundation Trust,16/07/2021,(81200) Medical Surgical Supplies & Equipment,(id:42028) Dental Services,NHS SUPPLY CHAIN (MAIDSTONE),id:14198514    ,  63.00
Department of Health,Guys and St Thomas NHS Foundation Trust,16/07/2021,(81100) Dressings,(id:42028) Dental Services,NHS SUPPLY CHAIN (MAIDSTONE),id:14177634  , 448.79
Department of Health,Guys and St Thomas NHS Foundation Trust,02/07/2021,(81200) Medical Surgical Supplies & Equipment,(id:42016) Dental Services,GEISTLICH SONS LTD,id:14213853    ,1061.93
Department of Health,Guys and St Thomas NHS Foundation Trust,23/07/2021,(81200) Medical Surgical Supplies & Equipment,(id:42016) Dental Services,DENTSPLY IH LTD,id:14255354  , 657.58
Department of Health,Guys and St Thomas NHS Foundation Trust,16/07/2021,(83400) Office Equipment,(id:41994) Dental Services,NHS SUPPLY CHAIN (MAIDSTONE),id:14160388,  19.99
Department of Health,Guys and St Thomas NHS Foundation Trust,23/07/2021,(50203) Consultants,(id:42014) Dental Services,KINGS COLLEGE LONDON:03529700,id:13811314    ,  22.52
Department of Health,Guys and St Thomas NHS Foundation Trust,02/07/2021,(81500) X Ray Equipment Purchase,(id:42014) Dental Services,PLANMECA UK LTD,id:14209474, 564.28
Department of Health,Guys and St Thomas NHS Foundation Trust,29/07/2021,(50542) Unqualified Nursing Staff,(id:1654420) Dental Services,MEDACS HEALTHCARE SERVICES PLC,id:14281722  , 779.61
Department of Health,Guys and St Thomas NHS Foundation Trust,23/07/2021,(83610) IT Costs,(id:42042) Dental Services,OFFICE DEPOT UK LTD,id:14232900  , 506.88
Department of Health,Guys and St Thomas NHS Foundation Trust,23/07/2021,(83610) IT Costs,(id:42040) Dental Services,OFFICE DEPOT UK LTD,id:14227140  ,1089.90
Department of Health,Guys and St Thomas NHS Foundation Trust,23/07/2021,(50200) Consultants,(id:42035) Dental Services,KINGS COLLEGE LONDON:03529700,id:13506134    , 592.25
Department of Health,Guys and St Thomas NHS Foundation Trust,02/07/2021,(83610) IT Costs,(id:42035) Dental Services,CCS MEDIA LTD,id:14213572   ,2587.52
Department of Health,Guys and St Thomas NHS Foundation Trust,16/07/2021,(83400) Office Equipment,(id:4622420) Dental Services,NHS SUPPLY CHAIN (MAIDSTONE),id:14160388   , 179.38
Department of Health,Guys and St Thomas NHS Foundation Trust,16/07/2021,(83400) Office Equipment,(id:4622420) Dental Services,NHS SUPPLY CHAIN (MAIDSTONE),id:14213935   , 136.19
Department of Health,Guys and St Thomas NHS Foundation Trust,09/07/2021,(81200) Medical Surgical Supplies & Equipment,(id:1634429) Dental Services,HENRY SCHEIN,id:14228974   , 596.14
Department of Health,Guys and St Thomas NHS Foundation Trust,09/07/2021,(81200) Medical Surgical Supplies & Equipment,(id:1634429) Dental Services,HENRY SCHEIN,id:14228931   , 690.01
Department of Health,Guys and St Thomas NHS Foundation Trust,09/07/2021,(81200) Medical Surgical Supplies & Equipment,(id:1634429) Dental Services,HENRY SCHEIN,id:14228936   , 884.99
Department of Health,Guys and St Thomas NHS Foundation Trust,09/07/2021,(81200) Medical Surgical Supplies & Equipment,(id:1634429) Dental Services,QED - QUALITY ENDODONTIC DISTRIBUTORS LTD,id:14224194    ,2038.62
Department of Health,Guys and St Thomas NHS Foundation Trust,09/07/2021,(81200) Medical Surgical Supplies & Equipment,(id:1634429) Dental Services,HENRY SCHEIN,id:14228932   , 525.12
Department of Health,Guys and St Thomas NHS Foundation Trust,02/07/2021,(81200) Medical Surgical Supplies & Equipment,(id:1634429) Dental Services,HENRY SCHEIN,id:14219100   , 726.50
Department of Health,Guys and St Thomas NHS Foundation Trust,02/07/2021,(81200) Medical Surgical Supplies & Equipment,(id:1634429) Dental Services,GEISTLICH SONS LTD,id:14213845  , 973.92
Department of Health,Guys and St Thomas NHS Foundation Trust,16/07/2021,(81200) Medical Surgical Supplies & Equipment,(id:1634429) Dental Services,HENRY SCHEIN,id:14240395   , 998.06
Department of Health,Guys and St Thomas NHS Foundation Trust,16/07/2021,(81200) Medical Surgical Supplies & Equipment,(id:1634429) Dental Services,HENRY SCHEIN,id:14240396   , 993.16
Department of Health,Guys and St Thomas NHS Foundation Trust,16/07/2021,(81100) Dressings,(id:1634429) Dental Services,NHS SUPPLY CHAIN (MAIDSTONE),id:14213935,   7.22
Department of Health,Guys and St Thomas NHS Foundation Trust,16/07/2021,(82600) Uniforms & Clothing,(id:1634432) Dental Services,NHS SUPPLY CHAIN (MAIDSTONE),id:14177634, 198.00
Department of Health,Guys and St Thomas NHS Foundation Trust,02/07/2021,(81200) Medical Surgical Supplies & Equipment,(id:1634433) Dental Services,HENRY SCHEIN,id:14202557   , 820.50
Department of Health,Guys and St Thomas NHS Foundation Trust,16/07/2021,(81200) Medical Surgical Supplies & Equipment,(id:1634433) Dental Services,NHS SUPPLY CHAIN (MAIDSTONE),id:14213935  , 152.94
Department of Health,Guys and St Thomas NHS Foundation Trust,16/07/2021,(81200) Medical Surgical Supplies & Equipment,(id:1634433) Dental Services,NHS SUPPLY CHAIN (MAIDSTONE),id:14160388  , 238.31
Department of Health,Guys and St Thomas NHS Foundation Trust,23/07/2021,(81200) Medical Surgical Supplies & Equipment,(id:42011) Dental Services,PLANMECA UK LTD,id:14233554  , 919.32
Department of Health,Guys and St Thomas NHS Foundation Trust,09/07/2021,(81200) Medical Surgical Supplies & Equipment,(id:1650420) Dental Services,BRACON LIMITED,id:14221194 , 984.00
Department of Health,Guys and St Thomas NHS Foundation Trust,23/07/2021,(50200) Consultants,(id:42193) Specialist Ambulatory Services,KINGS COLLEGE LONDON:03529700,id:14217042    ,6546.23
Department of Health,Guys and St Thomas NHS Foundation Trust,16/07/2021,(81100) Dressings,(id:42193) Specialist Ambulatory Services,NHS SUPPLY CHAIN (MAIDSTONE),id:14160388  ,  42.84
Department of Health,Guys and St Thomas NHS Foundation Trust,23/07/2021,(81000) Surgical Appliances,(id:42193) Specialist Ambulatory Services,TALAR MADE ORTHOTICS LTD,id:14264816 ,  29.40
Department of Health,Guys and St Thomas NHS Foundation Trust,23/07/2021,(81000) Surgical Appliances,(id:42193) Specialist Ambulatory Services,LBG MEDICAL LTD,id:14261648, 823.68
Department of Health,Guys and St Thomas NHS Foundation Trust,23/07/2021,(89595) Non-Healthcare from Foundation Trusts,(id:42354) Specialist Ambulatory Services,GREAT ORMOND STREET HOSPITAL FOR CHILDREN NHS FOUNDATION TRUST,id:13888994, 420.00
Department of Health,Guys and St Thomas NHS Foundation Trust,23/07/2021,(50200) Consultants,(id:42099) Specialist Ambulatory Services,ST GEORGE'S UNIVERSITY HOSPITALS NHS FOUNDATION TRUST,id:13489990,1292.04
Department of Health,Guys and St Thomas NHS Foundation Trust,23/07/2021,(50200) Consultants,(id:42099) Specialist Ambulatory Services,ST GEORGE'S UNIVERSITY HOSPITALS NHS FOUNDATION TRUST,id:9919455 ,1413.75
Department of Health,Guys and St Thomas NHS Foundation Trust,16/07/2021,(81100) Dressings,(id:255405) Specialist Ambulatory Services,NHS SUPPLY CHAIN (MAIDSTONE),id:14198514 , 187.94
Department of Health,Guys and St Thomas NHS Foundation Trust,29/07/2021,(81275) Medical Surgical Supplies & Equipment,(id:42088) Specialist Ambulatory Services,CANUTE PHARMA LTD,id:14274634, 556.20
Department of Health,Guys and St Thomas NHS Foundation Trust,09/07/2021,(83610) IT Costs,(id:42091) Specialist Ambulatory Services,OFFICE DEPOT UK LTD,id:14201152  , 522.65
Department of Health,Guys and St Thomas NHS Foundation Trust,16/07/2021,(81200) Medical Surgical Supplies & Equipment,(id:42091) Specialist Ambulatory Services,NHS SUPPLY CHAIN (MAIDSTONE),id:14198514    , 543.40
Department of Health,Guys and St Thomas NHS Foundation Trust,23/07/2021,(81000) Surgical Appliances,(id:42091) Specialist Ambulatory Services,TALAR MADE ORTHOTICS LTD,id:14261725 ,   8.50
Department of Health,Guys and St Thomas NHS Foundation Trust,16/07/2021,(81200) Medical Surgical Supplies & Equipment,(id:3607419) Specialist Ambulatory Services,NHS SUPPLY CHAIN (MAIDSTONE),id:14213935  ,  23.98
Department of Health,Guys and St Thomas NHS Foundation Trust,16/07/2021,(82000) Provisions & Kitchens,(id:3607419) Specialist Ambulatory Services,NHS SUPPLY CHAIN (MAIDSTONE),id:14177634   ,   7.81
Department of Health,Guys and St Thomas NHS Foundation Trust,23/07/2021,(89595) Non-Healthcare from Foundation Trusts,(id:42065) Specialist Ambulatory Services,ST GEORGE'S UNIVERSITY HOSPITALS NHS FOUNDATION TRUST,id:14261765    ,1447.58
Department of Health,Guys and St Thomas NHS Foundation Trust,23/07/2021,(89595) Non-Healthcare from Foundation Trusts,(id:42065) Specialist Ambulatory Services,ST GEORGE'S UNIVERSITY HOSPITALS NHS FOUNDATION TRUST,id:14165279    ,1447.58
Department of Health,Guys and St Thomas NHS Foundation Trust,23/07/2021,(50200) Consultants,(id:42065) Specialist Ambulatory Services,ST GEORGE'S UNIVERSITY HOSPITALS NHS FOUNDATION TRUST,id:13908814,1447.58
Department of Health,Guys and St Thomas NHS Foundation Trust,16/07/2021,(82800) Bedding & Linen,(id:42079) Specialist Ambulatory Services,NHS SUPPLY CHAIN (MAIDSTONE),id:14160388 ,   7.87
Department of Health,Guys and St Thomas NHS Foundation Trust,16/07/2021,(82800) Bedding & Linen,(id:42079) Specialist Ambulatory Services,NHS SUPPLY CHAIN (MAIDSTONE),id:14213935 ,  40.20
Department of Health,Guys and St Thomas NHS Foundation Trust,16/07/2021,(81100) Dressings,(id:42079) Specialist Ambulatory Services,NHS SUPPLY CHAIN (MAIDSTONE),id:14163435  , 339.81
Department of Health,Guys and St Thomas NHS Foundation Trust,16/07/2021,(80010) Drug Costs,(id:42079) Specialist Ambulatory Services,THERAKOS (UK) LIMITED,id:14243634   ,2282.40
Department of Health,Guys and St Thomas NHS Foundation Trust,02/07/2021,(80010) Drug Costs,(id:42079) Specialist Ambulatory Services,THERAKOS (UK) LIMITED,id:14180128   ,    22824.00
Department of Health,Guys and St Thomas NHS Foundation Trust,02/07/2021,(80010) Drug Costs,(id:42079) Specialist Ambulatory Services,THERAKOS (UK) LIMITED,id:14206035   ,    22824.00
Department of Health,Guys and St Thomas NHS Foundation Trust,16/07/2021,(81700) Lab Equipment Purchase,(id:42079) Specialist Ambulatory Services,NHS SUPPLY CHAIN (MAIDSTONE),id:14213935    ,   8.32
Department of Health,Guys and St Thomas NHS Foundation Trust,16/07/2021,(81200) Medical Surgical Supplies & Equipment,(id:42079) Specialist Ambulatory Services,NHS SUPPLY CHAIN (MAIDSTONE),id:14213935    , 345.06
Department of Health,Guys and St Thomas NHS Foundation Trust,29/07/2021,(82600) Uniforms & Clothing,(id:42097) Specialist Ambulatory Services,NHS SUPPLY CHAIN (MAIDSTONE),id:14231714  ,   4.21
Department of Health,Guys and St Thomas NHS Foundation Trust,16/07/2021,(81100) Dressings,(id:42097) Specialist Ambulatory Services,NHS SUPPLY CHAIN (MAIDSTONE),id:14163435  , 127.21
Department of Health,Guys and St Thomas NHS Foundation Trust,29/07/2021,(81100) Dressings,(id:42097) Specialist Ambulatory Services,NHS SUPPLY CHAIN (MAIDSTONE),id:14231714  , 188.78
Department of Health,Guys and St Thomas NHS Foundation Trust,16/07/2021,(81200) Medical Surgical Supplies & Equipment,(id:42097) Specialist Ambulatory Services,NHS SUPPLY CHAIN (MAIDSTONE),id:14177634    ,  52.20
Department of Health,Guys and St Thomas NHS Foundation Trust,16/07/2021,(81100) Dressings,(id:42066) Specialist Ambulatory Services,NHS SUPPLY CHAIN (MAIDSTONE),id:14160388  ,  75.60
Department of Health,Guys and St Thomas NHS Foundation Trust,16/07/2021,(81100) Dressings,(id:391417) Specialist Ambulatory Services,NHS SUPPLY CHAIN (MAIDSTONE),id:14163435 , 126.65
Department of Health,Guys and St Thomas NHS Foundation Trust,02/07/2021,(50552) Qualified Nursing Staff,(id:42064) Specialist Ambulatory Services,CONTINENTAL NURSE LTD,id:14217308,1922.65
Department of Health,Guys and St Thomas NHS Foundation Trust,16/07/2021,(81275) Medical Surgical Supplies & Equipment,(id:42064) Specialist Ambulatory Services,NHS SUPPLY CHAIN (MAIDSTONE),id:14163435    , 136.03
Department of Health,Guys and St Thomas NHS Foundation Trust,16/07/2021,(81200) Medical Surgical Supplies & Equipment,(id:42057) Specialist Ambulatory Services,NHS SUPPLY CHAIN (MAIDSTONE),id:14213935    , 378.64
Department of Health,Guys and St Thomas NHS Foundation Trust,16/07/2021,(82800) Bedding & Linen,(id:42057) Specialist Ambulatory Services,NHS SUPPLY CHAIN (MAIDSTONE),id:14213935 ,  52.56
Department of Health,Guys and St Thomas NHS Foundation Trust,16/07/2021,(83400) Office Equipment,(id:42050) Specialist Ambulatory Services,NHS SUPPLY CHAIN (MAIDSTONE),id:14163435, 504.51
Department of Health,Guys and St Thomas NHS Foundation Trust,16/07/2021,(81100) Dressings,(id:42050) Specialist Ambulatory Services,NHS SUPPLY CHAIN (MAIDSTONE),id:14177634  , 781.79
Department of Health,Guys and St Thomas NHS Foundation Trust,16/07/2021,(81700) Lab Equipment Purchase,(id:42050) Specialist Ambulatory Services,NHS SUPPLY CHAIN (MAIDSTONE),id:14213935    ,   6.48
Department of Health,Guys and St Thomas NHS Foundation Trust,16/07/2021,(82000) Provisions & Kitchens,(id:42050) Specialist Ambulatory Services,NHS SUPPLY CHAIN (MAIDSTONE),id:14213935,  56.10
Department of Health,Guys and St Thomas NHS Foundation Trust,16/07/2021,(82000) Provisions & Kitchens,(id:42050) Specialist Ambulatory Services,NHS SUPPLY CHAIN (MAIDSTONE),id:14160388,  14.40
Department of Health,Guys and St Thomas NHS Foundation Trust,16/07/2021,(82800) Bedding & Linen,(id:42169) Pharmacy,NHS SUPPLY CHAIN (MAIDSTONE),id:14198514   ,  80.40
Department of Health,Guys and St Thomas NHS Foundation Trust,23/07/2021,(81200) Medical Surgical Supplies & Equipment,(id:42159) Pharmacy,CONNECT 2 CLEANROOMS LTD T/A CLEANROOMSHOP.COM,id:14270796   , 940.70
Department of Health,Guys and St Thomas NHS Foundation Trust,02/07/2021,(81200) Medical Surgical Supplies & Equipment,(id:42159) Pharmacy,RENACLINICAL LTD,id:14218741   ,    82218.00
Department of Health,Guys and St Thomas NHS Foundation Trust,16/07/2021,(81200) Medical Surgical Supplies & Equipment,(id:42159) Pharmacy,NHS SUPPLY CHAIN (MAIDSTONE),id:14163435 ,   7.56
Department of Health,Guys and St Thomas NHS Foundation Trust,16/07/2021,(55062) Admin & Clerical,(id:42159) Pharmacy,HYPER RECRUITMENT SOLUTIONS LTD,id:14250503    , 860.86
Department of Health,Guys and St Thomas NHS Foundation Trust,16/07/2021,(55102) Admin & Clerical,(id:42159) Pharmacy,HYPER RECRUITMENT SOLUTIONS LTD,id:14250263    ,2128.50
Department of Health,Guys and St Thomas NHS Foundation Trust,29/07/2021,(55122) Admin & Clerical,(id:42159) Pharmacy,HYPER RECRUITMENT SOLUTIONS LTD,id:14271195    ,3000.00
Department of Health,Guys and St Thomas NHS Foundation Trust,02/07/2021,(81200) Medical Surgical Supplies & Equipment,(id:581409) Pharmacy,AMERCARE LTD,id:14210896 ,1183.80
Department of Health,Guys and St Thomas NHS Foundation Trust,02/07/2021,(81200) Medical Surgical Supplies & Equipment,(id:581409) Pharmacy,RIVERSIDE MEDICAL PACKAGING CO LTD,id:14216870    ,2455.63
Department of Health,Guys and St Thomas NHS Foundation Trust,29/07/2021,(81200) Medical Surgical Supplies & Equipment,(id:581409) Pharmacy,NITRITEX LTD,id:14280718 ,3801.60
Department of Health,Guys and St Thomas NHS Foundation Trust,16/07/2021,(81200) Medical Surgical Supplies & Equipment,(id:581409) Pharmacy,RIVERSIDE MEDICAL PACKAGING CO LTD,id:14248044    ,2098.26
Department of Health,Guys and St Thomas NHS Foundation Trust,02/07/2021,(81275) Medical Surgical Supplies & Equipment,(id:581409) Pharmacy,CHERWELL LABORATORIES LTD,id:14208374   ,5887.90
Department of Health,Guys and St Thomas NHS Foundation Trust,02/07/2021,(83400) Office Equipment,(id:581409) Pharmacy,DURBIN PLC,id:14218685    ,1722.06
Department of Health,Guys and St Thomas NHS Foundation Trust,22/07/2021,(53672) Pharmacists,(id:581409) Pharmacy,PRICEWATERHOUSECOOPERS LLP,id:14267805   ,1608.50
Department of Health,Guys and St Thomas NHS Foundation Trust,13/07/2021,(53632) Pharmacists,(id:42156) Pharmacy,PRICEWATERHOUSECOOPERS LLP,id:14246219    , 518.09
Department of Health,Guys and St Thomas NHS Foundation Trust,16/07/2021,(82800) Bedding & Linen,(id:42160) Pharmacy,NHS SUPPLY CHAIN (MAIDSTONE),id:14163435   ,  80.40
Department of Health,Guys and St Thomas NHS Foundation Trust,29/07/2021,(53642) Pharmacists,(id:42160) Pharmacy,PRICEWATERHOUSECOOPERS LLP,id:14286574    ,1527.16
Department of Health,Guys and St Thomas NHS Foundation Trust,29/07/2021,(53632) Pharmacists,(id:42160) Pharmacy,PRICEWATERHOUSECOOPERS LLP,id:14286574    ,1407.88
Department of Health,Guys and St Thomas NHS Foundation Trust,16/07/2021,(83610) IT Costs,(id:42160) Pharmacy,OFFICE DEPOT UK LTD,id:14204181    , 675.84
Department of Health,Guys and St Thomas NHS Foundation Trust,23/07/2021,(84655) Establishment,(id:478416) Medical Specialties,LANGUAGE CONNECT,id:14066455,    12232.13
Department of Health,Guys and St Thomas NHS Foundation Trust,02/07/2021,(84655) Establishment,(id:42178) Medical Specialties,CLARION INTERPRETING LIMITED,id:14210895    ,1547.25
Department of Health,Guys and St Thomas NHS Foundation Trust,16/07/2021,(82800) Bedding & Linen,(id:42217) Medical Specialties,NHS SUPPLY CHAIN (MAIDSTONE),id:14198514  ,  80.40
Department of Health,Guys and St Thomas NHS Foundation Trust,16/07/2021,(50552) Qualified Nursing Staff,(id:42217) Medical Specialties,CONTINENTAL NURSE LTD,id:14250557 ,2114.25
Department of Health,Guys and St Thomas NHS Foundation Trust,16/07/2021,(82000) Provisions & Kitchens,(id:42251) Medical Specialties,NHS SUPPLY CHAIN (MAIDSTONE),id:14177634 ,  70.83
Department of Health,Guys and St Thomas NHS Foundation Trust,13/07/2021,(51262) Dieticians,(id:42251) Medical Specialties,PRICEWATERHOUSECOOPERS LLP,id:14246431    ,4538.75
Department of Health,Guys and St Thomas NHS Foundation Trust,16/07/2021,(81200) Medical Surgical Supplies & Equipment,(id:42224) Medical Specialties,TOPCON (GREAT BRITAIN) LTD,id:14245194  , 759.65
Department of Health,Guys and St Thomas NHS Foundation Trust,16/07/2021,(83755) Rental under Operating Lease,(id:42224) Medical Specialties,COMMUNITY HEALTH PARTNERSHIPS,id:14240298   ,2219.88
Department of Health,Guys and St Thomas NHS Foundation Trust,02/07/2021,(81200) Medical Surgical Supplies & Equipment,(id:42221) Medical Specialties,DAYBREAK MEDICAL LTD,id:14218909   ,4890.00
Department of Health,Guys and St Thomas NHS Foundation Trust,02/07/2021,(81200) Medical Surgical Supplies & Equipment,(id:42221) Medical Specialties,BAXTER HEALTHCARE LTD,id:14187254  ,1267.50
Department of Health,Guys and St Thomas NHS Foundation Trust,16/07/2021,(81200) Medical Surgical Supplies & Equipment,(id:42221) Medical Specialties,NHS SUPPLY CHAIN (MAIDSTONE),id:14163435,3447.18
Department of Health,Guys and St Thomas NHS Foundation Trust,16/07/2021,(81200) Medical Surgical Supplies & Equipment,(id:42221) Medical Specialties,CORE SURGICAL LTD,id:14244547 ,1632.00
Department of Health,Guys and St Thomas NHS Foundation Trust,16/07/2021,(81200) Medical Surgical Supplies & Equipment,(id:42221) Medical Specialties,CORE SURGICAL LTD,id:14244698 ,1632.00
Department of Health,Guys and St Thomas NHS Foundation Trust,16/07/2021,(81200) Medical Surgical Supplies & Equipment,(id:42221) Medical Specialties,AMO UK LTD,id:14244530   ,1728.00
Department of Health,Guys and St Thomas NHS Foundation Trust,29/07/2021,(81200) Medical Surgical Supplies & Equipment,(id:42221) Medical Specialties,ALCON EYE CARE UK LIMITED,id:14277067   ,4608.00
Department of Health,Guys and St Thomas NHS Foundation Trust,16/07/2021,(81100) Dressings,(id:42221) Medical Specialties,NHS SUPPLY CHAIN (MAIDSTONE),id:14198514   ,  22.24
Department of Health,Guys and St Thomas NHS Foundation Trust,16/07/2021,(81700) Lab Equipment Purchase,(id:42221) Medical Specialties,NHS SUPPLY CHAIN (MAIDSTONE),id:14160388,   9.80
Department of Health,Guys and St Thomas NHS Foundation Trust,16/07/2021,(81200) Medical Surgical Supplies & Equipment,(id:42222) Medical Specialties,ALCON EYE CARE UK LIMITED,id:14236023   ,4406.40
Department of Health,Guys and St Thomas NHS Foundation Trust,16/07/2021,(81200) Medical Surgical Supplies & Equipment,(id:42223) Medical Specialties,BLINK MEDICAL LTD,id:14236031 ,4857.60
Department of Health,Guys and St Thomas NHS Foundation Trust,16/07/2021,(81200) Medical Surgical Supplies & Equipment,(id:42223) Medical Specialties,NHS SUPPLY CHAIN (MAIDSTONE),id:14198514, 153.96
Department of Health,Guys and St Thomas NHS Foundation Trust,16/07/2021,(83400) Office Equipment,(id:42223) Medical Specialties,NHS SUPPLY CHAIN (MAIDSTONE),id:14160388 ,  52.50
Department of Health,Guys and St Thomas NHS Foundation Trust,09/07/2021,(89600) Non-Healthcare from other NHS bodies,(id:42223) Medical Specialties,NHS BLOOD AND TRANSPLANT,id:14232353,1353.72
Department of Health,Guys and St Thomas NHS Foundation Trust,16/07/2021,(82000) Provisions & Kitchens,(id:42223) Medical Specialties,NHS SUPPLY CHAIN (MAIDSTONE),id:14198514 ,  15.60
Department of Health,Guys and St Thomas NHS Foundation Trust,22/07/2021,(50202) Consultants,(id:42223) Medical Specialties,PRICEWATERHOUSECOOPERS LLP,id:14267805   ,3046.56
Department of Health,Guys and St Thomas NHS Foundation Trust,16/07/2021,(82000) Provisions & Kitchens,(id:42208) Medical Specialties,NHS SUPPLY CHAIN (MAIDSTONE),id:14213935 ,   7.08
Department of Health,Guys and St Thomas NHS Foundation Trust,09/07/2021,(81200) Medical Surgical Supplies & Equipment,(id:42208) Medical Specialties,MEDTRONIC LTD,id:14163865, 567.00
Department of Health,Guys and St Thomas NHS Foundation Trust,09/07/2021,(81200) Medical Surgical Supplies & Equipment,(id:42208) Medical Specialties,DEXCOM INTERNATIONAL LTD,id:14223574    , 793.50
Department of Health,Guys and St Thomas NHS Foundation Trust,16/07/2021,(81200) Medical Surgical Supplies & Equipment,(id:42208) Medical Specialties,MEDTRONIC LTD,id:14166679, 904.50
Department of Health,Guys and St Thomas NHS Foundation Trust,16/07/2021,(81200) Medical Surgical Supplies & Equipment,(id:42208) Medical Specialties,MEDTRONIC LTD,id:14144012,1143.14
Department of Health,Guys and St Thomas NHS Foundation Trust,16/07/2021,(81200) Medical Surgical Supplies & Equipment,(id:42208) Medical Specialties,DEXCOM INTERNATIONAL LTD,id:14240704    , 600.00
Department of Health,Guys and St Thomas NHS Foundation Trust,16/07/2021,(81200) Medical Surgical Supplies & Equipment,(id:42208) Medical Specialties,DEXCOM INTERNATIONAL LTD,id:14246348    , 600.00
Department of Health,Guys and St Thomas NHS Foundation Trust,16/07/2021,(81200) Medical Surgical Supplies & Equipment,(id:42208) Medical Specialties,DEXCOM INTERNATIONAL LTD,id:14240719    , 600.00
Department of Health,Guys and St Thomas NHS Foundation Trust,16/07/2021,(81200) Medical Surgical Supplies & Equipment,(id:42208) Medical Specialties,INSULET INTERNATIONAL LTD,id:14245769   ,1418.40
Department of Health,Guys and St Thomas NHS Foundation Trust,16/07/2021,(81200) Medical Surgical Supplies & Equipment,(id:42208) Medical Specialties,INSULET INTERNATIONAL LTD,id:14245924   , 712.08
Department of Health,Guys and St Thomas NHS Foundation Trust,16/07/2021,(81200) Medical Surgical Supplies & Equipment,(id:42208) Medical Specialties,INSULET INTERNATIONAL LTD,id:14245938   , 712.08
Department of Health,Guys and St Thomas NHS Foundation Trust,16/07/2021,(81200) Medical Surgical Supplies & Equipment,(id:42208) Medical Specialties,INSULET INTERNATIONAL LTD,id:14245774   , 712.08
Department of Health,Guys and St Thomas NHS Foundation Trust,16/07/2021,(81200) Medical Surgical Supplies & Equipment,(id:42208) Medical Specialties,INSULET INTERNATIONAL LTD,id:14245760   , 712.08
Department of Health,Guys and St Thomas NHS Foundation Trust,16/07/2021,(81200) Medical Surgical Supplies & Equipment,(id:42208) Medical Specialties,INSULET INTERNATIONAL LTD,id:14245756   , 712.08
Department of Health,Guys and St Thomas NHS Foundation Trust,16/07/2021,(81200) Medical Surgical Supplies & Equipment,(id:42208) Medical Specialties,INSULET INTERNATIONAL LTD,id:14245772   , 712.08
Department of Health,Guys and St Thomas NHS Foundation Trust,16/07/2021,(81200) Medical Surgical Supplies & Equipment,(id:42208) Medical Specialties,INSULET INTERNATIONAL LTD,id:14213564   , 712.08
Department of Health,Guys and St Thomas NHS Foundation Trust,16/07/2021,(81200) Medical Surgical Supplies & Equipment,(id:42208) Medical Specialties,INSULET INTERNATIONAL LTD,id:14213565   , 712.08
Department of Health,Guys and St Thomas NHS Foundation Trust,16/07/2021,(81200) Medical Surgical Supplies & Equipment,(id:42208) Medical Specialties,DEXCOM INTERNATIONAL LTD,id:13422294    , 793.50
Department of Health,Guys and St Thomas NHS Foundation Trust,16/07/2021,(81200) Medical Surgical Supplies & Equipment,(id:42208) Medical Specialties,DEXCOM INTERNATIONAL LTD,id:13749898    , 793.50
Department of Health,Guys and St Thomas NHS Foundation Trust,29/07/2021,(81200) Medical Surgical Supplies & Equipment,(id:42208) Medical Specialties,MEDTRONIC LTD,id:14241523,1342.26
Department of Health,Guys and St Thomas NHS Foundation Trust,29/07/2021,(81200) Medical Surgical Supplies & Equipment,(id:42208) Medical Specialties,MEDTRONIC LTD,id:14247155, 567.00
Department of Health,Guys and St Thomas NHS Foundation Trust,16/07/2021,(81200) Medical Surgical Supplies & Equipment,(id:42208) Medical Specialties,DEXCOM INTERNATIONAL LTD,id:14244697    , 600.00
Department of Health,Guys and St Thomas NHS Foundation Trust,16/07/2021,(81200) Medical Surgical Supplies & Equipment,(id:42208) Medical Specialties,INSULET INTERNATIONAL LTD,id:14245945   , 706.32
Department of Health,Guys and St Thomas NHS Foundation Trust,16/07/2021,(81200) Medical Surgical Supplies & Equipment,(id:42208) Medical Specialties,INSULET INTERNATIONAL LTD,id:14245961   , 712.08
Department of Health,Guys and St Thomas NHS Foundation Trust,16/07/2021,(81200) Medical Surgical Supplies & Equipment,(id:42208) Medical Specialties,INSULET INTERNATIONAL LTD,id:14208714   , 712.08
Department of Health,Guys and St Thomas NHS Foundation Trust,16/07/2021,(81200) Medical Surgical Supplies & Equipment,(id:42208) Medical Specialties,MEDTRONIC LTD,id:14174863,3240.00
Department of Health,Guys and St Thomas NHS Foundation Trust,16/07/2021,(81200) Medical Surgical Supplies & Equipment,(id:42208) Medical Specialties,ROCHE DIABETES CARE LIMITED,id:14253258 ,-587.52
Department of Health,Guys and St Thomas NHS Foundation Trust,23/07/2021,(81200) Medical Surgical Supplies & Equipment,(id:42208) Medical Specialties,MEDTRONIC LTD,id:14233767, 567.00
Department of Health,Guys and St Thomas NHS Foundation Trust,29/07/2021,(81200) Medical Surgical Supplies & Equipment,(id:42208) Medical Specialties,DEXCOM INTERNATIONAL LTD,id:14278504    , 600.00
Department of Health,Guys and St Thomas NHS Foundation Trust,29/07/2021,(81200) Medical Surgical Supplies & Equipment,(id:42208) Medical Specialties,DEXCOM INTERNATIONAL LTD,id:14278234    , 600.00
Department of Health,Guys and St Thomas NHS Foundation Trust,29/07/2021,(81200) Medical Surgical Supplies & Equipment,(id:42208) Medical Specialties,DEXCOM INTERNATIONAL LTD,id:14254131    , 600.00
Department of Health,Guys and St Thomas NHS Foundation Trust,16/07/2021,(83400) Office Equipment,(id:42208) Medical Specialties,NHS SUPPLY CHAIN (MAIDSTONE),id:14177634 ,  12.12
Department of Health,Guys and St Thomas NHS Foundation Trust,23/07/2021,(81000) Surgical Appliances,(id:42209) Medical Specialties,TALAR MADE ORTHOTICS LTD,id:14264834  ,  37.90
Department of Health,Guys and St Thomas NHS Foundation Trust,16/07/2021,(82000) Provisions & Kitchens,(id:42213) Medical Specialties,NHS SUPPLY CHAIN (MAIDSTONE),id:14160388 , 106.56
Department of Health,Guys and St Thomas NHS Foundation Trust,29/07/2021,(82000) Provisions & Kitchens,(id:42213) Medical Specialties,NHS SUPPLY CHAIN (MAIDSTONE),id:14231714 ,  85.72
Department of Health,Guys and St Thomas NHS Foundation Trust,02/07/2021,(50203) Consultants,(id:42213) Medical Specialties,KINGS COLLEGE LONDON:03529700,id:14142032, 669.72
Department of Health,Guys and St Thomas NHS Foundation Trust,29/07/2021,(81200) Medical Surgical Supplies & Equipment,(id:42213) Medical Specialties,NHS SUPPLY CHAIN (MAIDSTONE),id:14231714, 739.27
Department of Health,Guys and St Thomas NHS Foundation Trust,16/07/2021,(81200) Medical Surgical Supplies & Equipment,(id:42206) Medical Specialties,NHS SUPPLY CHAIN (MAIDSTONE),id:14198514, 180.00
Department of Health,Guys and St Thomas NHS Foundation Trust,02/07/2021,(80010) Drug Costs,(id:42204) Medical Specialties,INHEALTH LTD/ECHOTECH LTD/REPORTING,id:14218913, 600.00
Department of Health,Guys and St Thomas NHS Foundation Trust,29/07/2021,(81200) Medical Surgical Supplies & Equipment,(id:42204) Medical Specialties,NHS SUPPLY CHAIN (MAIDSTONE),id:14231714,  54.58
Department of Health,Guys and St Thomas NHS Foundation Trust,23/07/2021,(81000) Surgical Appliances,(id:42204) Medical Specialties,TALAR MADE ORTHOTICS LTD,id:14261698  , 742.50
Department of Health,Guys and St Thomas NHS Foundation Trust,29/07/2021,(83400) Office Equipment,(id:42205) Medical Specialties,NHS SUPPLY CHAIN (MAIDSTONE),id:14231714 ,   2.02
Department of Health,Guys and St Thomas NHS Foundation Trust,16/07/2021,(81200) Medical Surgical Supplies & Equipment,(id:42205) Medical Specialties,NHS SUPPLY CHAIN (MAIDSTONE),id:14198514,  18.90
Department of Health,Guys and St Thomas NHS Foundation Trust,29/07/2021,(81100) Dressings,(id:42205) Medical Specialties,NHS SUPPLY CHAIN (MAIDSTONE),id:14231714   ,  48.24
Department of Health,Guys and St Thomas NHS Foundation Trust,29/07/2021,(83400) Office Equipment,(id:41937) Medical Specialties,NHS SUPPLY CHAIN (MAIDSTONE),id:14231714 , 208.66
Department of Health,Guys and St Thomas NHS Foundation Trust,02/07/2021,(81200) Medical Surgical Supplies & Equipment,(id:41937) Medical Specialties,BXTACCELYON LIMITED,id:14221733    ,2454.00
Department of Health,Guys and St Thomas NHS Foundation Trust,02/07/2021,(81200) Medical Surgical Supplies & Equipment,(id:41937) Medical Specialties,BOSTON SCIENTIFIC LTD,id:14150924  ,    10800.00
Department of Health,Guys and St Thomas NHS Foundation Trust,09/07/2021,(81200) Medical Surgical Supplies & Equipment,(id:41937) Medical Specialties,TPS HEALTHCARE GROUP,id:14226409   , 960.00
Department of Health,Guys and St Thomas NHS Foundation Trust,16/07/2021,(82800) Bedding & Linen,(id:41937) Medical Specialties,NHS SUPPLY CHAIN (MAIDSTONE),id:14213935  ,  69.53
Department of Health,Guys and St Thomas NHS Foundation Trust,02/07/2021,(84656) Establishment,(id:41937) Medical Specialties,DICT8 LIMITED,id:14217065    , 560.40
Department of Health,Guys and St Thomas NHS Foundation Trust,02/07/2021,(50200) Consultants,(id:41937) Medical Specialties,KINGS COLLEGE LONDON:03529700,id:14141434,3546.18
Department of Health,Guys and St Thomas NHS Foundation Trust,16/07/2021,(82600) Uniforms & Clothing,(id:41937) Medical Specialties,NHS SUPPLY CHAIN (MAIDSTONE),id:14213935   ,  61.20
Department of Health,Guys and St Thomas NHS Foundation Trust,29/07/2021,(81700) Lab Equipment Purchase,(id:41937) Medical Specialties,NHS SUPPLY CHAIN (MAIDSTONE),id:14231714,  70.08
Department of Health,Guys and St Thomas NHS Foundation Trust,13/07/2021,(53072) Speech Therapists,(id:184406) Therapies and Rehabilitation,PRICEWATERHOUSECOOPERS LLP,id:14246219  ,1411.24
Department of Health,Guys and St Thomas NHS Foundation Trust,29/07/2021,(51862) Physiotherapists,(id:42230) Therapies and Rehabilitation,PRICEWATERHOUSECOOPERS LLP,id:14286574    ,2344.13
Department of Health,Guys and St Thomas NHS Foundation Trust,13/07/2021,(51872) Physiotherapists,(id:42230) Therapies and Rehabilitation,PRICEWATERHOUSECOOPERS LLP,id:14246219    ,1376.06
Department of Health,Guys and St Thomas NHS Foundation Trust,16/07/2021,(81200) Medical Surgical Supplies & Equipment,(id:42231) Therapies and Rehabilitation,NHS SUPPLY CHAIN (MAIDSTONE),id:14177634 , 878.46
Department of Health,Guys and St Thomas NHS Foundation Trust,16/07/2021,(81225) Medical Surgical Supplies & Equipment,(id:42232) Therapies and Rehabilitation,NHS SUPPLY CHAIN (MAIDSTONE),id:14198514 ,  29.99
Department of Health,Guys and St Thomas NHS Foundation Trust,13/07/2021,(51872) Physiotherapists,(id:42234) Therapies and Rehabilitation,PRICEWATERHOUSECOOPERS LLP,id:14246431    ,1452.02
Department of Health,Guys and St Thomas NHS Foundation Trust,22/07/2021,(51862) Physiotherapists,(id:42234) Therapies and Rehabilitation,PRICEWATERHOUSECOOPERS LLP,id:14267805    ,1263.68
Department of Health,Guys and St Thomas NHS Foundation Trust,23/07/2021,(81100) Dressings,(id:42239) Therapies and Rehabilitation,PERFORMANCE HEALTH INTERNATIONAL LTD (PATTERSON),id:14265976    ,  27.33
Department of Health,Guys and St Thomas NHS Foundation Trust,29/07/2021,(81225) Medical Surgical Supplies & Equipment,(id:42239) Therapies and Rehabilitation,NHS SUPPLY CHAIN (MAIDSTONE),id:14231714 , 129.12
Department of Health,Guys and St Thomas NHS Foundation Trust,09/07/2021,(81225) Medical Surgical Supplies & Equipment,(id:42239) Therapies and Rehabilitation,PERFORMANCE HEALTH INTERNATIONAL LTD (PATTERSON),id:14229233 , 387.28
Department of Health,Guys and St Thomas NHS Foundation Trust,16/07/2021,(81225) Medical Surgical Supplies & Equipment,(id:42239) Therapies and Rehabilitation,PROMEDICS ORTHOPAEDICS LTD,id:14236574   , 162.48
Department of Health,Guys and St Thomas NHS Foundation Trust,16/07/2021,(81200) Medical Surgical Supplies & Equipment,(id:42240) Therapies and Rehabilitation,INVACARE LTD,id:14249935  ,1532.40
Department of Health,Guys and St Thomas NHS Foundation Trust,16/07/2021,(81200) Medical Surgical Supplies & Equipment,(id:590566) Therapies and Rehabilitation,NHS SUPPLY CHAIN (MAIDSTONE),id:14213935,1240.08
Department of Health,Guys and St Thomas NHS Foundation Trust,29/07/2021,(81200) Medical Surgical Supplies & Equipment,(id:590566) Therapies and Rehabilitation,NHS SUPPLY CHAIN (MAIDSTONE),id:14231714,1008.82
Department of Health,Guys and St Thomas NHS Foundation Trust,22/07/2021,(51062) Chiropodists,(id:590530) Therapies and Rehabilitation,PRICEWATERHOUSECOOPERS LLP,id:14267805  , 494.41
Department of Health,Guys and St Thomas NHS Foundation Trust,16/07/2021,(81100) Dressings,(id:590490) Therapies and Rehabilitation,NHS SUPPLY CHAIN (MAIDSTONE),id:14198514   , 193.87
Department of Health,Guys and St Thomas NHS Foundation Trust,16/07/2021,(81100) Dressings,(id:590490) Therapies and Rehabilitation,NHS SUPPLY CHAIN (MAIDSTONE),id:14177634   , 296.53
Department of Health,Guys and St Thomas NHS Foundation Trust,16/07/2021,(81225) Medical Surgical Supplies & Equipment,(id:590490) Therapies and Rehabilitation,NHS SUPPLY CHAIN (MAIDSTONE),id:14160388,  86.40
Department of Health,Guys and St Thomas NHS Foundation Trust,29/07/2021,(83500) Furniture & Fittings,(id:590490) Therapies and Rehabilitation,NHS SUPPLY CHAIN (MAIDSTONE),id:14231714  ,  26.86
Department of Health,Guys and St Thomas NHS Foundation Trust,29/07/2021,(52062) Radiographers,(id:42243) Therapies and Rehabilitation,PRICEWATERHOUSECOOPERS LLP,id:14286574  , 982.11
Department of Health,Guys and St Thomas NHS Foundation Trust,13/07/2021,(53062) Speech Therapists,(id:42248) Therapies and Rehabilitation,PRICEWATERHOUSECOOPERS LLP,id:14246431   , 745.44
Department of Health,Guys and St Thomas NHS Foundation Trust,16/07/2021,(82800) Bedding & Linen,(id:42242) Therapies and Rehabilitation,NHS SUPPLY CHAIN (MAIDSTONE),id:14213935   ,  20.10
Department of Health,Guys and St Thomas NHS Foundation Trust,16/07/2021,(81100) Dressings,(id:590496) Therapies and Rehabilitation,NHS SUPPLY CHAIN (MAIDSTONE),id:14160388   ,  13.80
Department of Health,Guys and St Thomas NHS Foundation Trust,29/07/2021,(81200) Medical Surgical Supplies & Equipment,(id:590499) Therapies and Rehabilitation,INVACARE LTD,id:14258134 ,1591.20
Department of Health,Guys and St Thomas NHS Foundation Trust,29/07/2021,(81200) Medical Surgical Supplies & Equipment,(id:590499) Therapies and Rehabilitation,SUNRISE MEDICAL LIMITED,id:14244304,1958.40
Department of Health,Guys and St Thomas NHS Foundation Trust,29/07/2021,(81200) Medical Surgical Supplies & Equipment,(id:590499) Therapies and Rehabilitation,INVACARE LTD,id:14260234 ,3088.80
Department of Health,Guys and St Thomas NHS Foundation Trust,29/07/2021,(81200) Medical Surgical Supplies & Equipment,(id:590499) Therapies and Rehabilitation,INVACARE LTD,id:14260378 ,4425.66
Department of Health,Guys and St Thomas NHS Foundation Trust,29/07/2021,(81225) Medical Surgical Supplies & Equipment,(id:590499) Therapies and Rehabilitation,ACTIVE DESIGN LTD,id:14244328 ,1570.08
Department of Health,Guys and St Thomas NHS Foundation Trust,29/07/2021,(81225) Medical Surgical Supplies & Equipment,(id:590499) Therapies and Rehabilitation,QBITUS PRODUCTS LTD,id:14258004    , 817.81
Department of Health,Guys and St Thomas NHS Foundation Trust,02/07/2021,(89595) Non-Healthcare from Foundation Trusts,(id:590499) Therapies and Rehabilitation,KING'S COLLEGE HOSPITAL NHS FOUNDATION TRUST,id:14218678    ,   -28296.25
Department of Health,Guys and St Thomas NHS Foundation Trust,02/07/2021,(83610) IT Costs,(id:590500) Therapies and Rehabilitation,CBC COMPUTER SYSTEMS LTD,id:14221909   ,1045.20
Department of Health,Guys and St Thomas NHS Foundation Trust,16/07/2021,(83610) IT Costs,(id:590500) Therapies and Rehabilitation,MOUNTS & MORE LTD,id:14245809, 888.00
Department of Health,Guys and St Thomas NHS Foundation Trust,16/07/2021,(83610) IT Costs,(id:590500) Therapies and Rehabilitation,CBC COMPUTER SYSTEMS LTD,id:14246957   ,1407.80
Department of Health,Guys and St Thomas NHS Foundation Trust,16/07/2021,(81100) Dressings,(id:1042419) Therapies and Rehabilitation,NHS SUPPLY CHAIN (MAIDSTONE),id:14213935  , 102.05
Department of Health,Guys and St Thomas NHS Foundation Trust,16/07/2021,(81200) Medical Surgical Supplies & Equipment,(id:1042419) Therapies and Rehabilitation,NHS SUPPLY CHAIN (MAIDSTONE),id:14160388    , 115.51
Department of Health,Guys and St Thomas NHS Foundation Trust,29/07/2021,(83400) Office Equipment,(id:1042419) Therapies and Rehabilitation,NHS SUPPLY CHAIN (MAIDSTONE),id:14231714,   7.68
Department of Health,Guys and St Thomas NHS Foundation Trust,16/07/2021,(81100) Dressings,(id:42366) Clinical Imaging & Med Physics,NHS SUPPLY CHAIN (MAIDSTONE),id:14163435  ,  40.21
Department of Health,Guys and St Thomas NHS Foundation Trust,29/07/2021,(81200) Medical Surgical Supplies & Equipment,(id:42366) Clinical Imaging & Med Physics,NHS SUPPLY CHAIN (MAIDSTONE),id:14231714    ,3350.99
Department of Health,Guys and St Thomas NHS Foundation Trust,02/07/2021,(81200) Medical Surgical Supplies & Equipment,(id:42366) Clinical Imaging & Med Physics,MERIT MEDICAL UK LTD,id:14206020  , 506.40
Department of Health,Guys and St Thomas NHS Foundation Trust,16/07/2021,(81200) Medical Surgical Supplies & Equipment,(id:42366) Clinical Imaging & Med Physics,NHS SUPPLY CHAIN (MAIDSTONE),id:14198514    ,1372.04
Department of Health,Guys and St Thomas NHS Foundation Trust,09/07/2021,(89595) Non-Healthcare from Foundation Trusts,(id:42366) Clinical Imaging & Med Physics,GREAT ORMOND STREET HOSPITAL FOR CHILDREN NHS FOUNDATION TRUST,id:14206005,1874.20
Department of Health,Guys and St Thomas NHS Foundation Trust,16/07/2021,(89595) Non-Healthcare from Foundation Trusts,(id:42366) Clinical Imaging & Med Physics,GREAT ORMOND STREET HOSPITAL FOR CHILDREN NHS FOUNDATION TRUST,id:9090551 ,1874.20
Department of Health,Guys and St Thomas NHS Foundation Trust,16/07/2021,(81700) Lab Equipment Purchase,(id:42366) Clinical Imaging & Med Physics,NHS SUPPLY CHAIN (MAIDSTONE),id:14198514    ,  47.08
Department of Health,Guys and St Thomas NHS Foundation Trust,16/07/2021,(82000) Provisions & Kitchens,(id:42367) Clinical Imaging & Med Physics,NHS SUPPLY CHAIN (MAIDSTONE),id:14198514,   9.50
Department of Health,Guys and St Thomas NHS Foundation Trust,16/07/2021,(82000) Provisions & Kitchens,(id:42367) Clinical Imaging & Med Physics,NHS SUPPLY CHAIN (MAIDSTONE),id:14160388,  15.82
Department of Health,Guys and St Thomas NHS Foundation Trust,16/07/2021,(83400) Office Equipment,(id:42367) Clinical Imaging & Med Physics,NHS SUPPLY CHAIN (MAIDSTONE),id:14177634, 304.39
Department of Health,Guys and St Thomas NHS Foundation Trust,16/07/2021,(82800) Bedding & Linen,(id:42367) Clinical Imaging & Med Physics,NHS SUPPLY CHAIN (MAIDSTONE),id:14163435 , 268.46
Department of Health,Guys and St Thomas NHS Foundation Trust,16/07/2021,(82800) Bedding & Linen,(id:42367) Clinical Imaging & Med Physics,NHS SUPPLY CHAIN (MAIDSTONE),id:14198514 , 430.22
Department of Health,Guys and St Thomas NHS Foundation Trust,09/07/2021,(81400) Medical Surgical Supplies & Equipment,(id:42367) Clinical Imaging & Med Physics,NHS SUPPLY CHAIN ( CAPITAL FUND ONLY),id:12705452,3083.13
Department of Health,Guys and St Thomas NHS Foundation Trust,29/07/2021,(81400) Medical Surgical Supplies & Equipment,(id:42367) Clinical Imaging & Med Physics,NHS SUPPLY CHAIN ( CAPITAL FUND ONLY),id:14275657,    30759.32
Department of Health,Guys and St Thomas NHS Foundation Trust,29/07/2021,(81400) Medical Surgical Supplies & Equipment,(id:42367) Clinical Imaging & Med Physics,NHS SUPPLY CHAIN ( CAPITAL FUND ONLY),id:14283954,    29912.52
Department of Health,Guys and St Thomas NHS Foundation Trust,23/07/2021,(50203) Consultants,(id:42367) Clinical Imaging & Med Physics,KINGS COLLEGE LONDON:03529700,id:14140754    ,2419.70
Department of Health,Guys and St Thomas NHS Foundation Trust,29/07/2021,(80150) Drug Costs,(id:42367) Clinical Imaging & Med Physics,NHS SUPPLY CHAIN (MAIDSTONE),id:14231714 , 254.40
Department of Health,Guys and St Thomas NHS Foundation Trust,09/07/2021,(81200) Medical Surgical Supplies & Equipment,(id:42367) Clinical Imaging & Med Physics,COOK UK LTD,id:14147997 ,1587.60
Department of Health,Guys and St Thomas NHS Foundation Trust,09/07/2021,(81200) Medical Surgical Supplies & Equipment,(id:42367) Clinical Imaging & Med Physics,COOK UK LTD,id:14201100 , 403.20
Department of Health,Guys and St Thomas NHS Foundation Trust,09/07/2021,(81200) Medical Surgical Supplies & Equipment,(id:42367) Clinical Imaging & Med Physics,COOK UK LTD,id:14143981 , 518.40
Department of Health,Guys and St Thomas NHS Foundation Trust,09/07/2021,(81200) Medical Surgical Supplies & Equipment,(id:42367) Clinical Imaging & Med Physics,COOK UK LTD,id:14197288 , 783.60
Department of Health,Guys and St Thomas NHS Foundation Trust,09/07/2021,(81200) Medical Surgical Supplies & Equipment,(id:42367) Clinical Imaging & Med Physics,COOK UK LTD,id:14150048 , 501.60
Department of Health,Guys and St Thomas NHS Foundation Trust,16/07/2021,(81200) Medical Surgical Supplies & Equipment,(id:42367) Clinical Imaging & Med Physics,NHS SUPPLY CHAIN (MAIDSTONE),id:14177634    ,8977.77
Department of Health,Guys and St Thomas NHS Foundation Trust,16/07/2021,(81200) Medical Surgical Supplies & Equipment,(id:42367) Clinical Imaging & Med Physics,ABBOTT MEDICAL UK LTD,id:14248269 ,3132.00
Department of Health,Guys and St Thomas NHS Foundation Trust,23/07/2021,(81200) Medical Surgical Supplies & Equipment,(id:42367) Clinical Imaging & Med Physics,ABBOTT MEDICAL UK LTD,id:14258166 ,1020.00
Department of Health,Guys and St Thomas NHS Foundation Trust,23/07/2021,(81200) Medical Surgical Supplies & Equipment,(id:42367) Clinical Imaging & Med Physics,COOK UK LTD,id:14233754 , 984.00
Department of Health,Guys and St Thomas NHS Foundation Trust,23/07/2021,(81200) Medical Surgical Supplies & Equipment,(id:42367) Clinical Imaging & Med Physics,ABBOTT MEDICAL UK LTD,id:14258161 ,1080.00
Department of Health,Guys and St Thomas NHS Foundation Trust,23/07/2021,(81200) Medical Surgical Supplies & Equipment,(id:42367) Clinical Imaging & Med Physics,TERUMO UK LTD,id:14257698    ,1140.00
Department of Health,Guys and St Thomas NHS Foundation Trust,23/07/2021,(81200) Medical Surgical Supplies & Equipment,(id:42367) Clinical Imaging & Med Physics,VOLCANO EUROPE BVBA/SPRL,id:14261034   , 540.00
Department of Health,Guys and St Thomas NHS Foundation Trust,02/07/2021,(81200) Medical Surgical Supplies & Equipment,(id:42367) Clinical Imaging & Med Physics,BOSTON SCIENTIFIC LTD,id:14166554 , 606.00
Department of Health,Guys and St Thomas NHS Foundation Trust,02/07/2021,(81200) Medical Surgical Supplies & Equipment,(id:42367) Clinical Imaging & Med Physics,BOSTON SCIENTIFIC LTD,id:14175921 , 540.00
Department of Health,Guys and St Thomas NHS Foundation Trust,23/07/2021,(81235) Medical Surgical Supplies & Equipment,(id:42367) Clinical Imaging & Med Physics,BOSTON SCIENTIFIC LTD,id:14227127 , 698.70
Department of Health,Guys and St Thomas NHS Foundation Trust,09/07/2021,(81230) Medical Surgical Supplies & Equipment,(id:42367) Clinical Imaging & Med Physics,COOK UK LTD,id:14146417 , 540.00
Department of Health,Guys and St Thomas NHS Foundation Trust,09/07/2021,(81230) Medical Surgical Supplies & Equipment,(id:42367) Clinical Imaging & Med Physics,COOK UK LTD,id:14150048 , 354.00
Department of Health,Guys and St Thomas NHS Foundation Trust,09/07/2021,(81230) Medical Surgical Supplies & Equipment,(id:42367) Clinical Imaging & Med Physics,COOK UK LTD,id:14036573 , 514.80
Department of Health,Guys and St Thomas NHS Foundation Trust,09/07/2021,(81230) Medical Surgical Supplies & Equipment,(id:42367) Clinical Imaging & Med Physics,COOK UK LTD,id:14174852 , 184.80
Department of Health,Guys and St Thomas NHS Foundation Trust,16/07/2021,(81230) Medical Surgical Supplies & Equipment,(id:42367) Clinical Imaging & Med Physics,COOK UK LTD,id:14146424 , 367.20
Department of Health,Guys and St Thomas NHS Foundation Trust,23/07/2021,(81500) X Ray Equipment Purchase,(id:42367) Clinical Imaging & Med Physics,BAYER PLC,id:14253482 ,2131.20
Department of Health,Guys and St Thomas NHS Foundation Trust,23/07/2021,(81500) X Ray Equipment Purchase,(id:42367) Clinical Imaging & Med Physics,BAYER PLC,id:14260699 ,1420.80
Department of Health,Guys and St Thomas NHS Foundation Trust,09/07/2021,(81500) X Ray Equipment Purchase,(id:42367) Clinical Imaging & Med Physics,AGITO MEDICAL,id:14224394  ,    28600.00
Department of Health,Guys and St Thomas NHS Foundation Trust,13/07/2021,(52062) Radiographers,(id:42368) Clinical Imaging & Med Physics,PRICEWATERHOUSECOOPERS LLP,id:14246431, 858.04
Department of Health,Guys and St Thomas NHS Foundation Trust,29/07/2021,(52062) Radiographers,(id:42368) Clinical Imaging & Med Physics,PRICEWATERHOUSECOOPERS LLP,id:14286574,2349.91
Department of Health,Guys and St Thomas NHS Foundation Trust,16/07/2021,(82600) Uniforms & Clothing,(id:42372) Clinical Imaging & Med Physics,NHS SUPPLY CHAIN (MAIDSTONE),id:14163435  ,  18.00
Department of Health,Guys and St Thomas NHS Foundation Trust,16/07/2021,(83400) Office Equipment,(id:42372) Clinical Imaging & Med Physics,NHS SUPPLY CHAIN (MAIDSTONE),id:14198514, 112.56
Department of Health,Guys and St Thomas NHS Foundation Trust,16/07/2021,(83400) Office Equipment,(id:42372) Clinical Imaging & Med Physics,NHS SUPPLY CHAIN (MAIDSTONE),id:14213935, 119.60
Department of Health,Guys and St Thomas NHS Foundation Trust,16/07/2021,(81700) Lab Equipment Purchase,(id:42372) Clinical Imaging & Med Physics,NHS SUPPLY CHAIN (MAIDSTONE),id:14163435    ,  12.53
Department of Health,Guys and St Thomas NHS Foundation Trust,09/07/2021,(81200) Medical Surgical Supplies & Equipment,(id:42372) Clinical Imaging & Med Physics,ENVIRONMENT AGENCY:69356500,id:14238454,2521.00
Department of Health,Guys and St Thomas NHS Foundation Trust,16/07/2021,(81200) Medical Surgical Supplies & Equipment,(id:42372) Clinical Imaging & Med Physics,NHS SUPPLY CHAIN (MAIDSTONE),id:14198514    , 522.67
Department of Health,Guys and St Thomas NHS Foundation Trust,16/07/2021,(81275) Medical Surgical Supplies & Equipment,(id:42372) Clinical Imaging & Med Physics,CURIUM PHARMA UK LTD,id:14243134  , 612.00
Department of Health,Guys and St Thomas NHS Foundation Trust,16/07/2021,(81275) Medical Surgical Supplies & Equipment,(id:42372) Clinical Imaging & Med Physics,CURIUM PHARMA UK LTD,id:14242454  ,1008.00
Department of Health,Guys and St Thomas NHS Foundation Trust,02/07/2021,(81275) Medical Surgical Supplies & Equipment,(id:42372) Clinical Imaging & Med Physics,GE HEALTHCARE UK LTD:00475800,id:14166154   ,1998.00
Department of Health,Guys and St Thomas NHS Foundation Trust,16/07/2021,(81500) X Ray Equipment Purchase,(id:42372) Clinical Imaging & Med Physics,ADVANCED ACCELERATOR APPLICATIONS (UK & IRELAND) LTD,id:14236577   ,    20064.00
Department of Health,Guys and St Thomas NHS Foundation Trust,02/07/2021,(83400) Office Equipment,(id:4187419) Clinical Imaging & Med Physics,BAYER PLC,id:14218314  ,2112.00
Department of Health,Guys and St Thomas NHS Foundation Trust,02/07/2021,(81400) Medical Surgical Supplies & Equipment,(id:42379) Clinical Imaging & Med Physics,TENACORE UK LTD,id:14165653  ,1375.00
Department of Health,Guys and St Thomas NHS Foundation Trust,23/07/2021,(81400) Medical Surgical Supplies & Equipment,(id:42379) Clinical Imaging & Med Physics,C FRANKLIN LTD,id:14162894   ,2406.78
Department of Health,Guys and St Thomas NHS Foundation Trust,23/07/2021,(81400) Medical Surgical Supplies & Equipment,(id:42379) Clinical Imaging & Med Physics,C FRANKLIN LTD,id:14134792   ,1484.00
Department of Health,Guys and St Thomas NHS Foundation Trust,09/07/2021,(81200) Medical Surgical Supplies & Equipment,(id:42379) Clinical Imaging & Med Physics,CPC PLC,id:14240296,1336.66
Department of Health,Guys and St Thomas NHS Foundation Trust,09/07/2021,(81200) Medical Surgical Supplies & Equipment,(id:42379) Clinical Imaging & Med Physics,SRA DEVELOPMENTS LTD,id:14217754  ,2659.20
Department of Health,Guys and St Thomas NHS Foundation Trust,29/07/2021,(81200) Medical Surgical Supplies & Equipment,(id:42379) Clinical Imaging & Med Physics,EDAN MEDICAL (UK) LTD,id:14279426 ,1318.80
Department of Health,Guys and St Thomas NHS Foundation Trust,29/07/2021,(81200) Medical Surgical Supplies & Equipment,(id:42379) Clinical Imaging & Med Physics,B.BRAUN MEDICAL LTD,id:14278785   ,1254.72
Department of Health,Guys and St Thomas NHS Foundation Trust,02/07/2021,(84500) Establishment,(id:1348419) Clinical Imaging & Med Physics,CDP  PRINT MANAGEMENT,id:14196232   , 815.26
Department of Health,Guys and St Thomas NHS Foundation Trust,23/07/2021,(81200) Medical Surgical Supplies & Equipment,(id:1348419) Clinical Imaging & Med Physics,ABBOTT MEDICAL UK LTD,id:14258172    , 726.00
Department of Health,Guys and St Thomas NHS Foundation Trust,16/07/2021,(81235) Medical Surgical Supplies & Equipment,(id:1348419) Clinical Imaging & Med Physics,MEDALLIANCE S.A.,id:14165295    , 790.00
Department of Health,Guys and St Thomas NHS Foundation Trust,16/07/2021,(81700) Lab Equipment Purchase,(id:1348419) Clinical Imaging & Med Physics,NHS SUPPLY CHAIN (MAIDSTONE),id:14163435  , 148.62
Department of Health,Guys and St Thomas NHS Foundation Trust,23/07/2021,(82600) Uniforms & Clothing,(id:1348419) Clinical Imaging & Med Physics,JADE MEDICAL LTD,id:14261769  , 951.00
Department of Health,Guys and St Thomas NHS Foundation Trust,29/07/2021,(84400) Transport,(id:590598) Integrated Local Services,CITYSPRINT (UK) LTD,id:14178010,2405.26
Department of Health,Guys and St Thomas NHS Foundation Trust,16/07/2021,(82800) Bedding & Linen,(id:590584) Integrated Local Services,NHS SUPPLY CHAIN (MAIDSTONE),id:14160388,  58.98
Department of Health,Guys and St Thomas NHS Foundation Trust,16/07/2021,(83400) Office Equipment,(id:590469) Integrated Local Services,NHS SUPPLY CHAIN (MAIDSTONE),id:14160388    ,  22.65
Department of Health,Guys and St Thomas NHS Foundation Trust,16/07/2021,(82000) Provisions & Kitchens,(id:590563) Integrated Local Services,NHS SUPPLY CHAIN (MAIDSTONE),id:14213935    ,  61.68
Department of Health,Guys and St Thomas NHS Foundation Trust,02/07/2021,(86300) Healthcare from non-NHS bodies,(id:590563) Integrated Local Services,PAVILION MEDICAL CENTRE,id:14212914, 542.12
Department of Health,Guys and St Thomas NHS Foundation Trust,16/07/2021,(81200) Medical Surgical Supplies & Equipment,(id:590579) Integrated Local Services,NHS SUPPLY CHAIN (MAIDSTONE),id:14177634   ,   8.21
Department of Health,Guys and St Thomas NHS Foundation Trust,16/07/2021,(81225) Medical Surgical Supplies & Equipment,(id:590492) Integrated Local Services,NHS SUPPLY CHAIN (MAIDSTONE),id:14177634   ,  73.38
Department of Health,Guys and St Thomas NHS Foundation Trust,16/07/2021,(81225) Medical Surgical Supplies & Equipment,(id:590492) Integrated Local Services,NHS SUPPLY CHAIN (MAIDSTONE),id:14198514   ,  71.88
Department of Health,Guys and St Thomas NHS Foundation Trust,23/07/2021,(89595) Non-Healthcare from Foundation Trusts,(id:590492) Integrated Local Services,KING'S COLLEGE HOSPITAL NHS FOUNDATION TRUST,id:14182872  ,    43451.76
Department of Health,Guys and St Thomas NHS Foundation Trust,22/07/2021,(51862) Physiotherapists,(id:699422) Integrated Local Services,PRICEWATERHOUSECOOPERS LLP,id:14267805 ,2346.25
Department of Health,Guys and St Thomas NHS Foundation Trust,29/07/2021,(51832) Physiotherapists,(id:590523) Integrated Local Services,PRICEWATERHOUSECOOPERS LLP,id:14286574 , 779.38
Department of Health,Guys and St Thomas NHS Foundation Trust,16/07/2021,(81200) Medical Surgical Supplies & Equipment,(id:684420) Integrated Local Services,NHS SUPPLY CHAIN (MAIDSTONE),id:14163435   ,  16.20
Department of Health,Guys and St Thomas NHS Foundation Trust,13/07/2021,(51462) Occupational Therapists,(id:1913419) Integrated Local Services,PRICEWATERHOUSECOOPERS LLP,id:14246431   , 489.40
Department of Health,Guys and St Thomas NHS Foundation Trust,29/07/2021,(81225) Medical Surgical Supplies & Equipment,(id:590504) Integrated Local Services,NHS SUPPLY CHAIN (MAIDSTONE),id:14231714   ,  98.40
Department of Health,Guys and St Thomas NHS Foundation Trust,13/07/2021,(51862) Physiotherapists,(id:590504) Integrated Local Services,PRICEWATERHOUSECOOPERS LLP,id:14246431 ,4576.38
Department of Health,Guys and St Thomas NHS Foundation Trust,16/07/2021,(81100) Dressings,(id:590470) Integrated Local Services,NHS SUPPLY CHAIN (MAIDSTONE),id:14198514 ,   2.48
Department of Health,Guys and St Thomas NHS Foundation Trust,16/07/2021,(81200) Medical Surgical Supplies & Equipment,(id:590470) Integrated Local Services,NHS SUPPLY CHAIN (MAIDSTONE),id:14160388   , 149.88
Department of Health,Guys and St Thomas NHS Foundation Trust,16/07/2021,(84200) Rental under Operating Lease,(id:590471) Integrated Local Services,UNDERWOODS GARAGE (TIPTREE) LTD,id:14244695    ,7080.00
Department of Health,Guys and St Thomas NHS Foundation Trust,16/07/2021,(81100) Dressings,(id:590471) Integrated Local Services,NHS SUPPLY CHAIN (MAIDSTONE),id:14198514 ,  35.33
Department of Health,Guys and St Thomas NHS Foundation Trust,16/07/2021,(83400) Office Equipment,(id:590473) Integrated Local Services,NHS SUPPLY CHAIN (MAIDSTONE),id:14160388    ,  56.04
Department of Health,Guys and St Thomas NHS Foundation Trust,16/07/2021,(81200) Medical Surgical Supplies & Equipment,(id:590473) Integrated Local Services,NHS SUPPLY CHAIN (MAIDSTONE),id:14213935   , 137.76
Department of Health,Guys and St Thomas NHS Foundation Trust,16/07/2021,(81230) Medical Surgical Supplies & Equipment,(id:590473) Integrated Local Services,NHS SUPPLY CHAIN (MAIDSTONE),id:14213935   , 120.78
Department of Health,Guys and St Thomas NHS Foundation Trust,16/07/2021,(81200) Medical Surgical Supplies & Equipment,(id:590522) Integrated Local Services,NHS SUPPLY CHAIN (MAIDSTONE),id:14160388   ,  26.16
Department of Health,Guys and St Thomas NHS Foundation Trust,29/07/2021,(50552) Qualified Nursing Staff,(id:590522) Integrated Local Services,MSI GROUP LTD,id:14281685  ,1169.88
Department of Health,Guys and St Thomas NHS Foundation Trust,16/07/2021,(82000) Provisions & Kitchens,(id:590522) Integrated Local Services,NHS SUPPLY CHAIN (MAIDSTONE),id:14163435    ,   8.05
Department of Health,Guys and St Thomas NHS Foundation Trust,16/07/2021,(84100) Transport,(id:590521) Integrated Local Services,LONDON BOROUGH OF LAMBETH:51362800,id:14219071,-335.58
Department of Health,Guys and St Thomas NHS Foundation Trust,19/07/2021,(84100) Transport,(id:590521) Integrated Local Services,LONDON BOROUGH OF LAMBETH:51362800,id:14219071, 335.58
Department of Health,Guys and St Thomas NHS Foundation Trust,16/07/2021,(81700) Lab Equipment Purchase,(id:590521) Integrated Local Services,NHS SUPPLY CHAIN (MAIDSTONE),id:14163435   ,  27.02
Department of Health,Guys and St Thomas NHS Foundation Trust,09/07/2021,(50552) Qualified Nursing Staff,(id:590521) Integrated Local Services,NURSING 2000 LTD,id:14203328    , 244.21
Department of Health,Guys and St Thomas NHS Foundation Trust,09/07/2021,(50552) Qualified Nursing Staff,(id:590521) Integrated Local Services,NURSING 2000 LTD,id:14203378    , 299.50
Department of Health,Guys and St Thomas NHS Foundation Trust,09/07/2021,(50552) Qualified Nursing Staff,(id:590521) Integrated Local Services,NURSING 2000 LTD,id:14203473    , 617.64
Department of Health,Guys and St Thomas NHS Foundation Trust,16/07/2021,(50552) Qualified Nursing Staff,(id:590521) Integrated Local Services,NURSING 2000 LTD,id:14221503    ,1231.32
Department of Health,Guys and St Thomas NHS Foundation Trust,29/07/2021,(81200) Medical Surgical Supplies & Equipment,(id:590520) Integrated Local Services,NHS SUPPLY CHAIN (MAIDSTONE),id:14231714   , 765.00
Department of Health,Guys and St Thomas NHS Foundation Trust,16/07/2021,(81200) Medical Surgical Supplies & Equipment,(id:590520) Integrated Local Services,NHS SUPPLY CHAIN (MAIDSTONE),id:14213935   ,1344.00
Department of Health,Guys and St Thomas NHS Foundation Trust,16/07/2021,(82000) Provisions & Kitchens,(id:590520) Integrated Local Services,NHS SUPPLY CHAIN (MAIDSTONE),id:14213935    ,  98.22
Department of Health,Guys and St Thomas NHS Foundation Trust,29/07/2021,(86300) Healthcare from non-NHS bodies,(id:590477) Integrated Local Services,NHS SUPPLY CHAIN (MAIDSTONE),id:14276375,6234.86
Department of Health,Guys and St Thomas NHS Foundation Trust,29/07/2021,(86300) Healthcare from non-NHS bodies,(id:590477) Integrated Local Services,NHS SUPPLY CHAIN (MAIDSTONE),id:14276434, 527.45
Department of Health,Guys and St Thomas NHS Foundation Trust,29/07/2021,(86300) Healthcare from non-NHS bodies,(id:590477) Integrated Local Services,NHS SUPPLY CHAIN (MAIDSTONE),id:14276157,6948.42
Department of Health,Guys and St Thomas NHS Foundation Trust,29/07/2021,(50562) Qualified Nursing Staff,(id:590463) Integrated Local Services,COYLE PERSONNEL PLC,id:14281466 ,1750.00
Department of Health,Guys and St Thomas NHS Foundation Trust,09/07/2021,(50562) Qualified Nursing Staff,(id:590463) Integrated Local Services,COYLE PERSONNEL PLC,id:14236425 ,1750.00
Department of Health,Guys and St Thomas NHS Foundation Trust,09/07/2021,(50562) Qualified Nursing Staff,(id:590463) Integrated Local Services,COYLE PERSONNEL PLC,id:14236251 ,1750.00
Department of Health,Guys and St Thomas NHS Foundation Trust,29/07/2021,(81100) Dressings,(id:590527) Integrated Local Services,NHS SUPPLY CHAIN (MAIDSTONE),id:14231714 ,  77.16
Department of Health,Guys and St Thomas NHS Foundation Trust,16/07/2021,(83500) Furniture & Fittings,(id:590527) Integrated Local Services,NHS SUPPLY CHAIN (MAIDSTONE),id:14160388, 998.40
Department of Health,Guys and St Thomas NHS Foundation Trust,16/07/2021,(83400) Office Equipment,(id:903421) Integrated Local Services,NHS SUPPLY CHAIN (MAIDSTONE),id:14198514    ,  20.28
Department of Health,Guys and St Thomas NHS Foundation Trust,16/07/2021,(81100) Dressings,(id:903421) Integrated Local Services,NHS SUPPLY CHAIN (MAIDSTONE),id:14213935 , 593.10
Department of Health,Guys and St Thomas NHS Foundation Trust,23/07/2021,(89120) Other - Legal fees,(id:699421) Integrated Local Services,BEACHCROFT LLP OFFICE ACCOUNT,id:14254974 ,    11406.10
Department of Health,Guys and St Thomas NHS Foundation Trust,16/07/2021,(50552) Qualified Nursing Staff,(id:4834421) Integrated Local Services,NURSING 2000 LTD,id:14221621   ,1107.31
Department of Health,Guys and St Thomas NHS Foundation Trust,09/07/2021,(50552) Qualified Nursing Staff,(id:4834422) Integrated Local Services,NURSING 2000 LTD,id:14236378   , 424.15
Department of Health,Guys and St Thomas NHS Foundation Trust,09/07/2021,(50552) Qualified Nursing Staff,(id:4609420) Integrated Local Services,NURSING 2000 LTD,id:14203422   , 947.80
Department of Health,Guys and St Thomas NHS Foundation Trust,09/07/2021,(50552) Qualified Nursing Staff,(id:4609420) Integrated Local Services,NURSING 2000 LTD,id:14203328   ,1221.07
Department of Health,Guys and St Thomas NHS Foundation Trust,16/07/2021,(81200) Medical Surgical Supplies & Equipment,(id:4263421) Integrated Local Services,NHS SUPPLY CHAIN (MAIDSTONE),id:14213935  , 503.11
Department of Health,Guys and St Thomas NHS Foundation Trust,29/07/2021,(81200) Medical Surgical Supplies & Equipment,(id:4263421) Integrated Local Services,NHS SUPPLY CHAIN (MAIDSTONE),id:14231714  ,  78.72
Department of Health,Guys and St Thomas NHS Foundation Trust,16/07/2021,(82800) Bedding & Linen,(id:4263422) Integrated Local Services,NHS SUPPLY CHAIN (MAIDSTONE),id:14213935    ,  41.47
Department of Health,Guys and St Thomas NHS Foundation Trust,23/07/2021,(50552) Qualified Nursing Staff,(id:4263423) Integrated Local Services,NURSING 2000 LTD,id:14236551   , 476.28
Department of Health,Guys and St Thomas NHS Foundation Trust,23/07/2021,(89040) Other - Hospitality,(id:4273419) Integrated Care Management,ETC VENUES LIMITED,id:14270674    ,1072.50
Department of Health,Guys and St Thomas NHS Foundation Trust,16/07/2021,(82800) Bedding & Linen,(id:42518) Evelina Womens Services,NHS SUPPLY CHAIN (MAIDSTONE),id:14213935   ,  11.23
Department of Health,Guys and St Thomas NHS Foundation Trust,16/07/2021,(81100) Dressings,(id:42518) Evelina Womens Services,NHS SUPPLY CHAIN (MAIDSTONE),id:14177634    ,  49.06
Department of Health,Guys and St Thomas NHS Foundation Trust,23/07/2021,(82400) Contract Hotel Services,(id:42518) Evelina Womens Services,ELIS UK LIMITED,id:14268164   , 971.80
Department of Health,Guys and St Thomas NHS Foundation Trust,16/07/2021,(83400) Office Equipment,(id:42517) Evelina Womens Services,NHS SUPPLY CHAIN (MAIDSTONE),id:14177634  ,  44.64
Department of Health,Guys and St Thomas NHS Foundation Trust,16/07/2021,(83400) Office Equipment,(id:42517) Evelina Womens Services,NHS SUPPLY CHAIN (MAIDSTONE),id:14163435  ,  37.68
Department of Health,Guys and St Thomas NHS Foundation Trust,09/07/2021,(50552) Qualified Nursing Staff,(id:42517) Evelina Womens Services,CONTINENTAL NURSE LTD,id:14236310  ,2075.25
Department of Health,Guys and St Thomas NHS Foundation Trust,16/07/2021,(82700) Uniforms & Clothing,(id:42517) Evelina Womens Services,NHS SUPPLY CHAIN (MAIDSTONE),id:14160388    ,  77.52
Department of Health,Guys and St Thomas NHS Foundation Trust,16/07/2021,(81200) Medical Surgical Supplies & Equipment,(id:42517) Evelina Womens Services,CLEANROOM SUPPLIES LTD,id:14248199  ,2107.20
Department of Health,Guys and St Thomas NHS Foundation Trust,23/07/2021,(81200) Medical Surgical Supplies & Equipment,(id:42517) Evelina Womens Services,COOK UK LTD,id:14146426   ,4416.00
Department of Health,Guys and St Thomas NHS Foundation Trust,29/07/2021,(81225) Medical Surgical Supplies & Equipment,(id:42517) Evelina Womens Services,NHS SUPPLY CHAIN (MAIDSTONE),id:14231714 , 364.40
Department of Health,Guys and St Thomas NHS Foundation Trust,23/07/2021,(81700) Lab Equipment Purchase,(id:42517) Evelina Womens Services,ALS INDUSTRIAL SERVICES LTD,id:13928027  , 696.00
Department of Health,Guys and St Thomas NHS Foundation Trust,16/07/2021,(81700) Lab Equipment Purchase,(id:42517) Evelina Womens Services,QUIREPACE LTD,id:14228868 , 704.21
Department of Health,Guys and St Thomas NHS Foundation Trust,16/07/2021,(81700) Lab Equipment Purchase,(id:42513) Evelina Womens Services,NHS SUPPLY CHAIN (MAIDSTONE),id:14177634 ,  41.03
Department of Health,Guys and St Thomas NHS Foundation Trust,16/07/2021,(82700) Uniforms & Clothing,(id:42513) Evelina Womens Services,NHS SUPPLY CHAIN (MAIDSTONE),id:14177634    ,  31.68
Department of Health,Guys and St Thomas NHS Foundation Trust,16/07/2021,(82000) Provisions & Kitchens,(id:42513) Evelina Womens Services,NHS SUPPLY CHAIN (MAIDSTONE),id:14160388  ,  28.20
Department of Health,Guys and St Thomas NHS Foundation Trust,16/07/2021,(82000) Provisions & Kitchens,(id:42513) Evelina Womens Services,NHS SUPPLY CHAIN (MAIDSTONE),id:14163435  ,  42.04
Department of Health,Guys and St Thomas NHS Foundation Trust,29/07/2021,(82000) Provisions & Kitchens,(id:42513) Evelina Womens Services,NHS SUPPLY CHAIN (MAIDSTONE),id:14231714  ,  40.06
Department of Health,Guys and St Thomas NHS Foundation Trust,16/07/2021,(81100) Dressings,(id:42509) Evelina Womens Services,NHS SUPPLY CHAIN (MAIDSTONE),id:14177634    ,  70.99
Department of Health,Guys and St Thomas NHS Foundation Trust,16/07/2021,(81200) Medical Surgical Supplies & Equipment,(id:42509) Evelina Womens Services,NHS SUPPLY CHAIN (MAIDSTONE),id:14160388 , 281.52
Department of Health,Guys and St Thomas NHS Foundation Trust,23/07/2021,(81200) Medical Surgical Supplies & Equipment,(id:42509) Evelina Womens Services,OLYMPUS KEYMED,id:14246197,2419.52
Department of Health,Guys and St Thomas NHS Foundation Trust,29/07/2021,(81400) Medical Surgical Supplies & Equipment,(id:42511) Evelina Womens Services,LINDSAY SURGICAL SUPPLIES LIMITED,id:14276215 , 568.00
Department of Health,Guys and St Thomas NHS Foundation Trust,16/07/2021,(81200) Medical Surgical Supplies & Equipment,(id:42511) Evelina Womens Services,CRYOLIFE EUROPA LTD,id:14248412,3002.40
Department of Health,Guys and St Thomas NHS Foundation Trust,02/07/2021,(81200) Medical Surgical Supplies & Equipment,(id:42511) Evelina Womens Services,AQUILANT LTD,id:14202711  , 960.00
Department of Health,Guys and St Thomas NHS Foundation Trust,23/07/2021,(81400) Medical Surgical Supplies & Equipment,(id:42506) Evelina Womens Services,NHS SUPPLY CHAIN ( CAPITAL FUND ONLY),id:14255934  , 608.63
Department of Health,Guys and St Thomas NHS Foundation Trust,29/07/2021,(81400) Medical Surgical Supplies & Equipment,(id:42506) Evelina Womens Services,NHS SUPPLY CHAIN ( CAPITAL FUND ONLY),id:14276118  ,4395.94
Department of Health,Guys and St Thomas NHS Foundation Trust,29/07/2021,(83400) Office Equipment,(id:42506) Evelina Womens Services,NHS SUPPLY CHAIN (MAIDSTONE),id:14231714  ,  35.65
Department of Health,Guys and St Thomas NHS Foundation Trust,16/07/2021,(81100) Dressings,(id:42506) Evelina Womens Services,NHS SUPPLY CHAIN (MAIDSTONE),id:14198514    ,  86.30
Department of Health,Guys and St Thomas NHS Foundation Trust,16/07/2021,(82000) Provisions & Kitchens,(id:42506) Evelina Womens Services,NHS SUPPLY CHAIN (MAIDSTONE),id:14177634  ,   8.60
Department of Health,Guys and St Thomas NHS Foundation Trust,16/07/2021,(81550) X Ray Equipment Purchase,(id:42486) Evelina Womens Services,NHS SUPPLY CHAIN (MAIDSTONE),id:14213935    ,  33.00
Department of Health,Guys and St Thomas NHS Foundation Trust,16/07/2021,(81225) Medical Surgical Supplies & Equipment,(id:42486) Evelina Womens Services,NHS SUPPLY CHAIN (MAIDSTONE),id:14160388 ,  37.10
Department of Health,Guys and St Thomas NHS Foundation Trust,29/07/2021,(83400) Office Equipment,(id:42488) Evelina Womens Services,NHS SUPPLY CHAIN (MAIDSTONE),id:14231714  ,  37.85
Department of Health,Guys and St Thomas NHS Foundation Trust,16/07/2021,(81100) Dressings,(id:42488) Evelina Womens Services,NHS SUPPLY CHAIN (MAIDSTONE),id:14198514    ,  40.90
Department of Health,Guys and St Thomas NHS Foundation Trust,16/07/2021,(82800) Bedding & Linen,(id:42488) Evelina Womens Services,NHS SUPPLY CHAIN (MAIDSTONE),id:14177634   ,  23.52
Department of Health,Guys and St Thomas NHS Foundation Trust,29/07/2021,(81700) Lab Equipment Purchase,(id:42488) Evelina Womens Services,NHS SUPPLY CHAIN (MAIDSTONE),id:14231714 ,  41.09
Department of Health,Guys and St Thomas NHS Foundation Trust,16/07/2021,(81200) Medical Surgical Supplies & Equipment,(id:42488) Evelina Womens Services,NHS SUPPLY CHAIN (MAIDSTONE),id:14177634 , 166.54
Department of Health,Guys and St Thomas NHS Foundation Trust,16/07/2021,(82000) Provisions & Kitchens,(id:42491) Evelina Womens Services,NHS SUPPLY CHAIN (MAIDSTONE),id:14163435  , 122.94
Department of Health,Guys and St Thomas NHS Foundation Trust,29/07/2021,(83400) Office Equipment,(id:42491) Evelina Womens Services,NHS SUPPLY CHAIN (MAIDSTONE),id:14231714  ,  29.44
Department of Health,Guys and St Thomas NHS Foundation Trust,29/07/2021,(81100) Dressings,(id:42491) Evelina Womens Services,NHS SUPPLY CHAIN (MAIDSTONE),id:14231714    ,  84.77
Department of Health,Guys and St Thomas NHS Foundation Trust,16/07/2021,(81100) Dressings,(id:42491) Evelina Womens Services,NHS SUPPLY CHAIN (MAIDSTONE),id:14177634    , 312.77
Department of Health,Guys and St Thomas NHS Foundation Trust,16/07/2021,(81225) Medical Surgical Supplies & Equipment,(id:42491) Evelina Womens Services,NHS SUPPLY CHAIN (MAIDSTONE),id:14177634 ,   3.60
Department of Health,Guys and St Thomas NHS Foundation Trust,16/07/2021,(82000) Provisions & Kitchens,(id:42492) Evelina Womens Services,NHS SUPPLY CHAIN (MAIDSTONE),id:14160388  , 112.83
Department of Health,Guys and St Thomas NHS Foundation Trust,16/07/2021,(82000) Provisions & Kitchens,(id:42492) Evelina Womens Services,NHS SUPPLY CHAIN (MAIDSTONE),id:14198514  , 518.82
Department of Health,Guys and St Thomas NHS Foundation Trust,16/07/2021,(83400) Office Equipment,(id:42492) Evelina Womens Services,NHS SUPPLY CHAIN (MAIDSTONE),id:14177634  , 960.47
Department of Health,Guys and St Thomas NHS Foundation Trust,29/07/2021,(83400) Office Equipment,(id:42492) Evelina Womens Services,NHS SUPPLY CHAIN (MAIDSTONE),id:14231714  , 618.10
Department of Health,Guys and St Thomas NHS Foundation Trust,29/07/2021,(81100) Dressings,(id:42492) Evelina Womens Services,NHS SUPPLY CHAIN (MAIDSTONE),id:14231714    , 725.35
Department of Health,Guys and St Thomas NHS Foundation Trust,09/07/2021,(81200) Medical Surgical Supplies & Equipment,(id:42492) Evelina Womens Services,JOHNSON & JOHNSON MEDICAL LTD,id:14184553, 702.47
Department of Health,Guys and St Thomas NHS Foundation Trust,09/07/2021,(81200) Medical Surgical Supplies & Equipment,(id:42492) Evelina Womens Services,COOK UK LTD,id:14193534   , 811.44
Department of Health,Guys and St Thomas NHS Foundation Trust,16/07/2021,(81200) Medical Surgical Supplies & Equipment,(id:42492) Evelina Womens Services,NHS SUPPLY CHAIN (MAIDSTONE),id:14163435 ,5450.65
Department of Health,Guys and St Thomas NHS Foundation Trust,16/07/2021,(81225) Medical Surgical Supplies & Equipment,(id:42492) Evelina Womens Services,NHS SUPPLY CHAIN (MAIDSTONE),id:14163435 ,  96.55
Department of Health,Guys and St Thomas NHS Foundation Trust,16/07/2021,(81225) Medical Surgical Supplies & Equipment,(id:42492) Evelina Womens Services,NHS SUPPLY CHAIN (MAIDSTONE),id:14177634 , 111.31
Department of Health,Guys and St Thomas NHS Foundation Trust,16/07/2021,(81700) Lab Equipment Purchase,(id:42492) Evelina Womens Services,NHS SUPPLY CHAIN (MAIDSTONE),id:14198514 ,  56.22
Department of Health,Guys and St Thomas NHS Foundation Trust,16/07/2021,(82700) Uniforms & Clothing,(id:42493) Evelina Womens Services,NHS SUPPLY CHAIN (MAIDSTONE),id:14213935    ,  21.84
Department of Health,Guys and St Thomas NHS Foundation Trust,16/07/2021,(81275) Medical Surgical Supplies & Equipment,(id:42493) Evelina Womens Services,NHS SUPPLY CHAIN (MAIDSTONE),id:14177634 ,  11.86
Department of Health,Guys and St Thomas NHS Foundation Trust,16/07/2021,(81700) Lab Equipment Purchase,(id:42493) Evelina Womens Services,NHS SUPPLY CHAIN (MAIDSTONE),id:14177634 ,  77.90
Department of Health,Guys and St Thomas NHS Foundation Trust,16/07/2021,(81700) Lab Equipment Purchase,(id:42493) Evelina Womens Services,NHS SUPPLY CHAIN (MAIDSTONE),id:14213935 ,  61.69
Department of Health,Guys and St Thomas NHS Foundation Trust,16/07/2021,(82800) Bedding & Linen,(id:42496) Evelina Womens Services,NHS SUPPLY CHAIN (MAIDSTONE),id:14213935   ,  56.19
Department of Health,Guys and St Thomas NHS Foundation Trust,16/07/2021,(81700) Lab Equipment Purchase,(id:42496) Evelina Womens Services,NHS SUPPLY CHAIN (MAIDSTONE),id:14160388 ,  58.89
Department of Health,Guys and St Thomas NHS Foundation Trust,09/07/2021,(50562) Qualified Nursing Staff,(id:42497) Evelina Womens Services,CARE PROVIDERS HEALTHCARE,id:14236271   ,1058.15
Department of Health,Guys and St Thomas NHS Foundation Trust,16/07/2021,(50562) Qualified Nursing Staff,(id:42497) Evelina Womens Services,CARE PROVIDERS HEALTHCARE,id:14250286   ,1326.24
Department of Health,Guys and St Thomas NHS Foundation Trust,29/07/2021,(81700) Lab Equipment Purchase,(id:42497) Evelina Womens Services,NHS SUPPLY CHAIN (MAIDSTONE),id:14231714 ,1563.00
Department of Health,Guys and St Thomas NHS Foundation Trust,16/07/2021,(81200) Medical Surgical Supplies & Equipment,(id:42497) Evelina Womens Services,NHS SUPPLY CHAIN (MAIDSTONE),id:14213935 ,  47.40
Department of Health,Guys and St Thomas NHS Foundation Trust,16/07/2021,(50562) Qualified Nursing Staff,(id:42503) Evelina Womens Services,CARE PROVIDERS HEALTHCARE,id:14250357   , 429.78
Department of Health,Guys and St Thomas NHS Foundation Trust,16/07/2021,(81200) Medical Surgical Supplies & Equipment,(id:42325) Evelina Central,NHS SUPPLY CHAIN (MAIDSTONE),id:14163435    , 537.96
Department of Health,Guys and St Thomas NHS Foundation Trust,16/07/2021,(81700) Lab Equipment Purchase,(id:42325) Evelina Central,NHS SUPPLY CHAIN (MAIDSTONE),id:14163435    , 222.84
Department of Health,Guys and St Thomas NHS Foundation Trust,29/07/2021,(82700) Uniforms & Clothing,(id:42331) Evelina Central,NHS SUPPLY CHAIN (MAIDSTONE),id:14231714  ,   6.48
Department of Health,Guys and St Thomas NHS Foundation Trust,16/07/2021,(82800) Bedding & Linen,(id:42331) Evelina Central,NHS SUPPLY CHAIN (MAIDSTONE),id:14198514 , 144.31
Department of Health,Guys and St Thomas NHS Foundation Trust,29/07/2021,(81200) Medical Surgical Supplies & Equipment,(id:42331) Evelina Central,NHS SUPPLY CHAIN (MAIDSTONE),id:14231714    ,1524.54
Department of Health,Guys and St Thomas NHS Foundation Trust,16/07/2021,(81100) Dressings,(id:42331) Evelina Central,NHS SUPPLY CHAIN (MAIDSTONE),id:14213935  , 548.05
Department of Health,Guys and St Thomas NHS Foundation Trust,16/07/2021,(81700) Lab Equipment Purchase,(id:42331) Evelina Central,NHS SUPPLY CHAIN (MAIDSTONE),id:14198514    ,  23.72
Department of Health,Guys and St Thomas NHS Foundation Trust,16/07/2021,(82000) Provisions & Kitchens,(id:42348) Evelina Central,NHS SUPPLY CHAIN (MAIDSTONE),id:14213935,  51.93
Department of Health,Guys and St Thomas NHS Foundation Trust,16/07/2021,(82800) Bedding & Linen,(id:42348) Evelina Central,NHS SUPPLY CHAIN (MAIDSTONE),id:14177634 ,  99.53
Department of Health,Guys and St Thomas NHS Foundation Trust,16/07/2021,(81200) Medical Surgical Supplies & Equipment,(id:42348) Evelina Central,NHS SUPPLY CHAIN (MAIDSTONE),id:14163435    , 145.79
Department of Health,Guys and St Thomas NHS Foundation Trust,16/07/2021,(81200) Medical Surgical Supplies & Equipment,(id:42348) Evelina Central,NHS SUPPLY CHAIN (MAIDSTONE),id:14177634    ,1554.96
Department of Health,Guys and St Thomas NHS Foundation Trust,29/07/2021,(81200) Medical Surgical Supplies & Equipment,(id:42348) Evelina Central,NHS SUPPLY CHAIN (MAIDSTONE),id:14231714    , 969.77
Department of Health,Guys and St Thomas NHS Foundation Trust,16/07/2021,(83400) Office Equipment,(id:42348) Evelina Central,NHS SUPPLY CHAIN (MAIDSTONE),id:14160388, 298.84
Department of Health,Guys and St Thomas NHS Foundation Trust,29/07/2021,(89595) Non-Healthcare from Foundation Trusts,(id:4247419) Evelina Central,UNIVERSITY COLLEGE LONDON HOSPITALS NHS FOUNDATION TRUST,id:12840889    ,5022.00
Department of Health,Guys and St Thomas NHS Foundation Trust,16/07/2021,(80100) Drug Costs,(id:728419) Evelina Central,BOC LTD :02107500,id:14089716 ,3955.92
Department of Health,Guys and St Thomas NHS Foundation Trust,16/07/2021,(82000) Provisions & Kitchens,(id:42319) Evelina Central,NHS SUPPLY CHAIN (MAIDSTONE),id:14160388,  13.68
Department of Health,Guys and St Thomas NHS Foundation Trust,16/07/2021,(81200) Medical Surgical Supplies & Equipment,(id:2709419) Evelina Central,NHS SUPPLY CHAIN (MAIDSTONE),id:14177634  , 162.00
Department of Health,Guys and St Thomas NHS Foundation Trust,02/07/2021,(83500) Furniture & Fittings,(id:2709419) Evelina Central,KORN WALL LTD T/A KWICKSCREEN,id:14208274   ,3936.00
Department of Health,Guys and St Thomas NHS Foundation Trust,16/07/2021,(81225) Medical Surgical Supplies & Equipment,(id:590444) Evelina Community Services,NHS SUPPLY CHAIN (MAIDSTONE),id:14163435  , 806.54
Department of Health,Guys and St Thomas NHS Foundation Trust,16/07/2021,(81200) Medical Surgical Supplies & Equipment,(id:590451) Evelina Community Services,NHS SUPPLY CHAIN (MAIDSTONE),id:14177634  ,  37.20
Department of Health,Guys and St Thomas NHS Foundation Trust,29/07/2021,(84500) Establishment,(id:590451) Evelina Community Services,PEARSON EDUCATION LTD,id:14275603   , 557.98
Department of Health,Guys and St Thomas NHS Foundation Trust,16/07/2021,(82000) Provisions & Kitchens,(id:1831419) Evelina Community Services,NHS SUPPLY CHAIN (MAIDSTONE),id:14198514  ,1202.34
Department of Health,Guys and St Thomas NHS Foundation Trust,16/07/2021,(83400) Office Equipment,(id:4621420) Evelina Community Services,NHS SUPPLY CHAIN (MAIDSTONE),id:14213935  ,  39.32
Department of Health,Guys and St Thomas NHS Foundation Trust,16/07/2021,(82000) Provisions & Kitchens,(id:590557) Evelina Community Services,NHS SUPPLY CHAIN (MAIDSTONE),id:14198514   ,  30.50
Department of Health,Guys and St Thomas NHS Foundation Trust,16/07/2021,(83400) Office Equipment,(id:590446) Evelina Community Services,NHS SUPPLY CHAIN (MAIDSTONE),id:14177634   ,  26.34
Department of Health,Guys and St Thomas NHS Foundation Trust,16/07/2021,(81700) Lab Equipment Purchase,(id:590446) Evelina Community Services,NHS SUPPLY CHAIN (MAIDSTONE),id:14198514  , 140.98
Department of Health,Guys and St Thomas NHS Foundation Trust,16/07/2021,(82800) Bedding & Linen,(id:590539) Evelina Community Services,NHS SUPPLY CHAIN (MAIDSTONE),id:14177634    , 124.42
Department of Health,Guys and St Thomas NHS Foundation Trust,29/07/2021,(81200) Medical Surgical Supplies & Equipment,(id:590539) Evelina Community Services,NHS SUPPLY CHAIN (MAIDSTONE),id:14231714  ,  70.56
Department of Health,Guys and St Thomas NHS Foundation Trust,16/07/2021,(82800) Bedding & Linen,(id:590537) Evelina Community Services,NHS SUPPLY CHAIN (MAIDSTONE),id:14177634    , 204.18
Department of Health,Guys and St Thomas NHS Foundation Trust,29/07/2021,(82800) Bedding & Linen,(id:4304419) Evelina Community Services,NHS SUPPLY CHAIN (MAIDSTONE),id:14231714   ,  40.20
Department of Health,Guys and St Thomas NHS Foundation Trust,02/07/2021,(50562) Qualified Nursing Staff,(id:590421) Evelina Community Services,ARTHUR RAI MEDICAL SERVICES LTD,id:14221639   , 719.95
Department of Health,Guys and St Thomas NHS Foundation Trust,23/07/2021,(50562) Qualified Nursing Staff,(id:590421) Evelina Community Services,ARTHUR RAI MEDICAL SERVICES LTD,id:14268729   ,1317.00
Department of Health,Guys and St Thomas NHS Foundation Trust,23/07/2021,(50562) Qualified Nursing Staff,(id:590421) Evelina Community Services,ARTHUR RAI MEDICAL SERVICES LTD,id:14268480   , 526.80
Department of Health,Guys and St Thomas NHS Foundation Trust,09/07/2021,(50200) Consultants,(id:42349) Evelina Medicine & Neonatology,NORTH MIDDLESEX UNIVERSITY HOSPITAL NHS TRUST,id:13614196   ,3524.00
Department of Health,Guys and St Thomas NHS Foundation Trust,23/07/2021,(50200) Consultants,(id:42349) Evelina Medicine & Neonatology,NORTH MIDDLESEX UNIVERSITY HOSPITAL NHS TRUST,id:13614234   ,3622.67
Department of Health,Guys and St Thomas NHS Foundation Trust,16/07/2021,(81200) Medical Surgical Supplies & Equipment,(id:42349) Evelina Medicine & Neonatology,NHS SUPPLY CHAIN (MAIDSTONE),id:14198514    ,1491.12
Department of Health,Guys and St Thomas NHS Foundation Trust,23/07/2021,(80010) Drug Costs,(id:42349) Evelina Medicine & Neonatology,BAXTER HEALTHCARE LTD,id:14187954   ,3292.52
Department of Health,Guys and St Thomas NHS Foundation Trust,16/07/2021,(89640) Non-Healthcare from NHS Trusts,(id:42349) Evelina Medicine & Neonatology,NORTH BRISTOL NHS TRUST,id:13316564 ,3397.16
Department of Health,Guys and St Thomas NHS Foundation Trust,02/07/2021,(80150) Drug Costs,(id:42350) Evelina Medicine & Neonatology,LINC MEDICAL SYSTEMS  LTD,id:14217035    ,2760.00
Department of Health,Guys and St Thomas NHS Foundation Trust,29/07/2021,(81100) Dressings,(id:42350) Evelina Medicine & Neonatology,NXSTAGE MEDICAL UK LIMITED,id:14279890    ,    -2035.20
Department of Health,Guys and St Thomas NHS Foundation Trust,16/07/2021,(81100) Dressings,(id:42350) Evelina Medicine & Neonatology,NHS SUPPLY CHAIN (MAIDSTONE),id:14177634  , 133.37
Department of Health,Guys and St Thomas NHS Foundation Trust,23/07/2021,(81200) Medical Surgical Supplies & Equipment,(id:817420) Evelina Medicine & Neonatology,S-MED LTD,id:14254134  ,1890.00
Department of Health,Guys and St Thomas NHS Foundation Trust,16/07/2021,(81200) Medical Surgical Supplies & Equipment,(id:2497419) Evelina Medicine & Neonatology,NHS SUPPLY CHAIN (MAIDSTONE),id:14177634  ,  92.40
Department of Health,Guys and St Thomas NHS Foundation Trust,09/07/2021,(84500) Establishment,(id:42335) Evelina Medicine & Neonatology,PEARSON EDUCATION LTD,id:14028554, 302.40
Department of Health,Guys and St Thomas NHS Foundation Trust,16/07/2021,(81200) Medical Surgical Supplies & Equipment,(id:42335) Evelina Medicine & Neonatology,NHS SUPPLY CHAIN (MAIDSTONE),id:14160388    ,4385.76
Department of Health,Guys and St Thomas NHS Foundation Trust,29/07/2021,(81200) Medical Surgical Supplies & Equipment,(id:42335) Evelina Medicine & Neonatology,NHS SUPPLY CHAIN (MAIDSTONE),id:14231714    ,    70937.46
Department of Health,Guys and St Thomas NHS Foundation Trust,16/07/2021,(82600) Uniforms & Clothing,(id:42327) Evelina Medicine & Neonatology,NHS SUPPLY CHAIN (MAIDSTONE),id:14177634  ,   4.21
Department of Health,Guys and St Thomas NHS Foundation Trust,09/07/2021,(81400) Medical Surgical Supplies & Equipment,(id:42327) Evelina Medicine & Neonatology,NHS SUPPLY CHAIN ( CAPITAL FUND ONLY),id:14148810,2731.74
Department of Health,Guys and St Thomas NHS Foundation Trust,16/07/2021,(81100) Dressings,(id:42327) Evelina Medicine & Neonatology,NHS SUPPLY CHAIN (MAIDSTONE),id:14198514  , 268.32
Department of Health,Guys and St Thomas NHS Foundation Trust,16/07/2021,(81100) Dressings,(id:42327) Evelina Medicine & Neonatology,NHS SUPPLY CHAIN (MAIDSTONE),id:14213935  , 402.68
Department of Health,Guys and St Thomas NHS Foundation Trust,02/07/2021,(81200) Medical Surgical Supplies & Equipment,(id:42327) Evelina Medicine & Neonatology,ARDO MEDICAL LTD,id:14213793 , 595.46
Department of Health,Guys and St Thomas NHS Foundation Trust,02/07/2021,(81200) Medical Surgical Supplies & Equipment,(id:42327) Evelina Medicine & Neonatology,MEDACX LIMITED,id:14209935   ,4368.00
Department of Health,Guys and St Thomas NHS Foundation Trust,02/07/2021,(81200) Medical Surgical Supplies & Equipment,(id:42327) Evelina Medicine & Neonatology,MEDACX LIMITED,id:14209294   ,4950.00
Department of Health,Guys and St Thomas NHS Foundation Trust,16/07/2021,(81200) Medical Surgical Supplies & Equipment,(id:42327) Evelina Medicine & Neonatology,NHS SUPPLY CHAIN (MAIDSTONE),id:14213935    ,5324.43
Department of Health,Guys and St Thomas NHS Foundation Trust,02/07/2021,(83610) IT Costs,(id:42327) Evelina Medicine & Neonatology,OFFICE DEPOT UK LTD,id:14169604  ,2312.71
Department of Health,Guys and St Thomas NHS Foundation Trust,16/07/2021,(83400) Office Equipment,(id:42327) Evelina Medicine & Neonatology,NHS SUPPLY CHAIN (MAIDSTONE),id:14160388, 348.09
Department of Health,Guys and St Thomas NHS Foundation Trust,16/07/2021,(81225) Medical Surgical Supplies & Equipment,(id:42327) Evelina Medicine & Neonatology,NHS SUPPLY CHAIN (MAIDSTONE),id:14198514    ,  44.04
Department of Health,Guys and St Thomas NHS Foundation Trust,16/07/2021,(81700) Lab Equipment Purchase,(id:42327) Evelina Medicine & Neonatology,NHS SUPPLY CHAIN (MAIDSTONE),id:14160388    ,  65.76
Department of Health,Guys and St Thomas NHS Foundation Trust,23/07/2021,(50470) Medical Training Grades,(id:42327) Evelina Medicine & Neonatology,KINGS COLLEGE LONDON:03529700,id:14140754  ,2872.69
Department of Health,Guys and St Thomas NHS Foundation Trust,02/07/2021,(81200) Medical Surgical Supplies & Equipment,(id:1196420) Evelina Medicine & Neonatology,INSULET INTERNATIONAL LTD,id:14212575, 706.32
Department of Health,Guys and St Thomas NHS Foundation Trust,16/07/2021,(81200) Medical Surgical Supplies & Equipment,(id:1196420) Evelina Medicine & Neonatology,DEXCOM INTERNATIONAL LTD,id:14240730 , 600.00
Department of Health,Guys and St Thomas NHS Foundation Trust,29/07/2021,(81700) Lab Equipment Purchase,(id:3736419) Evelina Medicine & Neonatology,ROCHE DIAGNOSTICS LTD,id:13230455    ,1035.24
Department of Health,Guys and St Thomas NHS Foundation Trust,29/07/2021,(81700) Lab Equipment Purchase,(id:3736419) Evelina Medicine & Neonatology,NHS SUPPLY CHAIN (MAIDSTONE),id:14231714  , 847.56
Department of Health,Guys and St Thomas NHS Foundation Trust,16/07/2021,(81200) Medical Surgical Supplies & Equipment,(id:2496419) Evelina Medicine & Neonatology,NHS SUPPLY CHAIN (MAIDSTONE),id:14177634  , 418.74
Department of Health,Guys and St Thomas NHS Foundation Trust,16/07/2021,(82800) Bedding & Linen,(id:2496419) Evelina Medicine & Neonatology,NHS SUPPLY CHAIN (MAIDSTONE),id:14163435    ,  34.55
Department of Health,Guys and St Thomas NHS Foundation Trust,16/07/2021,(82800) Bedding & Linen,(id:2496419) Evelina Medicine & Neonatology,NHS SUPPLY CHAIN (MAIDSTONE),id:14198514    ,  20.10
Department of Health,Guys and St Thomas NHS Foundation Trust,29/07/2021,(82800) Bedding & Linen,(id:2496419) Evelina Medicine & Neonatology,NHS SUPPLY CHAIN (MAIDSTONE),id:14231714    ,  20.10
Department of Health,Guys and St Thomas NHS Foundation Trust,16/07/2021,(81100) Dressings,(id:2496419) Evelina Medicine & Neonatology,NHS SUPPLY CHAIN (MAIDSTONE),id:14213935,  60.68
Department of Health,Guys and St Thomas NHS Foundation Trust,16/07/2021,(81100) Dressings,(id:2496419) Evelina Medicine & Neonatology,NHS SUPPLY CHAIN (MAIDSTONE),id:14198514,  34.92
Department of Health,Guys and St Thomas NHS Foundation Trust,16/07/2021,(81100) Dressings,(id:2496419) Evelina Medicine & Neonatology,NHS SUPPLY CHAIN (MAIDSTONE),id:14160388,  20.26
Department of Health,Guys and St Thomas NHS Foundation Trust,16/07/2021,(50522) Unqualified Nursing Staff,(id:41874) Evelina Medicine & Neonatology,GLOBE LOCUMS LTD,id:14250509   , 253.64
Department of Health,Guys and St Thomas NHS Foundation Trust,16/07/2021,(50552) Qualified Nursing Staff,(id:41874) Evelina Medicine & Neonatology,CONTINENTAL NURSE LTD,id:14250441,2672.71
Department of Health,Guys and St Thomas NHS Foundation Trust,02/07/2021,(81200) Medical Surgical Supplies & Equipment,(id:41874) Evelina Medicine & Neonatology,MEDTRONIC LTD,id:14206593    , 504.00
Department of Health,Guys and St Thomas NHS Foundation Trust,16/07/2021,(82000) Provisions & Kitchens,(id:41874) Evelina Medicine & Neonatology,NHS SUPPLY CHAIN (MAIDSTONE),id:14163435,   3.24
Department of Health,Guys and St Thomas NHS Foundation Trust,16/07/2021,(82000) Provisions & Kitchens,(id:41874) Evelina Medicine & Neonatology,NHS SUPPLY CHAIN (MAIDSTONE),id:14177634,  19.42
Department of Health,Guys and St Thomas NHS Foundation Trust,16/07/2021,(83400) Office Equipment,(id:41874) Evelina Medicine & Neonatology,NHS SUPPLY CHAIN (MAIDSTONE),id:14163435,   1.52
Department of Health,Guys and St Thomas NHS Foundation Trust,29/07/2021,(83400) Office Equipment,(id:42323) Evelina Medicine & Neonatology,NHS SUPPLY CHAIN (MAIDSTONE),id:14231714,  53.75
Department of Health,Guys and St Thomas NHS Foundation Trust,16/07/2021,(81100) Dressings,(id:42323) Evelina Medicine & Neonatology,NHS SUPPLY CHAIN (MAIDSTONE),id:14213935  , 124.41
Department of Health,Guys and St Thomas NHS Foundation Trust,29/07/2021,(82800) Bedding & Linen,(id:42315) Evelina Medicine & Neonatology,NHS SUPPLY CHAIN (MAIDSTONE),id:14231714 ,  49.18
Department of Health,Guys and St Thomas NHS Foundation Trust,16/07/2021,(81200) Medical Surgical Supplies & Equipment,(id:42315) Evelina Medicine & Neonatology,NHS SUPPLY CHAIN (MAIDSTONE),id:14160388    , 397.32
Department of Health,Guys and St Thomas NHS Foundation Trust,16/07/2021,(81700) Lab Equipment Purchase,(id:42315) Evelina Medicine & Neonatology,NHS SUPPLY CHAIN (MAIDSTONE),id:14213935    ,  21.65
Department of Health,Guys and St Thomas NHS Foundation Trust,16/07/2021,(83400) Office Equipment,(id:42059) Evelina Medicine & Neonatology,NHS SUPPLY CHAIN (MAIDSTONE),id:14198514,   4.80
Department of Health,Guys and St Thomas NHS Foundation Trust,16/07/2021,(81100) Dressings,(id:42058) Evelina Medicine & Neonatology,NHS SUPPLY CHAIN (MAIDSTONE),id:14198514  ,  50.49
Department of Health,Guys and St Thomas NHS Foundation Trust,16/07/2021,(82700) Uniforms & Clothing,(id:42058) Evelina Medicine & Neonatology,NHS SUPPLY CHAIN (MAIDSTONE),id:14160388  , 219.78
Department of Health,Guys and St Thomas NHS Foundation Trust,29/07/2021,(82800) Bedding & Linen,(id:42312) Evelina Surgery Theatres & PICU,NHS SUPPLY CHAIN (MAIDSTONE),id:14231714, 408.60
Department of Health,Guys and St Thomas NHS Foundation Trust,23/07/2021,(50200) Consultants,(id:42312) Evelina Surgery Theatres & PICU,KINGS COLLEGE LONDON:03529700,id:14216986   ,1763.26
Department of Health,Guys and St Thomas NHS Foundation Trust,23/07/2021,(50200) Consultants,(id:42312) Evelina Surgery Theatres & PICU,KINGS COLLEGE LONDON:03529700,id:14140754   ,6515.83
Department of Health,Guys and St Thomas NHS Foundation Trust,16/07/2021,(81200) Medical Surgical Supplies & Equipment,(id:42312) Evelina Surgery Theatres & PICU,NHS SUPPLY CHAIN (MAIDSTONE),id:14213935   ,3523.56
Department of Health,Guys and St Thomas NHS Foundation Trust,09/07/2021,(81200) Medical Surgical Supplies & Equipment,(id:42312) Evelina Surgery Theatres & PICU,TERUMO UK LTD,id:14229082   , 558.00
Department of Health,Guys and St Thomas NHS Foundation Trust,16/07/2021,(81230) Medical Surgical Supplies & Equipment,(id:42312) Evelina Surgery Theatres & PICU,COOK UK LTD,id:14204267, 252.00
Department of Health,Guys and St Thomas NHS Foundation Trust,16/07/2021,(81230) Medical Surgical Supplies & Equipment,(id:42312) Evelina Surgery Theatres & PICU,NHS SUPPLY CHAIN (MAIDSTONE),id:14198514   , 862.84
Department of Health,Guys and St Thomas NHS Foundation Trust,16/07/2021,(81230) Medical Surgical Supplies & Equipment,(id:42312) Evelina Surgery Theatres & PICU,NHS SUPPLY CHAIN (MAIDSTONE),id:14163435   , 936.00
Department of Health,Guys and St Thomas NHS Foundation Trust,16/07/2021,(83400) Office Equipment,(id:42312) Evelina Surgery Theatres & PICU,NHS SUPPLY CHAIN (MAIDSTONE),id:14177634    , 137.29
Department of Health,Guys and St Thomas NHS Foundation Trust,16/07/2021,(81100) Dressings,(id:42312) Evelina Surgery Theatres & PICU,NHS SUPPLY CHAIN (MAIDSTONE),id:14198514 ,  61.34
Department of Health,Guys and St Thomas NHS Foundation Trust,16/07/2021,(82000) Provisions & Kitchens,(id:4082419) Evelina Surgery Theatres & PICU,NHS SUPPLY CHAIN (MAIDSTONE),id:14163435  ,  49.80
Department of Health,Guys and St Thomas NHS Foundation Trust,16/07/2021,(82800) Bedding & Linen,(id:4082419) Evelina Surgery Theatres & PICU,NHS SUPPLY CHAIN (MAIDSTONE),id:14198514   ,  25.86
Department of Health,Guys and St Thomas NHS Foundation Trust,29/07/2021,(81100) Dressings,(id:4082419) Evelina Surgery Theatres & PICU,NHS SUPPLY CHAIN (MAIDSTONE),id:14231714    , 171.33
Department of Health,Guys and St Thomas NHS Foundation Trust,16/07/2021,(81100) Dressings,(id:4082419) Evelina Surgery Theatres & PICU,NHS SUPPLY CHAIN (MAIDSTONE),id:14163435    ,   1.84
Department of Health,Guys and St Thomas NHS Foundation Trust,16/07/2021,(81100) Dressings,(id:42351) Evelina Surgery Theatres & PICU,NHS SUPPLY CHAIN (MAIDSTONE),id:14177634 ,   6.83
Department of Health,Guys and St Thomas NHS Foundation Trust,16/07/2021,(81100) Dressings,(id:42351) Evelina Surgery Theatres & PICU,JEWEL MANAGEMENT LTD T/A GENERAL MEDICAL,id:14244278    ,1043.94
Department of Health,Guys and St Thomas NHS Foundation Trust,29/07/2021,(82600) Uniforms & Clothing,(id:41914) Evelina Surgery Theatres & PICU,NHS SUPPLY CHAIN (MAIDSTONE),id:14231714 , 222.41
Department of Health,Guys and St Thomas NHS Foundation Trust,29/07/2021,(82000) Provisions & Kitchens,(id:41914) Evelina Surgery Theatres & PICU,NHS SUPPLY CHAIN (MAIDSTONE),id:14231714    ,  36.00
Department of Health,Guys and St Thomas NHS Foundation Trust,16/07/2021,(81200) Medical Surgical Supplies & Equipment,(id:41914) Evelina Surgery Theatres & PICU,JOHNSON & JOHNSON MEDICAL LTD,id:14200103  , 661.04
Department of Health,Guys and St Thomas NHS Foundation Trust,02/07/2021,(50562) Qualified Nursing Staff,(id:41914) Evelina Surgery Theatres & PICU,MEDICSPRO LTD,id:14217195  , 921.81
Department of Health,Guys and St Thomas NHS Foundation Trust,09/07/2021,(50562) Qualified Nursing Staff,(id:41914) Evelina Surgery Theatres & PICU,MEDICSPRO LTD,id:14236458  , 636.88
Department of Health,Guys and St Thomas NHS Foundation Trust,16/07/2021,(50562) Qualified Nursing Staff,(id:41914) Evelina Surgery Theatres & PICU,YOUR WORLD RECRUITMENT LIMITED(YOUR WORLD HEALTHCARE),id:14236145  , 523.95
Department of Health,Guys and St Thomas NHS Foundation Trust,16/07/2021,(50562) Qualified Nursing Staff,(id:41914) Evelina Surgery Theatres & PICU,MEDICSPRO LTD,id:14250365  , 536.32
Department of Health,Guys and St Thomas NHS Foundation Trust,29/07/2021,(50562) Qualified Nursing Staff,(id:41914) Evelina Surgery Theatres & PICU,YOUR WORLD RECRUITMENT LIMITED(YOUR WORLD HEALTHCARE),id:14250236  , 589.68
Department of Health,Guys and St Thomas NHS Foundation Trust,16/07/2021,(81100) Dressings,(id:41914) Evelina Surgery Theatres & PICU,NHS SUPPLY CHAIN (MAIDSTONE),id:14198514 , 316.19
Department of Health,Guys and St Thomas NHS Foundation Trust,23/07/2021,(81100) Dressings,(id:41914) Evelina Surgery Theatres & PICU,ELIS UK LIMITED,id:14227297    , 644.10
Department of Health,Guys and St Thomas NHS Foundation Trust,02/07/2021,(81100) Dressings,(id:41914) Evelina Surgery Theatres & PICU,ELIS UK LIMITED,id:14030799    ,1081.60
Department of Health,Guys and St Thomas NHS Foundation Trust,16/07/2021,(82600) Uniforms & Clothing,(id:41910) Evelina Surgery Theatres & PICU,NHS SUPPLY CHAIN (MAIDSTONE),id:14160388 ,  79.20
